Workbook

Sheet Model Instructions
A1: Model Instructions

Sheet Summary
A1: Thermo Fisher Transaction Summary
A2: ($Millions, except per share data)
C5: Transaction Value | I5: Form of Payment | O5: Sources & Uses
C7: Price Per Share | F7: 76 | I7: % Stock | L7: 0 | O7: Excess Cash | R7: 1000
C8: Target Shares Outstanding | F8: ='Target Assumptions'!H54 -> 174.5 | I8: % Cash | L8: =1-L7 -> 1 | O8: Common Shares Issued to Target Shareholders | R8: =F10*L7 -> 0
C9: Dilutive Effect: Stock Options/Security Conv | F9: ='Options-Convertibles'!G17+'Options-Convertibles'!G27+'Options-Convertibles'!N12 -> 4.586767105 | O9: New Common Shares Issued | R9: 2200
C10: Equity Consideration | F10: =F7*(F8+F9) -> 13610.5943 | I10: Target Preannouncement Share Price | L10: 60.75 | O10: Convertible Preferred Equity | P10: 0 | R10: 1050
I11: Implied Purchase Price Premium | L11: =+IF(ISERROR(F7/L10-1),0,F7/L10-1) -> 0.2510288066 | O11: Revolving Credit Facility | P11: =L23+(L25/10000)+(L27/10000) -> 0.04 | R11: 0
C12: Less: Cash | F12: ='Target BS'!H9 -> 276.3 | J12: Shares | L12: % | O12: Senior Debt | P12: =L23+(L25/10000)+(L29/10000) -> 0.045 | R12: =F10+R17-R7-R8-R9-R10-R11-R13 -> 9854.5943
C13: Less: Equity in Affilates | F13: ='Target BS'!H24 -> 0 | I13: Current Shares Outstanding | J13: ='Acquirer Assumptions'!H53 -> 358.1 | L13: =+IF(ISERROR(J13/$J$18),0,J13/$J$18) -> 0.9262157762 | O13: Subordinated Debt | P13: 0.1 | R13: 0
C14: Plus: Total Debt | F14: ='Target BS'!H38 -> 2260.9 | I14: Shares Issued to Target | J14: =+IF(R8>0,(F7/P24)*(F8+F9)*L7,0) -> 0 | L14: =+IF(ISERROR(J14/$J$18),0,J14/$J$18) -> 0 | O14: Total Sources | R14: =SUM(R7:R13) -> 14104.5943
C15: Plus: Noncontrolling Interests | F15: ='Target BS'!H50 -> 0.8 | I15: New Common Shares Issued | J15: =IF(R9>0,R9/P24,0) -> 28.52697095 | L15: =+IF(ISERROR(J15/$J$18),0,J15/$J$18) -> 0.07378422381
C16: Less Other Adjustments | F16: 0 | I16: Convertible Preferred Shares | J16: 0 | L16: =+IF(ISERROR(J16/$J$18),0,J16/$J$18) -> 0 | O16: Equity Consideration | R16: =F10 -> 13610.5943
C17: Enterprise Value | F17: =F10-F12-F13+F14+F15-F16 -> 15595.9943 | I17: New Warrants Issued | J17: 0 | L17: =+IF(ISERROR(J17/$J$18),0,J17/$J$18) -> 0 | O17: Transaction Expenses | P17: 10 | R17: 494
I18: Total Shares | J18: =SUM(J13:J17) -> 386.626971 | L18: =SUM(L13:L17) -> 1 | O18: Total Uses | R18: =R16+R17 -> 14104.5943
C21: Goodwill | I21: Debt | O21: ="Performance Fundamentals - "&('Acquirer Assumptions'!A1)&"" -> Performance Fundamentals - Thermo (Acquirer)
C23: Target Tangible Book Value | F23: ='Target BS'!H51 -> 4453.4 | I23: 5-Year Treasury Rate | L23: 0.009 | P23: Current | R23: ='Newco BS'!X7 -> 2018
C24: Adjustments | F24: ='Newco BS'!I11+SUM('Newco BS'!I16:I17) -> 0 | O24: Price per Share | P24: 77.12 | R24: =+IF(ISERROR(R26/R25),0,R26/R25) -> 228.1233655
C25: Adjusted Book Value | F25: =F23+F24 -> 4453.4 | I25: Swap Rate (Bps) | L25: 60 | O25: Shares Outstanding | P25: =J13 -> 358.1 | R25: =J18 -> 386.626971
C26: Equity Consideration | F26: =F10 -> 13610.5943 | O26: Market Capitalization | P26: =P24*P25 -> 27616.672 | R26: =R28-R27 -> 88198.64581
C27: Goodwill | F27: =F26-F25 -> 9157.1943 | I27: Revolving Credit Facility (Bps over Treasury) | L27: 250 | O27: Net Debt & Preferred Equity | P27: ='Acquirer BS'!H38+'Acquirer BS'!H46-'Acquirer BS'!H9 -> 6175.9 | R27: =+IF(ISERROR('Newco BS'!X39+'Newco BS'!X47-'Newco BS'!X9),0,'Newco BS'!X39+'Newco BS'!X47-'Newco BS'!X9) -> 10028.68794
O28: Enterprise Value | P28: =P26+P27 -> 33792.572 | R28: =R30*R32 -> 98227.33375
I29: Senior Debt (Bps over Treasury) | L29: 300
O30: LTM EBITDA | P30: ='Acquirer IS'!H49 -> 1482.1 | R30: ='Newco IS'!V50 -> 4308.128169
I31: Senor Debt Amortization (Years) | L31: 12
O32: Enterprise Value / LTM EBITDA | P32: =+IF(ISERROR(P28/P30),0,P28/P30) -> 22.80046691 | R32: =P32 -> 22.80046691
C33: Transaction Exp Amortization | F33: =R17*F34/P17 -> 9.88 | I33: Unsecured Debt Amortization (Years) | L33: 15
C34: % of Transaction Expenses Amortized | F34: 0.2
C37: SG&A Synergies | I37: Gross Margin Improvement | O37: Incremental Sales Synergy
F38: $'s | J38: % | L38: $'s | P38: Margin | R38: $'s
C39: 2014 | F39: 10 | I39: 2014 | J39: =+IF(ISERROR(L39/('Newco IS'!M9-Summary!R39)),0,L39/('Newco IS'!M9-Summary!R39)) -> 0.004267404195 | L39: 75 | O39: =I39 -> 2014 | P39: =+IF(ISERROR(1-'Newco Assumptions'!J12),0,1-'Newco Assumptions'!J12) -> 0.4700985696 | R39: 5
C40: =C39+1 -> 2015 | F40: 20 | I40: =I39+1 -> 2015 | J40: =+IF(ISERROR(L40/('Newco IS'!P9-Summary!R40)),0,L40/('Newco IS'!P9-Summary!R40)) -> 0.0105594112 | L40: 200 | O40: =O39+1 -> 2015 | P40: =+IF(ISERROR(1-'Newco Assumptions'!L12),0,1-'Newco Assumptions'!L12) -> 0.4763911062 | R40: 20
C41: =C40+1 -> 2016 | F41: 25 | I41: =I40+1 -> 2016 | J41: =+IF(ISERROR(L41/('Newco IS'!R9-Summary!R41)),0,L41/('Newco IS'!R9-Summary!R41)) -> 0.01102282131 | L41: 225 | O41: =O40+1 -> 2016 | P41: =+IF(ISERROR(1-'Newco Assumptions'!N12),0,1-'Newco Assumptions'!N12) -> 0.4792908419 | R41: 25
C42: =C41+1 -> 2017 | F42: =F41 -> 25 | I42: =I41+1 -> 2017 | J42: =+IF(ISERROR(L42/('Newco IS'!T9-Summary!R42)),0,L42/('Newco IS'!T9-Summary!R42)) -> 0.01022790524 | L42: =L41 -> 225 | O42: =O41+1 -> 2017 | P42: =+IF(ISERROR(1-'Newco Assumptions'!P12),0,1-'Newco Assumptions'!P12) -> 0.4782934259 | R42: =R41 -> 25
C43: =C42+1 -> 2018 | F43: =F42 -> 25 | I43: =I42+1 -> 2018 | J43: =+IF(ISERROR(L43/('Newco IS'!V9-Summary!R43)),0,L43/('Newco IS'!V9-Summary!R43)) -> 0.009490171112 | L43: =L42 -> 225 | O43: =O42+1 -> 2018 | P43: =++IF(ISERROR(1-'Newco Assumptions'!R12),0,1-'Newco Assumptions'!R12) -> 0.4773542204 | R43: =R42 -> 25
C46: Earnings per Share | D46: Acquirer | F46: Newco | I46: Cash EPS | J46: Acquirer | L46: Newco | O46: Accretion / (Dilution) | P46: EPS | R46: Cash EPS
C48: =I39 -> 2014 | D48: =+IF(ISERROR('Acquirer IS'!J42),0,'Acquirer IS'!J42) -> 1.139045039 | F48: =+IF(ISERROR('Newco IS'!M43),0,'Newco IS'!M43) -> -0.16408287 | I48: =C48 -> 2014 | J48: =+IF(ISERROR('Acquirer IS'!J53),0,'Acquirer IS'!J53) -> 4.79018168 | L48: =+IF(ISERROR('Newco IS'!M54),0,'Newco IS'!M54) -> 9.461145943 | O48: 2013 | P48: =+IF(ISERROR(F48/D48-1),0,F48/D48-1) -> -1.144053013 | R48: =+IF(ISERROR(L48/J48-1),0,L48/J48-1) -> 0.9751121301
C49: =I40 -> 2015 | D49: =+IF(ISERROR('Acquirer IS'!L42),0,'Acquirer IS'!L42) -> 1.410252828 | F49: =+IF(ISERROR('Newco IS'!P43),0,'Newco IS'!P43) -> 1.511302337 | I49: =C49 -> 2015 | J49: =+IF(ISERROR('Acquirer IS'!L53),0,'Acquirer IS'!L53) -> 4.621563832 | L49: =+IF(ISERROR('Newco IS'!P54),0,'Newco IS'!P54) -> 5.883435574 | O49: =C49 -> 2015 | P49: =+IF(ISERROR(F49/D49-1),0,F49/D49-1) -> 0.07165346968 | R49: =+IF(ISERROR(L49/J49-1),0,L49/J49-1) -> 0.2730399901
C50: =I41 -> 2016 | D50: =+IF(ISERROR('Acquirer IS'!N42),0,'Acquirer IS'!N42) -> 1.704206417 | F50: =+IF(ISERROR('Newco IS'!R43),0,'Newco IS'!R43) -> 2.327172344 | I50: =C50 -> 2016 | J50: =+IF(ISERROR('Acquirer IS'!N53),0,'Acquirer IS'!N53) -> 5.125908615 | L50: =+IF(ISERROR('Newco IS'!R54),0,'Newco IS'!R54) -> 6.996520816 | O50: =C50 -> 2016 | P50: =+IF(ISERROR(F50/D50-1),0,F50/D50-1) -> 0.3655460519 | R50: =+IF(ISERROR(L50/J50-1),0,L50/J50-1) -> 0.3649328035
C51: =I42 -> 2017 | D51: =+IF(ISERROR('Acquirer IS'!P42),0,'Acquirer IS'!P42) -> 2.023085335 | F51: =+IF(ISERROR('Newco IS'!T43),0,'Newco IS'!T43) -> 2.931902833 | I51: =C51 -> 2017 | J51: =+IF(ISERROR('Acquirer IS'!P53),0,'Acquirer IS'!P53) -> 5.672010024 | L51: =+IF(ISERROR('Newco IS'!T54),0,'Newco IS'!T54) -> 7.942109354 | O51: =C51 -> 2017 | P51: =IF(ISERROR(F51/D51-1),0,F51/D51-1) -> 0.4492235111 | R51: =+IF(ISERROR(L51/J51-1),0,L51/J51-1) -> 0.4002283706
C52: =I43 -> 2018 | D52: =+IF(ISERROR('Acquirer IS'!R42),0,'Acquirer IS'!R42) -> 2.369268669 | F52: =+IF(ISERROR('Newco IS'!V43),0,'Newco IS'!V43) -> 3.579163496 | I52: =C52 -> 2018 | J52: =+IF(ISERROR('Acquirer IS'!R53),0,'Acquirer IS'!R53) -> 6.263593647 | L52: =+IF(ISERROR('Newco IS'!V54),0,'Newco IS'!V54) -> 8.878404789 | O52: =C52 -> 2018 | P52: =+IF(ISERROR(F52/D52-1),0,F52/D52-1) -> 0.5106617256 | R52: =+IF(ISERROR(L52/J52-1),0,L52/J52-1) -> 0.4174618101
C55: Valuation | D55: Present Value $'s | I55: Total Debt to Total Capital | O55: Interest Coverage (EBITDA to Interest Expense)
I56: Industry Average | L56: Newco | O56: Industry Average | R56: Newco
C57: Target | F57: =Valuation!D21 -> 13457.63372 | I57: =C48 -> 2014 | J57: 44.6 | L57: =+IF(ISERROR('Newco BS'!P39/('Newco BS'!P52+'Newco BS'!P39)),0,'Newco BS'!P39/('Newco BS'!P52+'Newco BS'!P39)) -> 0.4897991479 | O57: =C48 -> 2014 | P57: 4.0x | R57: =+IF(ISERROR(('Newco IS'!M21+'Newco IS'!M18+'Newco IS'!M19)/'Newco IS'!M27),0,('Newco IS'!M21+'Newco IS'!M18+'Newco IS'!M19)/'Newco IS'!M27) -> 3.104723223
C58: Acquirer | F58: =+IF(ISERROR(Valuation!L21),0,Valuation!L21) -> 53753.51495 | I58: =C49 -> 2015 | J58: 44.6 | L58: =+IF(ISERROR('Newco BS'!R39/('Newco BS'!R52+'Newco BS'!R39)),0,'Newco BS'!R39/('Newco BS'!R52+'Newco BS'!R39)) -> 0.4576834074 | O58: =C49 -> 2015 | P58: 4.0x | R58: =+IF(ISERROR(('Newco IS'!P21+'Newco IS'!P18+'Newco IS'!P19)/'Newco IS'!P27),0,('Newco IS'!P21+'Newco IS'!P18+'Newco IS'!P19)/'Newco IS'!P27) -> 3.952667309
C59: Newco | F59: =+IF(ISERROR(Valuation!D55),0,Valuation!D55) -> 80221.11848 | I59: 2016 | J59: 44.6 | L59: =+IF(ISERROR('Newco BS'!T39/('Newco BS'!T52+'Newco BS'!T39)),0,'Newco BS'!T39/('Newco BS'!T52+'Newco BS'!T39)) -> 0.4196404105 | O59: 2016 | P59: 4.0x | R59: =+IF(ISERROR(('Newco IS'!R21+'Newco IS'!R18+'Newco IS'!R19)/'Newco IS'!R27),0,('Newco IS'!R21+'Newco IS'!R18+'Newco IS'!R19)/'Newco IS'!R27) -> 5.007263887
C60: Synergies | F60: =F59-SUM(F57:F58) -> 13009.96981 | I60: 2017 | J60: 44.6 | L60: =+IF(ISERROR('Newco BS'!V39/('Newco BS'!V52+'Newco BS'!V39)),0,'Newco BS'!V39/('Newco BS'!V52+'Newco BS'!V39)) -> 0.3772973696 | O60: 2017 | P60: 4.0x | R60: =+IF(ISERROR(('Newco IS'!T21+'Newco IS'!T18+'Newco IS'!T19)/'Newco IS'!T27),0,('Newco IS'!T21+'Newco IS'!T18+'Newco IS'!T19)/'Newco IS'!T27) -> 6.153696053
C61: Net Present Value | F61: =F57+F60-R18 -> 12363.00923 | I61: 2018 | J61: 44.6 | L61: =+IF(ISERROR('Newco BS'!X39/('Newco BS'!X52+'Newco BS'!X39)),0,'Newco BS'!X39/('Newco BS'!X52+'Newco BS'!X39)) -> 0.3312042861 | O61: 2018 | P61: 4.0x | R61: =+IF(ISERROR(('Newco IS'!V21+'Newco IS'!V18+'Newco IS'!V19)/'Newco IS'!V27),0,('Newco IS'!V21+'Newco IS'!V18+'Newco IS'!V19)/'Newco IS'!V27) -> 7.668908896
C63: SG&A as a % of Incremental Sales | F63: 0.1

Sheet Target Assumptions
A1: Life Technologies (Target) | P1: Assumptions
A2: ($Millions, except per share data)
D6: Actual | J6: Projections for the Period Ending December 31,
D7: 2011 | F7: =D7+1 -> 2012 | H7: =F7+1 -> 2013 | J7: =H7+1 -> 2014 | L7: =J7+1 -> 2015 | N7: =L7+1 -> 2016 | P7: =N7+1 -> 2017 | R7: =P7+1 -> 2018
B9: Income Statement
B11: Sales Growth | D11: NA | F11: =+IF(ISERROR('Target IS'!F9/'Target IS'!D9-1),0,'Target IS'!F9/'Target IS'!D9-1) -> 0.05228393857 | H11: 0.068 | J11: 0.07 | K11: 0.24 | L11: =J11 -> 0.07 | M11: =K11 -> 0.24 | N11: 0.07 | O11: 0.24 | P11: 0.07 | Q11: 0.24 | R11: 0.07
B12: COGS as a % of Sales | D12: =+IF(ISERROR('Target IS'!D11/'Target IS'!D9),0,'Target IS'!D11/'Target IS'!D9) -> 0.4130319668 | E12: =+IF(ISERROR('Target IS'!E11/'Target IS'!E9),0,'Target IS'!E11/'Target IS'!E9) -> 0 | F12: =+IF(ISERROR('Target IS'!F11/'Target IS'!F9),0,'Target IS'!F11/'Target IS'!F9) -> 0.441163228 | G12: =+IF(ISERROR('Target IS'!G11/'Target IS'!G9),0,'Target IS'!G11/'Target IS'!G9) -> 0 | H12: =+IF(ISERROR('Target IS'!H11/'Target IS'!H9),0,'Target IS'!H11/'Target IS'!H9) -> 0.4380939845 | J12: 0.436 | K12: ='Target IS'!K11/'Target IS'!K9 ->  | L12: =J12 -> 0.436 | M12: =K12 ->  | N12: 0.436 | P12: 0.436 | R12: 0.436
B13: SG&A % annual increase (decrease) | D13: NA | F13: =+IF(ISERROR('Target IS'!F15/'Target IS'!D15-1),0,'Target IS'!F15/'Target IS'!D15-1) -> -0.01387802971 | G13: =+IF(ISERROR('Target IS'!G15/'Target IS'!E15-1),0,'Target IS'!G15/'Target IS'!E15-1) -> -1 | H13: =+IF(ISERROR('Target IS'!H15/'Target IS'!F15-1),0,'Target IS'!H15/'Target IS'!F15-1) -> 0.04519326065 | J13: 0.026 | K13: ='Target IS'!K15/'Target IS'!I15-1 ->  | L13: 0.026 | N13: 0.026 | P13: 0.026 | R13: 0.026
B14: Other Operating Expense as a % of Sales | D14: =+IF(ISERROR('Target IS'!D16/'Target IS'!D9),0,'Target IS'!D16/'Target IS'!D9) -> 0.1311836348 | E14: =+IF(ISERROR('Target IS'!E16/'Target IS'!E9),0,'Target IS'!E16/'Target IS'!E9) -> 0 | F14: =+IF(ISERROR('Target IS'!F16/'Target IS'!F9),0,'Target IS'!F16/'Target IS'!F9) -> 0.1200307228 | G14: =+IF(ISERROR('Target IS'!G16/'Target IS'!G9),0,'Target IS'!G16/'Target IS'!G9) -> 0 | H14: =+IF(ISERROR('Target IS'!H16/'Target IS'!H9),0,'Target IS'!H16/'Target IS'!H9) -> 0.109148348 | J14: 0.1 | K14: ='Target IS'!K16/'Target IS'!K9 ->  | L14: 0.1 | N14: 0.1 | P14: 0.1 | R14: 0.1
B15: Income from Affiliates Growth | D15: NA | F15: =IF('Target IS'!D23=0,0,'Target IS'!F23/'Target IS'!D23-1) -> 0 | H15: =IF('Target IS'!F23=0,0,'Target IS'!H23/'Target IS'!F23-1) -> 0 | J15: 0 | L15: 0 | N15: =L15 -> 0 | P15: =N15 -> 0 | R15: =P15 -> 0
B16: Noncontrolling Interest - % of Earnings | D16: =+IF(ISERROR('Target IS'!D30/('Target IS'!D28-'Target IS'!D31)),0,'Target IS'!D30/('Target IS'!D28-'Target IS'!D31)) -> 0 | E16: =+IF(ISERROR('Target IS'!E30/('Target IS'!E28-'Target IS'!E31)),0,'Target IS'!E30/('Target IS'!E28-'Target IS'!E31)) -> 0 | F16: =+IF(ISERROR('Target IS'!F30/('Target IS'!F28-'Target IS'!F31)),0,'Target IS'!F30/('Target IS'!F28-'Target IS'!F31)) -> 0 | G16: =+IF(ISERROR('Target IS'!G30/('Target IS'!G28-'Target IS'!G31)),0,'Target IS'!G30/('Target IS'!G28-'Target IS'!G31)) -> 0 | H16: =+IF(ISERROR('Target IS'!H30/('Target IS'!H28-'Target IS'!H31)),0,'Target IS'!H30/('Target IS'!H28-'Target IS'!H31)) -> 0 | J16: 0 | L16: 0 | N16: =L16 -> 0 | P16: =N16 -> 0 | R16: =P16 -> 0
B17: EBITDA Growth | D17: NA | F17: =+IF(ISERROR('Target IS'!F49/'Target IS'!D49-1),0,'Target IS'!F49/'Target IS'!D49-1) -> 0.05815093107 | G17: =+IF(ISERROR('Target IS'!G49/'Target IS'!E49-1),0,'Target IS'!G49/'Target IS'!E49-1) -> 0 | H17: =+IF(ISERROR('Target IS'!H49/'Target IS'!F49-1),0,'Target IS'!H49/'Target IS'!F49-1) -> 0.02686014202 | I17: =+IF(ISERROR('Target IS'!I49/'Target IS'!G49-1),0,'Target IS'!I49/'Target IS'!G49-1) -> 0 | J17: =+IF(ISERROR('Target IS'!J49/'Target IS'!H49-1),0,'Target IS'!J49/'Target IS'!H49-1) -> 0.2084481058 | K17: =+IF(ISERROR('Target IS'!K49/'Target IS'!I49-1),0,'Target IS'!K49/'Target IS'!I49-1) -> 0 | L17: =+IF(ISERROR('Target IS'!L49/'Target IS'!J49-1),0,'Target IS'!L49/'Target IS'!J49-1) -> 0.1292253394 | M17: =+IF(ISERROR('Target IS'!M49/'Target IS'!K49-1),0,'Target IS'!M49/'Target IS'!K49-1) -> 0 | N17: =+IF(ISERROR('Target IS'!N49/'Target IS'!L49-1),0,'Target IS'!N49/'Target IS'!L49-1) -> 0.1238114016 | O17: =+IF(ISERROR('Target IS'!O49/'Target IS'!M49-1),0,'Target IS'!O49/'Target IS'!M49-1) -> 0 | P17: =+IF(ISERROR('Target IS'!P49/'Target IS'!N49-1),0,'Target IS'!P49/'Target IS'!N49-1) -> 0.1191279035 | Q17: =+IF(ISERROR('Target IS'!Q49/'Target IS'!O49-1),0,'Target IS'!Q49/'Target IS'!O49-1) -> 0 | R17: =+IF(ISERROR('Target IS'!R49/'Target IS'!P49-1),0,'Target IS'!R49/'Target IS'!P49-1) -> 0.1150397392
B18: EBITDA Margin | D18: =+IF(ISERROR('Target IS'!D49/'Target IS'!D9),0,'Target IS'!D49/'Target IS'!D9) -> 0.170619548 | E18: =+IF(ISERROR('Target IS'!E49/'Target IS'!E9),0,'Target IS'!E49/'Target IS'!E9) -> 0 | F18: =+IF(ISERROR('Target IS'!F49/'Target IS'!F9),0,'Target IS'!F49/'Target IS'!F9) -> 0.1715708345 | G18: =+IF(ISERROR('Target IS'!G49/'Target IS'!G9),0,'Target IS'!G49/'Target IS'!G9) -> 0 | H18: =+IF(ISERROR('Target IS'!H49/'Target IS'!H9),0,'Target IS'!H49/'Target IS'!H9) -> 0.1751217586 | I18: =+IF(ISERROR('Target IS'!I49/'Target IS'!I9),0,'Target IS'!I49/'Target IS'!I9) -> 0 | J18: =+IF(ISERROR('Target IS'!J49/'Target IS'!J9),0,'Target IS'!J49/'Target IS'!J9) -> 0.1977808948 | K18: =+IF(ISERROR('Target IS'!K49/'Target IS'!K9),0,'Target IS'!K49/'Target IS'!K9) -> 0 | L18: =+IF(ISERROR('Target IS'!L49/'Target IS'!L9),0,'Target IS'!L49/'Target IS'!L9) -> 0.2087282225 | M18: =+IF(ISERROR('Target IS'!M49/'Target IS'!M9),0,'Target IS'!M49/'Target IS'!M9) -> 0 | N18: =+IF(ISERROR('Target IS'!N49/'Target IS'!N9),0,'Target IS'!N49/'Target IS'!N9) -> 0.2192253797 | O18: =+IF(ISERROR('Target IS'!O49/'Target IS'!O9),0,'Target IS'!O49/'Target IS'!O9) -> 0 | P18: =+IF(ISERROR('Target IS'!P49/'Target IS'!P9),0,'Target IS'!P49/'Target IS'!P9) -> 0.2292908781 | Q18: =+IF(ISERROR('Target IS'!Q49/'Target IS'!Q9),0,'Target IS'!Q49/'Target IS'!Q9) -> 0 | R18: =+IF(ISERROR('Target IS'!R49/'Target IS'!R9),0,'Target IS'!R49/'Target IS'!R9) -> 0.2389424682
B20: Balance Sheet
B22: Receivable Days | D22: =+IF(ISERROR(('Target BS'!D10/'Target IS'!D9)*365),0,('Target BS'!D10/'Target IS'!D9)*365) -> 59.76352387 | E22: =+IF(ISERROR(('Target BS'!E10/'Target IS'!E9)*365),0,('Target BS'!E10/'Target IS'!E9)*365) -> 0 | F22: =+IF(ISERROR(('Target BS'!F10/'Target IS'!F9)*365),0,('Target BS'!F10/'Target IS'!F9)*365) -> 61.5793098 | G22: =+IF(ISERROR(('Target BS'!G10/'Target IS'!G9)*365),0,('Target BS'!G10/'Target IS'!G9)*365) -> 0 | H22: =+IF(ISERROR(('Target BS'!H10/'Target IS'!H9)*365),0,('Target BS'!H10/'Target IS'!H9)*365) -> 67.00394893 | J22: 59 | K22: =('Target BS'!K10/'Target IS'!K9)*365 ->  | L22: =J22 -> 59 | M22: =K22 ->  | N22: 59 | P22: 59 | R22: 59
B23: Inventory Days | D23: =+IF(ISERROR(('Target BS'!D11/'Target IS'!D11)*365),0,('Target BS'!D11/'Target IS'!D11)*365) -> 79.57591093 | E23: =+IF(ISERROR(('Target BS'!E11/'Target IS'!E11)*365),0,('Target BS'!E11/'Target IS'!E11)*365) -> 0 | F23: =+IF(ISERROR(('Target BS'!F11/'Target IS'!F11)*365),0,('Target BS'!F11/'Target IS'!F11)*365) -> 82.80812871 | G23: =+IF(ISERROR(('Target BS'!G11/'Target IS'!G11)*365),0,('Target BS'!G11/'Target IS'!G11)*365) -> 0 | H23: =+IF(ISERROR(('Target BS'!H11/'Target IS'!H11)*365),0,('Target BS'!H11/'Target IS'!H11)*365) -> 88.5027943 | J23: 84 | K23: =('Target BS'!K11/'Target IS'!K11)*365 ->  | L23: 84 | N23: 84 | P23: 84 | R23: 84
B24: Oth Cur Assets % of Sales | D24: =+IF(ISERROR('Target BS'!D12/'Target IS'!D9),0,'Target BS'!D12/'Target IS'!D9) -> 0.07831442825 | E24: =+IF(ISERROR('Target BS'!E12/'Target IS'!E9),0,'Target BS'!E12/'Target IS'!E9) -> 0 | F24: =+IF(ISERROR('Target BS'!F12/'Target IS'!F9),0,'Target BS'!F12/'Target IS'!F9) -> 0.05206981487 | G24: =+IF(ISERROR('Target BS'!G12/'Target IS'!G9),0,'Target BS'!G12/'Target IS'!G9) -> 0 | H24: =+IF(ISERROR('Target BS'!H12/'Target IS'!H9),0,'Target BS'!H12/'Target IS'!H9) -> 0.06531525602 | J24: 0.055 | K24: ='Target BS'!K12/'Target IS'!K9 ->  | L24: 0.055 | N24: 0.055 | P24: 0.055 | R24: 0.055
B25: Accounts Payable Days | D25: =+IF(ISERROR(('Target BS'!D29/'Target IS'!D11)*365),0,('Target BS'!D29/'Target IS'!D11)*365) -> 42.95276653 | E25: =+IF(ISERROR(('Target BS'!E29/'Target IS'!E11)*365),0,('Target BS'!E29/'Target IS'!E11)*365) -> 0 | F25: =+IF(ISERROR(('Target BS'!F29/'Target IS'!F11)*365),0,('Target BS'!F29/'Target IS'!F11)*365) -> 39.09227352 | G25: =+IF(ISERROR(('Target BS'!G29/'Target IS'!G11)*365),0,('Target BS'!G29/'Target IS'!G11)*365) -> 0 | H25: =+IF(ISERROR(('Target BS'!H29/'Target IS'!H11)*365),0,('Target BS'!H29/'Target IS'!H11)*365) -> 40.92842978 | J25: 40 | K25: =56.7 -> 56.7 | L25: 40 | M25: 56.7 | N25: 40 | O25: 56.7 | P25: 40 | Q25: 56.7 | R25: 40
B26: Oth Cur Liab % of COGS | D26: =+IF(ISERROR('Target BS'!D30/'Target IS'!D11),0,'Target BS'!D30/'Target IS'!D11) -> 0.6558704453 | E26: =+IF(ISERROR('Target BS'!E30/'Target IS'!E11),0,'Target BS'!E30/'Target IS'!E11) -> 0 | F26: =+IF(ISERROR('Target BS'!F30/'Target IS'!F11),0,'Target BS'!F30/'Target IS'!F11) -> 0.7911988954 | G26: =+IF(ISERROR('Target BS'!G30/'Target IS'!G11),0,'Target BS'!G30/'Target IS'!G11) -> 0 | H26: =+IF(ISERROR('Target BS'!H30/'Target IS'!H11),0,'Target BS'!H30/'Target IS'!H11) -> 0.6044107926 | J26: 0.68 | K26: ='Target BS'!K30/'Target IS'!K11 ->  | L26: 0.68 | N26: 0.68 | P26: 0.68 | R26: 0.68
B27: Change in Other Assets | D27: NA | F27: ='Target BS'!F25-'Target BS'!D25 -> -36.6 | H27: ='Target BS'!H25-'Target BS'!F25 -> -4.4 | J27: 0 | L27: 0 | N27: =L27 -> 0 | P27: =N27 -> 0 | R27: =P27 -> 0
B28: Change in Other LT Liabilities | D28: NA | F28: ='Target BS'!F41-'Target BS'!D41 -> -232 | H28: ='Target BS'!H41-'Target BS'!F41 -> 59.8 | J28: 0 | L28: 0 | N28: =L28 -> 0 | P28: =N28 -> 0 | R28: =P28 -> 0
B29: Working Capital/Sales (Excl Cash & Debt) | D29: =+IF(ISERROR((SUM('Target BS'!D10:D12)-SUM('Target BS'!D29:D30))/'Target IS'!D9),0,(SUM('Target BS'!D10:D12)-SUM('Target BS'!D29:D30))/'Target IS'!D9) -> 0.01259719629 | E29: =+IF(ISERROR((SUM('Target BS'!E10:E12)-SUM('Target BS'!E29:E30))/'Target IS'!E9),0,(SUM('Target BS'!E10:E12)-SUM('Target BS'!E29:E30))/'Target IS'!E9) -> 0 | F29: =+IF(ISERROR((SUM('Target BS'!F10:F12)-SUM('Target BS'!F29:F30))/'Target IS'!F9),0,(SUM('Target BS'!F10:F12)-SUM('Target BS'!F29:F30))/'Target IS'!F9) -> -0.07542972164 | G29: =+IF(ISERROR((SUM('Target BS'!G10:G12)-SUM('Target BS'!G29:G30))/'Target IS'!G9),0,(SUM('Target BS'!G10:G12)-SUM('Target BS'!G29:G30))/'Target IS'!G9) -> 0 | H29: =+IF(ISERROR((SUM('Target BS'!H10:H12)-SUM('Target BS'!H29:H30))/'Target IS'!H9),0,(SUM('Target BS'!H10:H12)-SUM('Target BS'!H29:H30))/'Target IS'!H9) -> 0.04120047387 | I29: =+IF(ISERROR((SUM('Target BS'!I10:I12)-SUM('Target BS'!I29:I30))/'Target IS'!I9),0,(SUM('Target BS'!I10:I12)-SUM('Target BS'!I29:I30))/'Target IS'!I9) -> 0 | J29: =+IF(ISERROR((SUM('Target BS'!J10:J12)-SUM('Target BS'!J29:J30))/'Target IS'!J9),0,(SUM('Target BS'!J10:J12)-SUM('Target BS'!J29:J30))/'Target IS'!J9) -> -0.02727726027 | K29: =+IF(ISERROR((SUM('Target BS'!K10:K12)-SUM('Target BS'!K29:K30))/'Target IS'!K9),0,(SUM('Target BS'!K10:K12)-SUM('Target BS'!K29:K30))/'Target IS'!K9) -> 0 | L29: =+IF(ISERROR((SUM('Target BS'!L10:L12)-SUM('Target BS'!L29:L30))/'Target IS'!L9),0,(SUM('Target BS'!L10:L12)-SUM('Target BS'!L29:L30))/'Target IS'!L9) -> -0.02727726027 | M29: =+IF(ISERROR((SUM('Target BS'!M10:M12)-SUM('Target BS'!M29:M30))/'Target IS'!M9),0,(SUM('Target BS'!M10:M12)-SUM('Target BS'!M29:M30))/'Target IS'!M9) -> 0 | N29: =+IF(ISERROR((SUM('Target BS'!N10:N12)-SUM('Target BS'!N29:N30))/'Target IS'!N9),0,(SUM('Target BS'!N10:N12)-SUM('Target BS'!N29:N30))/'Target IS'!N9) -> -0.02727726027 | O29: =+IF(ISERROR((SUM('Target BS'!O10:O12)-SUM('Target BS'!O29:O30))/'Target IS'!O9),0,(SUM('Target BS'!O10:O12)-SUM('Target BS'!O29:O30))/'Target IS'!O9) -> 0 | P29: =+IF(ISERROR((SUM('Target BS'!P10:P12)-SUM('Target BS'!P29:P30))/'Target IS'!P9),0,(SUM('Target BS'!P10:P12)-SUM('Target BS'!P29:P30))/'Target IS'!P9) -> -0.02727726027 | Q29: =+IF(ISERROR((SUM('Target BS'!Q10:Q12)-SUM('Target BS'!Q29:Q30))/'Target IS'!Q9),0,(SUM('Target BS'!Q10:Q12)-SUM('Target BS'!Q29:Q30))/'Target IS'!Q9) -> 0 | R29: =+IF(ISERROR((SUM('Target BS'!R10:R12)-SUM('Target BS'!R29:R30))/'Target IS'!R9),0,(SUM('Target BS'!R10:R12)-SUM('Target BS'!R29:R30))/'Target IS'!R9) -> -0.02727726027
B31: Cash Flow
B33: Capital Expenditures | D33: 26.7 | F33: 13.8 | H33: 10.3 | J33: =J34*'Target IS'!J9 -> 16.25758 | L33: =L34*'Target IS'!L9 -> 17.3956106 | N33: =N34*'Target IS'!N9 -> 18.61330334 | P33: =P34*'Target IS'!P9 -> 19.91623458 | R33: =R34*'Target IS'!R9 -> 21.310371
B34: Capex as a % of Sales | D34: =+IF(ISERROR(D33/'Target IS'!D9),0,D33/'Target IS'!D9) -> 0.007441264179 | E34: =+IF(ISERROR(E33/'Target IS'!E9),0,E33/'Target IS'!E9) -> 0 | F34: =+IF(ISERROR(F33/'Target IS'!F9),0,F33/'Target IS'!F9) -> 0.0036549514 | G34: =+IF(ISERROR(G33/'Target IS'!G9),0,G33/'Target IS'!G9) -> 0 | H34: =+IF(ISERROR(H33/'Target IS'!H9),0,H33/'Target IS'!H9) -> 0.002711596683 | J34: 0.004 | L34: =J34 -> 0.004 | N34: =L34 -> 0.004 | P34: =N34 -> 0.004 | R34: =P34 -> 0.004
B35: Depreciation | D35: 123 | F35: 123.6 | H35: 126 | J35: =J36*'Target IS'!J9 -> 130.06064 | K35: =K36*'Target IS'!K9 -> 0 | L35: =L36*'Target IS'!L9 -> 139.1648848 | N35: =N36*'Target IS'!N9 -> 148.9064267 | P35: =P36*'Target IS'!P9 -> 159.3298766 | R35: =R36*'Target IS'!R9 -> 170.482968
B36: Depreciation as a % of Sales | D36: =+IF(ISERROR(D35/'Target IS'!D9),0,D35/'Target IS'!D9) -> 0.03427998105 | E36: =+IF(ISERROR(E35/'Target IS'!E9),0,E35/'Target IS'!E9) -> 0 | F36: =+IF(ISERROR(F35/'Target IS'!F9),0,F35/'Target IS'!F9) -> 0.03273565167 | G36: =+IF(ISERROR(G35/'Target IS'!G9),0,G35/'Target IS'!G9) -> 0 | H36: =+IF(ISERROR(H35/'Target IS'!H9),0,H35/'Target IS'!H9) -> 0.03317098855 | J36: 0.032 | L36: =J36 -> 0.032 | N36: =L36 -> 0.032 | P36: =N36 -> 0.032 | R36: =P36 -> 0.032
B37: Goodwill Amortization (Pre-6/2001) | D37: 0 | F37: 0 | H37: 0 | J37: 0 | L37: =J37 -> 0 | N37: =L37 -> 0 | P37: =N37 -> 0 | R37: =P37 -> 0
B38: Amortization of Intangibles | D38: 299.6 | F38: 313.9 | H38: 302.9 | J38: 300 | L38: 300 | N38: 300 | P38: 300 | R38: 300
B39: Retirement of Senior Debt | D39: 2320.2 | F39: 350.4 | H39: 450 | J39: 300 | L39: 300 | N39: 300 | P39: 300 | R39: 300
B40: Retirement of Subordinated Debt | D40: 0 | F40: 0 | H40: 0 | J40: 0 | L40: 0 | N40: 0 | P40: 0 | R40: 0
B41: Chg in Deferred Taxes - Asset | D41: NA | F41: ='Target BS'!F23-'Target BS'!D23 -> 2 | H41: ='Target BS'!H23-'Target BS'!F23 -> -5.8 | J41: 0 | L41: 0 | N41: 0 | P41: 0 | R41: 0
B42: Chg in Deferred Taxes - Liab | D42: NA | F42: ='Target BS'!F40-'Target BS'!D40 -> -147.4 | H42: ='Target BS'!H40-'Target BS'!F40 -> -123.2 | J42: 0 | L42: 0 | N42: 0 | P42: 0 | R42: 0
B43: Dividend from Affiliates | D43: 0 | F43: 0 | H43: 0 | J43: 0 | L43: =L44*-'Target IS'!L23 -> 0 | N43: =N44*-'Target IS'!N23 -> 0 | P43: =P44*-'Target IS'!P23 -> 0 | R43: =R44*-'Target IS'!R23 -> 0
B44: Payout Ratio of Affiliates | D44: =IF('Target IS'!D23=0,0,D43/-'Target IS'!D23) -> 0 | F44: =IF('Target IS'!F23=0,0,F43/-'Target IS'!F23) -> 0 | H44: =IF('Target IS'!H23=0,0,H43/-'Target IS'!H23) -> 0 | J44: 0 | L44: =J44 -> 0 | N44: =L44 -> 0 | P44: =N44 -> 0 | R44: =P44 -> 0
B45: Dividends per Share | D45: 0 | F45: 0 | H45: 0 | J45: 0 | L45: =IF(L46=0,0,L46*'Target IS'!L53) -> 0 | N45: =IF(N46=0,0,N46*'Target IS'!N53) -> 0 | P45: =IF(P46=0,0,P46*'Target IS'!P53) -> 0 | R45: =IF(R46=0,0,R46*'Target IS'!R53) -> 0
B46: Dividend Payout Ratio | D46: 0 | F46: =+IF(ISERROR(F45/'Target IS'!F53),0,F45/'Target IS'!F53) -> 0 | G46: =+IF(ISERROR(G45/'Target IS'!G53),0,G45/'Target IS'!G53) -> 0 | H46: =+IF(ISERROR(H45/'Target IS'!H53),0,H45/'Target IS'!H53) -> 0 | J46: 0 | L46: =J46 -> 0 | N46: =L46 -> 0 | P46: =N46 -> 0 | R46: =P46 -> 0
B47: Dividends Paid | D47: =D45*D53 -> 0 | F47: =F45*F53 -> 0 | H47: =H45*H53 -> 0 | J47: =J45*J53 -> 0 | L47: =L45*L53 -> 0 | N47: =N45*N53 -> 0 | P47: =P45*P53 -> 0 | R47: =R45*R53 -> 0
B48: Effective Tax Rate | D48: =+IF(ISERROR('Target IS'!D31/'Target IS'!D28),0,'Target IS'!D31/'Target IS'!D28) -> 3.388297872 | E48: =+IF(ISERROR('Target IS'!E31/'Target IS'!E28),0,'Target IS'!E31/'Target IS'!E28) -> 0 | F48: =+IF(ISERROR('Target IS'!F31/'Target IS'!F28),0,'Target IS'!F31/'Target IS'!F28) -> 2.449029126 | G48: =+IF(ISERROR('Target IS'!G31/'Target IS'!G28),0,'Target IS'!G31/'Target IS'!G28) -> 0 | H48: =+IF(ISERROR('Target IS'!H31/'Target IS'!H28),0,'Target IS'!H31/'Target IS'!H28) -> 0.9854227405 | J48: 0.4 | L48: =J48 -> 0.4 | N48: =L48 -> 0.4 | P48: =N48 -> 0.4 | R48: =P48 -> 0.4
B49: Marginal Tax Rate | D49: 0.38 | F49: =D49 -> 0.38 | H49: =F49 -> 0.38 | J49: 0.4 | L49: =J49 -> 0.4 | N49: =L49 -> 0.4 | P49: =N49 -> 0.4 | R49: =P49 -> 0.4
B51: Other
B53: Shares Outstanding - Basic | D53: 0 | F53: 0 | H53: 170.8 | J53: 170.8 | L53: =J53 -> 170.8 | N53: =L53 -> 170.8 | P53: =N53 -> 170.8 | R53: =P53 -> 170.8
B54: Shares Outstanding - Diluted | D54: 0 | F54: 0 | H54: 174.5 | J54: 174.5 | L54: =J54 -> 174.5 | N54: =L54 -> 174.5 | P54: =N54 -> 174.5 | R54: =P54 -> 174.5
B55: Revolving Credit Facility Rate | D55: 0 | F55: 0 | H55: 0 | J55: 0.02 | L55: =J55 -> 0.02 | N55: =L55 -> 0.02 | P55: =N55 -> 0.02 | R55: =P55 -> 0.02
B56: Senior Debt Rate | D56: 0 | F56: 0 | H56: 0 | J56: 0.05 | L56: =J56 -> 0.05 | N56: =L56 -> 0.05 | P56: =N56 -> 0.05 | R56: =P56 -> 0.05
B57: Subordinated Debt | D57: 0 | F57: 0 | H57: 0 | J57: 0.1 | L57: =J57 -> 0.1 | N57: =L57 -> 0.1 | P57: =N57 -> 0.1 | R57: =P57 -> 0.1
B58: Average Interest Rate | D58: NA | F58: =IF(AVERAGE('Target BS'!D38:F38)=0,0,'Target IS'!F26/AVERAGE('Target BS'!D38:F38)) -> 0.06451356138 | H58: =IF(AVERAGE('Target BS'!F38:H38)=0,0,'Target IS'!H26/AVERAGE('Target BS'!F38:H38)) -> 0.05435879437 | J58: =IF(AVERAGE('Target BS'!H38:J38)=0,0,'Target IS'!J26/AVERAGE('Target BS'!H38:J38)) -> 0.05 | L58: =IF(AVERAGE('Target BS'!J38:L38)=0,0,'Target IS'!L26/AVERAGE('Target BS'!J38:L38)) -> 0.05 | N58: =IF(AVERAGE('Target BS'!L38:N38)=0,0,'Target IS'!N26/AVERAGE('Target BS'!L38:N38)) -> 0.05 | P58: =IF(AVERAGE('Target BS'!N38:P38)=0,0,'Target IS'!P26/AVERAGE('Target BS'!N38:P38)) -> 0.05 | R58: =IF(AVERAGE('Target BS'!P38:R38)=0,0,'Target IS'!R26/AVERAGE('Target BS'!P38:R38)) -> 0.05
B59: Marketable Securities Rate | D59: 0 | F59: 0 | H59: 0 | J59: 0 | L59: =J59 -> 0 | N59: =L59 -> 0 | P59: =N59 -> 0 | R59: =P59 -> 0

Sheet Target IS
A1: ='Target Assumptions'!A1 -> Life Technologies (Target) | S1: Income Statement
A2: ($Millions, except per share data)
D6: ='Target Assumptions'!D6 -> Actual | J6: ='Target Assumptions'!J6 -> Projections for the Period Ending December 31, | U6: 1 | V6: 0 = circ off
D7: ='Target Assumptions'!D7 -> 2011 | F7: ='Target Assumptions'!F7 -> 2012 | H7: ='Target Assumptions'!H7 -> 2013 | J7: ='Target Assumptions'!J7 -> 2014 | L7: ='Target Assumptions'!L7 -> 2015 | N7: ='Target Assumptions'!N7 -> 2016 | P7: ='Target Assumptions'!P7 -> 2017 | R7: ='Target Assumptions'!R7 -> 2018 | V7: 1 = circ on
B9: Sales | D9: 3588.1 | F9: 3775.7 | H9: 3798.5 | J9: =H9*(1+'Target Assumptions'!J11) -> 4064.395 | L9: =J9*(1+'Target Assumptions'!L11) -> 4348.90265 | N9: =L9*(1+'Target Assumptions'!N11) -> 4653.325836 | P9: =N9*(1+'Target Assumptions'!P11) -> 4979.058644 | R9: =P9*(1+'Target Assumptions'!R11) -> 5327.592749
B11: Cost of Goods Sold | D11: =1188.2+293.8 -> 1482 | F11: =1357+308.7 -> 1665.7 | H11: =1372.3+291.8 -> 1664.1 | J11: =J9*'Target Assumptions'!J12 -> 1772.07622 | L11: =L9*'Target Assumptions'!L12 -> 1896.121555 | N11: =N9*'Target Assumptions'!N12 -> 2028.850064 | P11: =P9*'Target Assumptions'!P12 -> 2170.869569 | R11: =R9*'Target Assumptions'!R12 -> 2322.830439
B13: Gross Profit | D13: =D9-D11 -> 2106.1 | F13: =F9-F11 -> 2110 | H13: =H9-H11 -> 2134.4 | J13: =J9-J11 -> 2292.31878 | L13: =L9-L11 -> 2452.781095 | N13: =N9-N11 -> 2624.475771 | P13: =P9-P11 -> 2808.189075 | R13: =R9-R11 -> 3004.76231
B15: SG&A | D15: 1023.2 | E15: 1009 | F15: 1009 | H15: 1054.6 | J15: =H15*(1+'Target Assumptions'!J13) -> 1082.0196 | L15: =J15*(1+'Target Assumptions'!L13) -> 1110.15211 | N15: =L15*(1+'Target Assumptions'!N13) -> 1139.016064 | P15: =N15*(1+'Target Assumptions'!P13) -> 1168.630482 | R15: =P15*(1+'Target Assumptions'!R13) -> 1199.014875
B16: Other Operating Expense | D16: =375.5+1.7+93.5 -> 470.7 | F16: =377.9+75.3 -> 453.2 | H16: =341.9+72.7 -> 414.6 | J16: =J9*'Target Assumptions'!J14 -> 406.4395 | L16: =L9*'Target Assumptions'!L14 -> 434.890265 | N16: =N9*'Target Assumptions'!N14 -> 465.3325836 | P16: =P9*'Target Assumptions'!P14 -> 497.9058644 | R16: =R9*'Target Assumptions'!R14 -> 532.7592749
B17: Depreciation | D17: ='Target Assumptions'!D35 -> 123 | E17: ='Target Assumptions'!E35 -> 0 | F17: ='Target Assumptions'!F35 -> 123.6 | H17: ='Target Assumptions'!H35 -> 126 | J17: ='Target Assumptions'!J35 -> 130.06064 | L17: ='Target Assumptions'!L35 -> 139.1648848 | N17: ='Target Assumptions'!N35 -> 148.9064267 | P17: ='Target Assumptions'!P35 -> 159.3298766 | R17: ='Target Assumptions'!R35 -> 170.482968
B18: Amortization | D18: ='Target Assumptions'!D37+'Target Assumptions'!D38 -> 299.6 | F18: ='Target Assumptions'!F37+'Target Assumptions'!F38 -> 313.9 | H18: ='Target Assumptions'!H37+'Target Assumptions'!H38 -> 302.9 | J18: ='Target Assumptions'!J37+'Target Assumptions'!J38 -> 300 | L18: ='Target Assumptions'!L37+'Target Assumptions'!L38 -> 300 | N18: ='Target Assumptions'!N37+'Target Assumptions'!N38 -> 300 | P18: ='Target Assumptions'!P37+'Target Assumptions'!P38 -> 300 | R18: ='Target Assumptions'!R37+'Target Assumptions'!R38 -> 300
B20: EBIT | D20: =D13-SUM(D15:D18) -> 189.6 | F20: =F13-SUM(F15:F18) -> 210.3 | H20: =H13-SUM(H15:H18) -> 236.3 | J20: =J13-SUM(J15:J18) -> 373.79904 | L20: =L13-SUM(L15:L18) -> 468.5738352 | N20: =N13-SUM(N15:N18) -> 571.2206965 | P20: =P13-SUM(P15:P18) -> 682.3228521 | R20: =R13-SUM(R15:R18) -> 802.5051929
B22: Unusual (Gain) Loss | D22: -37.2 | F22: 0 | H22: 0 | J22: 0 | L22: 0 | N22: 0 | P22: 0 | R22: 0
B23: (Income) from Affiliates | F23: 0 | H23: 0 | J23: =H23*(1+'Target Assumptions'!J15) -> 0 | L23: =J23*(1+'Target Assumptions'!L15) -> 0 | N23: =L23*(1+'Target Assumptions'!N15) -> 0 | P23: =N23*(1+'Target Assumptions'!P15) -> 0 | R23: =P23*(1+'Target Assumptions'!R15) -> 0
B24: Other Expense (Income) | D24: =5.9+54.1 -> 60 | F24: 10.9 | H24: 11.9 | J24: 0 | L24: 0 | N24: 0 | P24: 0 | R24: 0
B25: Interest (Income) | D25: -4.3 | F25: -3.9 | G25: 2.4 | H25: -2.4 | J25: =IF($U$6=0,0,-'Target Assumptions'!J59*AVERAGE('Target BS'!H9:J9)) -> 0 | L25: =IF($U$6=0,0,-'Target Assumptions'!L59*AVERAGE('Target BS'!J9:L9)) -> 0 | N25: =IF($U$6=0,0,-'Target Assumptions'!N59*AVERAGE('Target BS'!L9:N9)) -> 0 | P25: =IF($U$6=0,0,-'Target Assumptions'!P59*AVERAGE('Target BS'!N9:P9)) -> 0 | R25: =IF($U$6=0,0,-'Target Assumptions'!R59*AVERAGE('Target BS'!P9:R9)) -> 0
B26: Interest Expense | D26: 152.3 | F26: 162.1 | H26: 123.9 | J26: =IF($U$6=0,0,'Target Assumptions'!J55*AVERAGE('Target BS'!H34:J34)+'Target Assumptions'!J56*AVERAGE('Target BS'!H35:J35)+'Target Assumptions'!J57*AVERAGE('Target BS'!H36:J36)) -> 105.545 | L26: =IF($U$6=0,0,'Target Assumptions'!L55*AVERAGE('Target BS'!J34:L34)+'Target Assumptions'!L56*AVERAGE('Target BS'!J35:L35)+'Target Assumptions'!L57*AVERAGE('Target BS'!J36:L36)) -> 90.545 | N26: =IF($U$6=0,0,'Target Assumptions'!N55*AVERAGE('Target BS'!L34:N34)+'Target Assumptions'!N56*AVERAGE('Target BS'!L35:N35)+'Target Assumptions'!N57*AVERAGE('Target BS'!L36:N36)) -> 75.545 | P26: =IF($U$6=0,0,'Target Assumptions'!P55*AVERAGE('Target BS'!N34:P34)+'Target Assumptions'!P56*AVERAGE('Target BS'!N35:P35)+'Target Assumptions'!P57*AVERAGE('Target BS'!N36:P36)) -> 60.545 | R26: =IF($U$6=0,0,'Target Assumptions'!R55*AVERAGE('Target BS'!P34:R34)+'Target Assumptions'!R56*AVERAGE('Target BS'!P35:R35)+'Target Assumptions'!R57*AVERAGE('Target BS'!P36:R36)) -> 45.545
B28: Earnings before Taxes | D28: =D20-SUM(D22:D26) -> 18.8 | F28: =F20-SUM(F22:F26) -> 41.2 | H28: =H20-SUM(H22:H26) -> 102.9 | J28: =J20-SUM(J22:J26) -> 268.25404 | L28: =L20-SUM(L22:L26) -> 378.0288352 | N28: =N20-SUM(N22:N26) -> 495.6756965 | P28: =P20-SUM(P22:P26) -> 621.7778521 | R28: =R20-SUM(R22:R26) -> 756.9601929
B30: Noncontrolling Interest | D30: 0 | F30: 0 | H30: 0 | J30: ='Target Assumptions'!J16*(J28-J31) -> 0 | L30: ='Target Assumptions'!L16*(L28-L31) -> 0 | N30: ='Target Assumptions'!N16*(N28-N31) -> 0 | P30: ='Target Assumptions'!P16*(P28-P31) -> 0 | R30: ='Target Assumptions'!R16*(R28-R31) -> 0
B31: Taxes | D31: 63.7 | F31: 100.9 | H31: 101.4 | J31: =J28*'Target Assumptions'!J48 -> 107.301616 | L31: =L28*'Target Assumptions'!L48 -> 151.2115341 | N31: =N28*'Target Assumptions'!N48 -> 198.2702786 | P31: =P28*'Target Assumptions'!P48 -> 248.7111408 | R31: =R28*'Target Assumptions'!R48 -> 302.7840772
B33: Net Income before Extra Items | D33: =D28-D30-D31 -> -44.9 | F33: =F28-F30-F31 -> -59.7 | H33: =H28-H30-H31 -> 1.5 | J33: =J28-J30-J31 -> 160.952424 | L33: =L28-L30-L31 -> 226.8173011 | N33: =N28-N30-N31 -> 297.4054179 | P33: =P28-P30-P31 -> 373.0667112 | R33: =R28-R30-R31 -> 454.1761158
B35: Extraordinary Items | D35: 0.6 | F35: 0.7 | H35: 0.4 | J35: 0 | L35: 0 | N35: 0 | P35: 0 | R35: 0
B36: Discontinued Operations | D36: 0 | F36: 0 | H36: 0 | J36: 0 | L36: 0 | N36: 0 | P36: 0 | R36: 0
B38: Net Income after Extra Items | D38: =D33+D35+D36 -> -44.3 | F38: =F33+F35+F36 -> -59 | H38: =H33+H35+H36 -> 1.9 | J38: =J33+J35+J36 -> 160.952424 | L38: =L33+L35+L36 -> 226.8173011 | N38: =N33+N35+N36 -> 297.4054179 | P38: =P33+P35+P36 -> 373.0667112 | R38: =R33+R35+R36 -> 454.1761158
B40: EPS - Basic | D40: =+IF(ISERROR(D33/'Target Assumptions'!D53),0,D33/'Target Assumptions'!D53) -> 0 | E40: =+IF(ISERROR(E33/'Target Assumptions'!E53),0,E33/'Target Assumptions'!E53) -> 0 | F40: =+IF(ISERROR(F33/'Target Assumptions'!F53),0,F33/'Target Assumptions'!F53) -> 0 | G40: =+IF(ISERROR(G33/'Target Assumptions'!G53),0,G33/'Target Assumptions'!G53) -> 0 | H40: =+IF(ISERROR(H33/'Target Assumptions'!H53),0,H33/'Target Assumptions'!H53) -> 0.008782201405 | I40: =+IF(ISERROR(I33/'Target Assumptions'!I53),0,I33/'Target Assumptions'!I53) -> 0 | J40: =+IF(ISERROR(J33/'Target Assumptions'!J53),0,J33/'Target Assumptions'!J53) -> 0.9423444028 | K40: =+IF(ISERROR(K33/'Target Assumptions'!K53),0,K33/'Target Assumptions'!K53) -> 0 | L40: =+IF(ISERROR(L33/'Target Assumptions'!L53),0,L33/'Target Assumptions'!L53) -> 1.327970147 | M40: =+IF(ISERROR(M33/'Target Assumptions'!M53),0,M33/'Target Assumptions'!M53) -> 0 | N40: =+IF(ISERROR(N33/'Target Assumptions'!N53),0,N33/'Target Assumptions'!N53) -> 1.741249519 | O40: =+IF(ISERROR(O33/'Target Assumptions'!O53),0,O33/'Target Assumptions'!O53) -> 0 | P40: =+IF(ISERROR(P33/'Target Assumptions'!P53),0,P33/'Target Assumptions'!P53) -> 2.18423133 | Q40: =+IF(ISERROR(Q33/'Target Assumptions'!Q53),0,Q33/'Target Assumptions'!Q53) -> 0 | R40: =+IF(ISERROR(R33/'Target Assumptions'!R53),0,R33/'Target Assumptions'!R53) -> 2.659110748
B42: EPS - Diluted | D42: =+IF(ISERROR(D33/'Target Assumptions'!D54),0,D33/'Target Assumptions'!D54) -> 0 | E42: =+IF(ISERROR(E33/'Target Assumptions'!E54),0,E33/'Target Assumptions'!E54) -> 0 | F42: =+IF(ISERROR(F33/'Target Assumptions'!F54),0,F33/'Target Assumptions'!F54) -> 0 | G42: =+IF(ISERROR(G33/'Target Assumptions'!G54),0,G33/'Target Assumptions'!G54) -> 0 | H42: =+IF(ISERROR(H33/'Target Assumptions'!H54),0,H33/'Target Assumptions'!H54) -> 0.008595988539 | I42: =+IF(ISERROR(I33/'Target Assumptions'!I54),0,I33/'Target Assumptions'!I54) -> 0 | J42: =+IF(ISERROR(J33/'Target Assumptions'!J54),0,J33/'Target Assumptions'!J54) -> 0.9223634613 | K42: =+IF(ISERROR(K33/'Target Assumptions'!K54),0,K33/'Target Assumptions'!K54) -> 0 | L42: =+IF(ISERROR(L33/'Target Assumptions'!L54),0,L33/'Target Assumptions'!L54) -> 1.299812614 | M42: =+IF(ISERROR(M33/'Target Assumptions'!M54),0,M33/'Target Assumptions'!M54) -> 0 | N42: =+IF(ISERROR(N33/'Target Assumptions'!N54),0,N33/'Target Assumptions'!N54) -> 1.704329042 | O42: =+IF(ISERROR(O33/'Target Assumptions'!O54),0,O33/'Target Assumptions'!O54) -> 0 | P42: =+IF(ISERROR(P33/'Target Assumptions'!P54),0,P33/'Target Assumptions'!P54) -> 2.137918116 | Q42: =+IF(ISERROR(Q33/'Target Assumptions'!Q54),0,Q33/'Target Assumptions'!Q54) -> 0 | R42: =+IF(ISERROR(R33/'Target Assumptions'!R54),0,R33/'Target Assumptions'!R54) -> 2.602728457
B44: Other Financial Data
B46: Depreciation & Amortization | D46: ='Target Assumptions'!D35+'Target Assumptions'!D37+'Target Assumptions'!D38 -> 422.6 | F46: ='Target Assumptions'!F35+'Target Assumptions'!F37+'Target Assumptions'!F38 -> 437.5 | H46: ='Target Assumptions'!H35+'Target Assumptions'!H37+'Target Assumptions'!H38 -> 428.9 | J46: ='Target Assumptions'!J35+'Target Assumptions'!J37+'Target Assumptions'!J38 -> 430.06064 | L46: ='Target Assumptions'!L35+'Target Assumptions'!L37+'Target Assumptions'!L38 -> 439.1648848 | N46: ='Target Assumptions'!N35+'Target Assumptions'!N37+'Target Assumptions'!N38 -> 448.9064267 | P46: ='Target Assumptions'!P35+'Target Assumptions'!P37+'Target Assumptions'!P38 -> 459.3298766 | R46: ='Target Assumptions'!R35+'Target Assumptions'!R37+'Target Assumptions'!R38 -> 470.482968
B47: Capital Expenditures | D47: ='Target Assumptions'!D33 -> 26.7 | F47: ='Target Assumptions'!F33 -> 13.8 | H47: ='Target Assumptions'!H33 -> 10.3 | J47: ='Target Assumptions'!J33 -> 16.25758 | L47: ='Target Assumptions'!L33 -> 17.3956106 | N47: ='Target Assumptions'!N33 -> 18.61330334 | P47: ='Target Assumptions'!P33 -> 19.91623458 | R47: ='Target Assumptions'!R33 -> 21.310371
B49: EBITDA | D49: =D20+D46 -> 612.2 | F49: =F20+F46 -> 647.8 | H49: =H20+H46 -> 665.2 | J49: =J20+J46 -> 803.85968 | L49: =L20+L46 -> 907.73872 | N49: =N20+N46 -> 1020.127123 | P49: =P20+P46 -> 1141.652729 | R49: =R20+R46 -> 1272.988161
B51: EPS (Excluding Unusual Items) | D51: =+IF(ISERROR((D33+D22*(1-'Target Assumptions'!D49))/'Target Assumptions'!D54),0,(D33+D22*(1-'Target Assumptions'!D49))/'Target Assumptions'!D54) -> 0 | E51: =+IF(ISERROR((E33+E22*(1-'Target Assumptions'!E49))/'Target Assumptions'!E54),0,(E33+E22*(1-'Target Assumptions'!E49))/'Target Assumptions'!E54) -> 0 | F51: =+IF(ISERROR((F33+F22*(1-'Target Assumptions'!F49))/'Target Assumptions'!F54),0,(F33+F22*(1-'Target Assumptions'!F49))/'Target Assumptions'!F54) -> 0 | G51: =+IF(ISERROR((G33+G22*(1-'Target Assumptions'!G49))/'Target Assumptions'!G54),0,(G33+G22*(1-'Target Assumptions'!G49))/'Target Assumptions'!G54) -> 0 | H51: =+IF(ISERROR((H33+H22*(1-'Target Assumptions'!H49))/'Target Assumptions'!H54),0,(H33+H22*(1-'Target Assumptions'!H49))/'Target Assumptions'!H54) -> 0.008595988539 | I51: =+IF(ISERROR((I33+I22*(1-'Target Assumptions'!I49))/'Target Assumptions'!I54),0,(I33+I22*(1-'Target Assumptions'!I49))/'Target Assumptions'!I54) -> 0 | J51: =+IF(ISERROR((J33+J22*(1-'Target Assumptions'!J49))/'Target Assumptions'!J54),0,(J33+J22*(1-'Target Assumptions'!J49))/'Target Assumptions'!J54) -> 0.9223634613 | K51: =+IF(ISERROR((K33+K22*(1-'Target Assumptions'!K49))/'Target Assumptions'!K54),0,(K33+K22*(1-'Target Assumptions'!K49))/'Target Assumptions'!K54) -> 0 | L51: =+IF(ISERROR((L33+L22*(1-'Target Assumptions'!L49))/'Target Assumptions'!L54),0,(L33+L22*(1-'Target Assumptions'!L49))/'Target Assumptions'!L54) -> 1.299812614 | M51: =+IF(ISERROR((M33+M22*(1-'Target Assumptions'!M49))/'Target Assumptions'!M54),0,(M33+M22*(1-'Target Assumptions'!M49))/'Target Assumptions'!M54) -> 0 | N51: =+IF(ISERROR((N33+N22*(1-'Target Assumptions'!N49))/'Target Assumptions'!N54),0,(N33+N22*(1-'Target Assumptions'!N49))/'Target Assumptions'!N54) -> 1.704329042 | O51: =+IF(ISERROR((O33+O22*(1-'Target Assumptions'!O49))/'Target Assumptions'!O54),0,(O33+O22*(1-'Target Assumptions'!O49))/'Target Assumptions'!O54) -> 0 | P51: =+IF(ISERROR((P33+P22*(1-'Target Assumptions'!P49))/'Target Assumptions'!P54),0,(P33+P22*(1-'Target Assumptions'!P49))/'Target Assumptions'!P54) -> 2.137918116 | Q51: =+IF(ISERROR((Q33+Q22*(1-'Target Assumptions'!Q49))/'Target Assumptions'!Q54),0,(Q33+Q22*(1-'Target Assumptions'!Q49))/'Target Assumptions'!Q54) -> 0 | R51: =+IF(ISERROR((R33+R22*(1-'Target Assumptions'!R49))/'Target Assumptions'!R54),0,(R33+R22*(1-'Target Assumptions'!R49))/'Target Assumptions'!R54) -> 2.602728457
B53: Cash EPS | F53: =+IF(ISERROR('Target CF'!F27/'Target Assumptions'!F54),0,'Target CF'!F27/'Target Assumptions'!F54) -> 0 | G53: =+IF(ISERROR('Target CF'!G27/'Target Assumptions'!G54),0,'Target CF'!G27/'Target Assumptions'!G54) -> 0 | H53: =+IF(ISERROR('Target CF'!H27/'Target Assumptions'!H54),0,'Target CF'!H27/'Target Assumptions'!H54) -> -0.3604584527 | I53: =+IF(ISERROR('Target CF'!I27/'Target Assumptions'!I54),0,'Target CF'!I27/'Target Assumptions'!I54) -> 0 | J53: =+IF(ISERROR('Target CF'!J27/'Target Assumptions'!J54),0,'Target CF'!J27/'Target Assumptions'!J54) -> 4.919075211 | K53: =+IF(ISERROR('Target CF'!K27/'Target Assumptions'!K54),0,'Target CF'!K27/'Target Assumptions'!K54) -> 0 | L53: =+IF(ISERROR('Target CF'!L27/'Target Assumptions'!L54),0,'Target CF'!L27/'Target Assumptions'!L54) -> 3.860990115 | M53: =+IF(ISERROR('Target CF'!M27/'Target Assumptions'!M54),0,'Target CF'!M27/'Target Assumptions'!M54) -> 0 | N53: =+IF(ISERROR('Target CF'!N27/'Target Assumptions'!N54),0,'Target CF'!N27/'Target Assumptions'!N54) -> 4.324445129 | O53: =+IF(ISERROR('Target CF'!O27/'Target Assumptions'!O54),0,'Target CF'!O27/'Target Assumptions'!O54) -> 0 | P53: =+IF(ISERROR('Target CF'!P27/'Target Assumptions'!P54),0,'Target CF'!P27/'Target Assumptions'!P54) -> 4.82109849 | Q53: =+IF(ISERROR('Target CF'!Q27/'Target Assumptions'!Q54),0,'Target CF'!Q27/'Target Assumptions'!Q54) -> 0 | R53: =+IF(ISERROR('Target CF'!R27/'Target Assumptions'!R54),0,'Target CF'!R27/'Target Assumptions'!R54) -> 5.353387617
B55: Dividends per share | F55: ='Target Assumptions'!F45 -> 0 | H55: ='Target Assumptions'!H45 -> 0 | J55: ='Target Assumptions'!J45 -> 0 | L55: ='Target Assumptions'!L45 -> 0 | N55: ='Target Assumptions'!N45 -> 0 | P55: ='Target Assumptions'!P45 -> 0 | R55: ='Target Assumptions'!R45 -> 0
B57: Dividend-adjusted Cash EPS | F57: =F53-F55 -> 0 | H57: =H53-H55 -> -0.3604584527 | J57: =J53-J55 -> 4.919075211 | L57: =L53-L55 -> 3.860990115 | N57: =N53-N55 -> 4.324445129 | P57: =P53-P55 -> 4.82109849 | R57: =R53-R55 -> 5.353387617

Sheet Target BS
A1: ='Target IS'!A1 -> Life Technologies (Target) | S1: Balance Sheet
A2: ($Millions, except per share data)
D6: ='Target IS'!D6 -> Actual | J6: ='Target IS'!J6 -> Projections for the Period Ending December 31,
D7: ='Target IS'!D7 -> 2011 | F7: ='Target IS'!F7 -> 2012 | H7: ='Target IS'!H7 -> 2013 | J7: ='Target IS'!J7 -> 2014 | L7: ='Target IS'!L7 -> 2015 | N7: ='Target IS'!N7 -> 2016 | P7: ='Target IS'!P7 -> 2017 | R7: ='Target IS'!R7 -> 2018
B9: Cash | D9: =813.6+23.1+18.2 -> 854.9 | E9: 187.3 | F9: =838.8+26.6+16.7 -> 882.1 | H9: =255.5+5.7+15.1 -> 276.3 | J9: ='Target CF'!J52 -> 818.4210443 | L9: ='Target CF'!L52 -> 1174.768209 | N9: ='Target CF'!N52 -> 1610.770581 | P9: ='Target CF'!P52 -> 2132.136032 | R9: ='Target CF'!R52 -> 2744.991801
B10: Accounts Receivable | D10: 587.5 | F10: 637 | H10: 697.3 | J10: =('Target Assumptions'!J22*'Target IS'!J9)/365 -> 656.9843973 | L10: =('Target Assumptions'!L22*'Target IS'!L9)/365 -> 702.9733051 | N10: =('Target Assumptions'!N22*'Target IS'!N9)/365 -> 752.1814364 | P10: =('Target Assumptions'!P22*'Target IS'!P9)/365 -> 804.834137 | R10: =('Target Assumptions'!R22*'Target IS'!R9)/365 -> 861.1725266
B11: Inventory | D11: 323.1 | F11: 377.9 | H11: 403.5 | J11: =('Target Assumptions'!J23*'Target IS'!J11)/365 -> 407.8202808 | L11: =('Target Assumptions'!L23*'Target IS'!L11)/365 -> 436.3677004 | N11: =('Target Assumptions'!N23*'Target IS'!N11)/365 -> 466.9134395 | P11: =('Target Assumptions'!P23*'Target IS'!P11)/365 -> 499.5973802 | R11: =('Target Assumptions'!R23*'Target IS'!R11)/365 -> 534.5691968
B12: Other | D12: =91+190 -> 281 | F12: =40.1+156.5 -> 196.6 | H12: =105.4+142.7 -> 248.1 | J12: ='Target IS'!J9*'Target Assumptions'!J24 -> 223.541725 | L12: ='Target IS'!L9*'Target Assumptions'!L24 -> 239.1896458 | N12: ='Target IS'!N9*'Target Assumptions'!N24 -> 255.932921 | P12: ='Target IS'!P9*'Target Assumptions'!P24 -> 273.8482254 | R12: ='Target IS'!R9*'Target Assumptions'!R24 -> 293.0176012
B14: Current Assets | D14: =SUM(D9:D12) -> 2046.5 | F14: =SUM(F9:F12) -> 2093.6 | H14: =SUM(H9:H12) -> 1625.2 | J14: =SUM(J9:J12) -> 2106.767447 | L14: =SUM(L9:L12) -> 2553.29886 | N14: =SUM(N9:N12) -> 3085.798377 | P14: =SUM(P9:P12) -> 3710.415775 | R14: =SUM(R9:R12) -> 4433.751125
B16: Property, Plant, & Equipment | D16: =22.4+848 -> 870.4 | F16: =25+833.7 -> 858.7 | H16: =844.7+26.7 -> 871.4 | J16: =H16+'Target Assumptions'!J33 -> 887.65758 | L16: =J16+'Target Assumptions'!L33 -> 905.0531906 | N16: =L16+'Target Assumptions'!N33 -> 923.6664939 | P16: =N16+'Target Assumptions'!P33 -> 943.5827285 | R16: =P16+'Target Assumptions'!R33 -> 964.8930995
B17: Accumulated Depreciation | D17: 0 | F17: 0 | H17: 0 | J17: =H17-'Target Assumptions'!J35 -> -130.06064 | L17: =J17-'Target Assumptions'!L35 -> -269.2255248 | N17: =L17-'Target Assumptions'!N35 -> -418.1319515 | P17: =N17-'Target Assumptions'!P35 -> -577.4618281 | R17: =P17-'Target Assumptions'!R35 -> -747.9447961
B19: Net Property, Plant, & Equipment | D19: =SUM(D16:D17) -> 870.4 | F19: =SUM(F16:F17) -> 858.7 | H19: =SUM(H16:H17) -> 871.4 | J19: =SUM(J16:J17) -> 757.59694 | L19: =SUM(L16:L17) -> 635.8276658 | N19: =SUM(N16:N17) -> 505.5345424 | P19: =SUM(P16:P17) -> 366.1209004 | R19: =SUM(R16:R17) -> 216.9483034
B21: Goodwill | D21: 4372.1 | F21: 4366.7 | H21: 4503.4 | J21: =H21-'Target Assumptions'!J37 -> 4503.4 | L21: =J21-'Target Assumptions'!L37 -> 4503.4 | N21: =L21-'Target Assumptions'!N37 -> 4503.4 | P21: =N21-'Target Assumptions'!P37 -> 4503.4 | R21: =P21-'Target Assumptions'!R37 -> 4503.4
B22: Intangible Assets | D22: 2040.2 | F22: 1746.6 | H22: 1525.8 | J22: =H22-'Target Assumptions'!J38 -> 1225.8 | L22: =J22-'Target Assumptions'!L38 -> 925.8 | N22: =L22-'Target Assumptions'!N38 -> 625.8 | P22: =N22-'Target Assumptions'!P38 -> 325.8 | R22: =P22-'Target Assumptions'!R38 -> 25.8
B23: Deferred Taxes | D23: 26.8 | F23: 28.8 | H23: 23 | J23: =H23+'Target Assumptions'!J41 -> 23 | L23: =J23+'Target Assumptions'!L41 -> 23 | N23: =L23+'Target Assumptions'!N41 -> 23 | P23: =N23+'Target Assumptions'!P41 -> 23 | R23: =P23+'Target Assumptions'!R41 -> 23
B24: Equity in Affiliates | D24: 0 | F24: 0 | H24: 0 | J24: =H24-'Target IS'!J23-'Target Assumptions'!J43 -> 0 | L24: =J24-'Target IS'!L23-'Target Assumptions'!L43 -> 0 | N24: =L24-'Target IS'!N23-'Target Assumptions'!N43 -> 0 | P24: =N24-'Target IS'!P23-'Target Assumptions'!P43 -> 0 | R24: =P24-'Target IS'!R23-'Target Assumptions'!R43 -> 0
B25: Other | D25: 130.2 | F25: 93.6 | H25: 89.2 | J25: =H25+'Target Assumptions'!J27 -> 89.2 | L25: =J25+'Target Assumptions'!L27 -> 89.2 | N25: =L25+'Target Assumptions'!N27 -> 89.2 | P25: =N25+'Target Assumptions'!P27 -> 89.2 | R25: =P25+'Target Assumptions'!R27 -> 89.2
B27: Total Assets | D27: =D14+D19+SUM(D21:D25) -> 9486.2 | F27: =F14+F19+SUM(F21:F25) -> 9188 | H27: =H14+H19+SUM(H21:H25) -> 8638 | J27: =J14+J19+SUM(J21:J25) -> 8705.764387 | L27: =L14+L19+SUM(L21:L25) -> 8730.526526 | N27: =N14+N19+SUM(N21:N25) -> 8832.73292 | P27: =P14+P19+SUM(P21:P25) -> 9017.936675 | R27: =R14+R19+SUM(R21:R25) -> 9292.099429
B29: Accounts Payable | D29: 174.4 | F29: 178.4 | H29: 186.6 | J29: =('Target Assumptions'!J25*'Target IS'!J11)/365 -> 194.2001337 | L29: =('Target Assumptions'!L25*'Target IS'!L11)/365 -> 207.7941431 | N29: =('Target Assumptions'!N25*'Target IS'!N11)/365 -> 222.3397331 | P29: =('Target Assumptions'!P25*'Target IS'!P11)/365 -> 237.9035144 | R29: =('Target Assumptions'!R25*'Target IS'!R11)/365 -> 254.5567604
B30: Other | D30: =1146.4-174.4 -> 972 | F30: =1496.3-178.4 -> 1317.9 | H30: =1192.4-186.6 -> 1005.8 | J30: ='Target IS'!J11*'Target Assumptions'!J26 -> 1205.01183 | L30: ='Target IS'!L11*'Target Assumptions'!L26 -> 1289.362658 | N30: ='Target IS'!N11*'Target Assumptions'!N26 -> 1379.618044 | P30: ='Target IS'!P11*'Target Assumptions'!P26 -> 1476.191307 | R30: ='Target IS'!R11*'Target Assumptions'!R26 -> 1579.524698
B32: Current Liabilities | D32: =SUM(D29:D30) -> 1146.4 | F32: =SUM(F29:F30) -> 1496.3 | H32: =SUM(H29:H30) -> 1192.4 | J32: =SUM(J29:J30) -> 1399.211963 | L32: =SUM(L29:L30) -> 1497.156801 | N32: =SUM(N29:N30) -> 1601.957777 | P32: =SUM(P29:P30) -> 1714.094821 | R32: =SUM(R29:R30) -> 1834.081459
B34: Revolving Credit Facility | D34: 0 | F34: 0 | H34: 0 | J34: ='Target CF'!J51 -> 0 | L34: ='Target CF'!L51 -> 0 | N34: ='Target CF'!N51 -> 0 | P34: ='Target CF'!P51 -> 0 | R34: ='Target CF'!R51 -> 0
B35: Senior Debt | D35: 2727.6 | F35: 2297.7 | H35: 2260.9 | J35: =H35-'Target Assumptions'!J39 -> 1960.9 | L35: =J35-'Target Assumptions'!L39 -> 1660.9 | N35: =L35-'Target Assumptions'!N39 -> 1360.9 | P35: =N35-'Target Assumptions'!P39 -> 1060.9 | R35: =P35-'Target Assumptions'!R39 -> 760.9
B36: Subordinated Debt | D36: 0 | F36: 0 | H36: 0 | J36: =H36-'Target Assumptions'!J40 -> 0 | L36: =J36-'Target Assumptions'!L40 -> 0 | N36: =L36-'Target Assumptions'!N40 -> 0 | P36: =N36-'Target Assumptions'!P40 -> 0 | R36: =P36-'Target Assumptions'!R40 -> 0
B38: Total | D38: =SUM(D34:D36) -> 2727.6 | F38: =SUM(F34:F36) -> 2297.7 | H38: =SUM(H34:H36) -> 2260.9 | J38: =SUM(J34:J36) -> 1960.9 | L38: =SUM(L34:L36) -> 1660.9 | N38: =SUM(N34:N36) -> 1360.9 | P38: =SUM(P34:P36) -> 1060.9 | R38: =SUM(R34:R36) -> 760.9
B40: Deferred Taxes | D40: 558 | F40: 410.6 | H40: 287.4 | J40: =H40+'Target Assumptions'!J42 -> 287.4 | L40: =J40+'Target Assumptions'!L42 -> 287.4 | N40: =L40+'Target Assumptions'!N42 -> 287.4 | P40: =N40+'Target Assumptions'!P42 -> 287.4 | R40: =P40+'Target Assumptions'!R42 -> 287.4
B41: Other | D41: =145.2+114.7+356.2 -> 616.1 | F41: =190.6+102.9+90.6 -> 384.1 | H41: =209.6+106.4+127.9 -> 443.9 | J41: =H41+'Target Assumptions'!J28 -> 443.9 | L41: =J41+'Target Assumptions'!L28 -> 443.9 | N41: =L41+'Target Assumptions'!N28 -> 443.9 | P41: =N41+'Target Assumptions'!P28 -> 443.9 | R41: =P41+'Target Assumptions'!R28 -> 443.9
B43: Total Liabilities | D43: =D32+D38+SUM(D40:D41) -> 5048.1 | F43: =F32+F38+SUM(F40:F41) -> 4588.7 | H43: =H32+H38+SUM(H40:H41) -> 4184.6 | J43: =J32+J38+SUM(J40:J41) -> 4091.411963 | L43: =L32+L38+SUM(L40:L41) -> 3889.356801 | N43: =N32+N38+SUM(N40:N41) -> 3694.157777 | P43: =P32+P38+SUM(P40:P41) -> 3506.294821 | R43: =R32+R38+SUM(R40:R41) -> 3326.281459
B45: Common Stock | D45: =2.1+5222.9 -> 5225 | F45: =2.1+5441.1 -> 5443.2 | H45: =2.1+5731.6 -> 5733.7 | J45: =H45 -> 5733.7 | L45: =J45 -> 5733.7 | N45: =L45 -> 5733.7 | P45: =N45 -> 5733.7 | R45: =P45 -> 5733.7
B46: Preferred Equity | D46: 0 | F46: 0 | H46: 0 | J46: =H46 -> 0 | L46: =J46 -> 0 | N46: =L46 -> 0 | P46: =N46 -> 0 | R46: =P46 -> 0
B47: Retained Earnings | D47: 532.5 | F47: 911 | H47: 1341.8 | J47: =H47+'Target IS'!J38+'Target CF'!J37 -> 1502.752424 | L47: =J47+'Target IS'!L38+'Target CF'!L37 -> 1729.569725 | N47: =L47+'Target IS'!N38+'Target CF'!N37 -> 2026.975143 | P47: =N47+'Target IS'!P38+'Target CF'!P37 -> 2400.041854 | R47: =P47+'Target IS'!R38+'Target CF'!R37 -> 2854.21797
B48: Treasury Stock | D48: -1420 | F48: -1820 | H48: =-2682 -> -2682 | J48: =H48 -> -2682 | L48: =J48 -> -2682 | N48: =L48 -> -2682 | P48: =N48 -> -2682 | R48: =P48 -> -2682
B49: Other Adjustments | D49: 96.6 | F49: 65.1 | H49: 59.1 | J49: =H49 -> 59.1 | L49: =J49 -> 59.1 | N49: =L49 -> 59.1 | P49: =N49 -> 59.1 | R49: =P49 -> 59.1
B50: Noncontrolling Interest | D50: 4 | F50: 0 | H50: 0.8 | J50: =H50+'Target IS'!J30 -> 0.8 | L50: =J50+'Target IS'!L30 -> 0.8 | N50: =L50+'Target IS'!N30 -> 0.8 | P50: =N50+'Target IS'!P30 -> 0.8 | R50: =P50+'Target IS'!R30 -> 0.8
B51: Total Stockholders Equity | D51: =SUM(D45:D50) -> 4438.1 | E51: =SUM(E45:E50) -> 0 | F51: 4599.3 | G51: 0 | H51: 4453.4 | J51: =SUM(J45:J50) -> 4614.352424 | K51: =SUM(K45:K50) -> 0 | L51: 4841.169725 | M51: 0 | N51: 5138.575143 | O51: 0 | P51: 5511.641854 | Q51: 0 | R51: 5965.81797
B53: Total Liabilities and Equity | D53: =D43+D51 -> 9486.2 | F53: =F43+F51 -> 9188 | H53: =H43+H51 -> 8638 | J53: =J43+J51 -> 8705.764387 | L53: =L43+L51 -> 8730.526526 | N53: =N43+N51 -> 8832.73292 | P53: =P43+P51 -> 9017.936675 | R53: =R43+R51 -> 9292.099429
B57: Reconciliation | D57: =D53-D27 -> 0 | F57: =F53-F27 -> 0 | H57: =H53-H27 -> 0 | J57: =J53-J27 -> 0 | L57: =L53-L27 -> 0 | N57: =N53-N27 -> 0 | P57: =P53-P27 -> 0 | R57: =R53-R27 -> 0

Sheet Target CF
A1: ='Target BS'!A1 -> Life Technologies (Target) | S1: Statement of Cash Flow
A2: ($Millions, except per share data)
F6: ='Target BS'!D6 -> Actual | J6: ='Target BS'!J6 -> Projections for the Period Ending December 31,
F7: ='Target BS'!F7 -> 2012 | H7: ='Target BS'!H7 -> 2013 | J7: ='Target BS'!J7 -> 2014 | L7: ='Target BS'!L7 -> 2015 | N7: ='Target BS'!N7 -> 2016 | P7: ='Target BS'!P7 -> 2017 | R7: ='Target BS'!R7 -> 2018
B9: Net Income | F9: ='Target IS'!F38 -> -59 | H9: ='Target IS'!H38 -> 1.9 | J9: ='Target IS'!J38 -> 160.952424 | L9: ='Target IS'!L38 -> 226.8173011 | N9: ='Target IS'!N38 -> 297.4054179 | P9: ='Target IS'!P38 -> 373.0667112 | R9: ='Target IS'!R38 -> 454.1761158
B11: Depreciation & Amortization | F11: ='Target IS'!F46 -> 437.5 | H11: ='Target IS'!H46 -> 428.9 | J11: ='Target IS'!J46 -> 430.06064 | L11: ='Target IS'!L46 -> 439.1648848 | N11: ='Target IS'!N46 -> 448.9064267 | P11: ='Target IS'!P46 -> 459.3298766 | R11: ='Target IS'!R46 -> 470.482968
B13: Income from Affiliates, Net of Dividends | F13: ='Target IS'!F23-'Target Assumptions'!F43 -> 0 | H13: ='Target IS'!H23-'Target Assumptions'!H43 -> 0 | J13: ='Target IS'!J23+'Target Assumptions'!J43 -> 0 | L13: ='Target IS'!L23+'Target Assumptions'!L43 -> 0 | N13: ='Target IS'!N23+'Target Assumptions'!N43 -> 0 | P13: ='Target IS'!P23+'Target Assumptions'!P43 -> 0 | R13: ='Target IS'!R23+'Target Assumptions'!R43 -> 0
A15: Change in
B17: Accounts Receivable | F17: ='Target BS'!D10-'Target BS'!F10 -> -49.5 | H17: ='Target BS'!F10-'Target BS'!H10 -> -60.3 | J17: ='Target BS'!H10-'Target BS'!J10 -> 40.31560274 | L17: ='Target BS'!J10-'Target BS'!L10 -> -45.98890781 | N17: ='Target BS'!L10-'Target BS'!N10 -> -49.20813135 | P17: ='Target BS'!N10-'Target BS'!P10 -> -52.65270055 | R17: ='Target BS'!P10-'Target BS'!R10 -> -56.33838959
B18: Inventory | F18: ='Target BS'!D11-'Target BS'!F11 -> -54.8 | H18: ='Target BS'!F11-'Target BS'!H11 -> -25.6 | J18: ='Target BS'!H11-'Target BS'!J11 -> -4.320280767 | L18: ='Target BS'!J11-'Target BS'!L11 -> -28.54741965 | N18: ='Target BS'!L11-'Target BS'!N11 -> -30.54573903 | P18: ='Target BS'!N11-'Target BS'!P11 -> -32.68394076 | R18: ='Target BS'!P11-'Target BS'!R11 -> -34.97181661
B19: Other Current Assets | F19: ='Target BS'!D12-'Target BS'!F12 -> 84.4 | H19: ='Target BS'!F12-'Target BS'!H12 -> -51.5 | J19: ='Target BS'!H12-'Target BS'!J12 -> 24.558275 | L19: ='Target BS'!J12-'Target BS'!L12 -> -15.64792075 | N19: ='Target BS'!L12-'Target BS'!N12 -> -16.7432752 | P19: ='Target BS'!N12-'Target BS'!P12 -> -17.91530447 | R19: ='Target BS'!P12-'Target BS'!R12 -> -19.16937578
B20: Accounts Payable | F20: ='Target BS'!F29-'Target BS'!D29 -> 4 | H20: ='Target BS'!H29-'Target BS'!F29 -> 8.2 | J20: ='Target BS'!J29-'Target BS'!H29 -> 7.600133699 | L20: ='Target BS'!L29-'Target BS'!J29 -> 13.59400936 | N20: ='Target BS'!N29-'Target BS'!L29 -> 14.54559001 | P20: ='Target BS'!P29-'Target BS'!N29 -> 15.56378132 | R20: ='Target BS'!R29-'Target BS'!P29 -> 16.65324601
B21: Other Current Liabilities | F21: ='Target BS'!F30-'Target BS'!D30 -> 345.9 | H21: ='Target BS'!H30-'Target BS'!F30 -> -312.1 | J21: ='Target BS'!J30-'Target BS'!H30 -> 199.2118296 | L21: ='Target BS'!L30-'Target BS'!J30 -> 84.35082807 | N21: ='Target BS'!N30-'Target BS'!L30 -> 90.25538604 | P21: ='Target BS'!P30-'Target BS'!N30 -> 96.57326306 | R21: ='Target BS'!R30-'Target BS'!P30 -> 103.3333915
B22: Other Assets | F22: ='Target BS'!D25-'Target BS'!F25 -> 36.6 | H22: ='Target BS'!F25-'Target BS'!H25 -> 4.4 | J22: ='Target BS'!H25-'Target BS'!J25 -> 0 | L22: ='Target BS'!J25-'Target BS'!L25 -> 0 | N22: ='Target BS'!L25-'Target BS'!N25 -> 0 | P22: ='Target BS'!N25-'Target BS'!P25 -> 0 | R22: ='Target BS'!P25-'Target BS'!R25 -> 0
B23: Deferred Taxes | F23: ='Target BS'!F40-'Target BS'!D40+'Target BS'!D23-'Target BS'!F23 -> -149.4 | H23: ='Target BS'!H40-'Target BS'!F40+'Target BS'!F23-'Target BS'!H23 -> -117.4 | J23: ='Target BS'!J40-'Target BS'!H40+'Target BS'!H23-'Target BS'!J23 -> 0 | L23: ='Target BS'!L40-'Target BS'!J40+'Target BS'!J23-'Target BS'!L23 -> 0 | N23: ='Target BS'!N40-'Target BS'!L40+'Target BS'!L23-'Target BS'!N23 -> 0 | P23: ='Target BS'!P40-'Target BS'!N40+'Target BS'!N23-'Target BS'!P23 -> 0 | R23: ='Target BS'!R40-'Target BS'!P40+'Target BS'!P23-'Target BS'!R23 -> 0
B24: Minority Interest | F24: ='Target BS'!F50-'Target BS'!D50 -> -4 | H24: ='Target BS'!H50-'Target BS'!F50 -> 0.8 | J24: ='Target BS'!J50-'Target BS'!H50 -> 0 | L24: ='Target BS'!L50-'Target BS'!J50 -> 0 | N24: ='Target BS'!N50-'Target BS'!L50 -> 0 | P24: ='Target BS'!P50-'Target BS'!N50 -> 0 | R24: ='Target BS'!R50-'Target BS'!P50 -> 0
B25: OtherLiabilities | F25: ='Target BS'!F41-'Target BS'!D41 -> -232 | H25: ='Target BS'!H41-'Target BS'!F41 -> 59.8 | J25: ='Target BS'!J41-'Target BS'!H41 -> 0 | L25: ='Target BS'!L41-'Target BS'!J41 -> 0 | N25: ='Target BS'!N41-'Target BS'!L41 -> 0 | P25: ='Target BS'!P41-'Target BS'!N41 -> 0 | R25: ='Target BS'!R41-'Target BS'!P41 -> 0
A27: Cash Flow from Operating Activities | F27: =SUM(F9:F25) -> 359.7 | H27: =SUM(H9:H25) -> -62.9 | J27: =SUM(J9:J25) -> 858.3786243 | L27: =SUM(L9:L25) -> 673.7427751 | N27: =SUM(N9:N25) -> 754.6156751 | P27: =SUM(P9:P25) -> 841.2816865 | R27: =SUM(R9:R25) -> 934.1661392
B29: Capital Expenditures | F29: =-'Target IS'!F47 -> -13.8 | H29: =-'Target IS'!H47 -> -10.3 | J29: =-'Target IS'!J47 -> -16.25758 | L29: =-'Target IS'!L47 -> -17.3956106 | N29: =-'Target IS'!N47 -> -18.61330334 | P29: =-'Target IS'!P47 -> -19.91623458 | R29: =-'Target IS'!R47 -> -21.310371
B30: Acquisitions | F30: -0.1 | H30: -149 | J30: 0 | K30: 0 | L30: 0 | M30: 0 | N30: 0 | O30: 0 | P30: 0 | Q30: 0 | R30: 0
B31: Sale of Assets | F31: 3.4 | H31: 25.5 | J31: 0 | L31: 0 | N31: 0 | P31: 0 | R31: 0
A33: Cash Flow from Investing Activities | F33: =SUM(F29:F31) -> -10.5 | H33: =SUM(H29:H31) -> -133.8 | J33: =SUM(J29:J31) -> -16.25758 | L33: =SUM(L29:L31) -> -17.3956106 | N33: =SUM(N29:N31) -> -18.61330334 | P33: =SUM(P29:P31) -> -19.91623458 | R33: =SUM(R29:R31) -> -21.310371
B35: Net Change in Equity | F35: ='Target BS'!F45-'Target BS'!D45+'Target BS'!F46-'Target BS'!D46+'Target BS'!F48-'Target BS'!D48+'Target BS'!F49-'Target BS'!D49 -> -213.3 | H35: ='Target BS'!H45-'Target BS'!F45+'Target BS'!H46-'Target BS'!F46+'Target BS'!H48-'Target BS'!F48+'Target BS'!H49-'Target BS'!F49 -> -577.5 | J35: ='Target BS'!J45-'Target BS'!H45+'Target BS'!J46-'Target BS'!H46+'Target BS'!J48-'Target BS'!H48+'Target BS'!J49-'Target BS'!H49 -> 0 | L35: ='Target BS'!L45-'Target BS'!J45+'Target BS'!L46-'Target BS'!J46+'Target BS'!L48-'Target BS'!J48+'Target BS'!L49-'Target BS'!J49 -> 0 | N35: ='Target BS'!N45-'Target BS'!L45+'Target BS'!N46-'Target BS'!L46+'Target BS'!N48-'Target BS'!L48+'Target BS'!N49-'Target BS'!L49 -> 0 | P35: ='Target BS'!P45-'Target BS'!N45+'Target BS'!P46-'Target BS'!N46+'Target BS'!P48-'Target BS'!N48+'Target BS'!P49-'Target BS'!N49 -> 0 | R35: ='Target BS'!R45-'Target BS'!P45+'Target BS'!R46-'Target BS'!P46+'Target BS'!R48-'Target BS'!P48+'Target BS'!R49-'Target BS'!P49 -> 0
B36: Net Change in Debt | F36: ='Target BS'!F35-'Target BS'!D35+'Target BS'!F36-'Target BS'!D36 -> -429.9 | H36: ='Target BS'!H35-'Target BS'!F35+'Target BS'!H36-'Target BS'!F36 -> -36.8 | J36: ='Target BS'!J35-'Target BS'!H35+'Target BS'!J36-'Target BS'!H36 -> -300 | L36: ='Target BS'!L35-'Target BS'!J35+'Target BS'!L36-'Target BS'!J36 -> -300 | N36: ='Target BS'!N35-'Target BS'!L35+'Target BS'!N36-'Target BS'!L36 -> -300 | P36: ='Target BS'!P35-'Target BS'!N35+'Target BS'!P36-'Target BS'!N36 -> -300 | R36: ='Target BS'!R35-'Target BS'!P35+'Target BS'!R36-'Target BS'!P36 -> -300
B37: Dividends Paid | F37: =-'Target Assumptions'!F47 -> 0 | H37: =-'Target Assumptions'!H47 -> 0 | J37: =-'Target Assumptions'!J47 -> 0 | L37: =-'Target Assumptions'!L47 -> 0 | N37: =-'Target Assumptions'!N47 -> 0 | P37: =-'Target Assumptions'!P47 -> 0 | R37: =-'Target Assumptions'!R47 -> 0
A39: Cash Flow from Financing Activities | F39: =SUM(F35:F37) -> -643.2 | H39: =SUM(H35:H37) -> -614.3 | J39: =SUM(J35:J37) -> -300 | L39: =SUM(L35:L37) -> -300 | N39: =SUM(N35:N37) -> -300 | P39: =SUM(P35:P37) -> -300 | R39: =SUM(R35:R37) -> -300
B41: Net Change in Cash | F41: =F27+F33+F39 -> -294 | H41: =H27+H33+H39 -> -811 | J41: =J27+J33+J39 -> 542.1210443 | L41: =L27+L33+L39 -> 356.3471645 | N41: =N27+N33+N39 -> 436.0023718 | P41: =P27+P33+P39 -> 521.3654519 | R41: =R27+R33+R39 -> 612.8557682
B43: Beginning Cash Balance | F43: ='Target BS'!D9 -> 854.9 | H43: ='Target BS'!F9 -> 882.1 | J43: ='Target BS'!H9 -> 276.3 | L43: ='Target BS'!J9 -> 818.4210443 | N43: ='Target BS'!L9 -> 1174.768209 | P43: ='Target BS'!N9 -> 1610.770581 | R43: ='Target BS'!P9 -> 2132.136032
B45: Cash Available for Revolving Credit | F45: =F41+F43 -> 560.9 | H45: =H41+H43 -> 71.1 | J45: =J41+J43 -> 818.4210443 | L45: =L41+L43 -> 1174.768209 | N45: =N41+N43 -> 1610.770581 | P45: =P41+P43 -> 2132.136032 | R45: =R41+R43 -> 2744.991801
B49: Beginning Revolver | J49: ='Target BS'!H34 -> 0 | L49: ='Target BS'!J34 -> 0 | N49: ='Target BS'!L34 -> 0 | P49: ='Target BS'!N34 -> 0 | R49: ='Target BS'!P34 -> 0
B50: Total Repayment | J50: =IF(J45-J49<$F$54,J45-$F$54,J49) -> 0 | L50: =IF(L45-L49<$F$54,L45-$F$54,L49) -> 0 | N50: =IF(N45-N49<$F$54,N45-$F$54,N49) -> 0 | P50: =IF(P45-P49<$F$54,P45-$F$54,P49) -> 0 | R50: =IF(R45-R49<$F$54,R45-$F$54,R49) -> 0
B51: Ending Revolving Credit Facility | J51: =J49-J50 -> 0 | L51: =L49-L50 -> 0 | N51: =N49-N50 -> 0 | P51: =P49-P50 -> 0 | R51: =R49-R50 -> 0
B52: Ending Cash | J52: =IF(J45-J49<0,$F$54,J45-J50) -> 818.4210443 | L52: =IF(L45-L49<0,$F$54,L45-L50) -> 1174.768209 | N52: =IF(N45-N49<0,$F$54,N45-N50) -> 1610.770581 | P52: =IF(P45-P49<0,$F$54,P45-P50) -> 2132.136032 | R52: =IF(R45-R49<0,$F$54,R45-R50) -> 2744.991801
B54: Minimum Cash Balance | F54: 0

Sheet Acquirer Assumptions
A1: Thermo (Acquirer) | S1: Assumptions
B2: ($Millions, except per share data)
D6: Actual | J6: Projections for the Period Ending December 31,
D7: 2011 | F7: =D7+1 -> 2012 | H7: =F7+1 -> 2013 | J7: =H7+1 -> 2014 | L7: =J7+1 -> 2015 | N7: =L7+1 -> 2016 | P7: =N7+1 -> 2017 | R7: =P7+1 -> 2018
B9: Income Statement
B11: Sales Growth | D11: NA | F11: =+IF(ISERROR('Acquirer IS'!F9/'Acquirer IS'!D9-1),0,'Acquirer IS'!F9/'Acquirer IS'!D9-1) -> 0.1121609529 | G11: =+IF(ISERROR('Acquirer IS'!G9/'Acquirer IS'!E9-1),0,'Acquirer IS'!G9/'Acquirer IS'!E9-1) -> 0 | H11: 0.092 | J11: 0.08 | L11: =J11 -> 0.08 | M11: =K11 -> 0 | N11: 0.08 | O11: 0 | P11: 0.08 | Q11: 0 | R11: 0.08
B12: COGS as a % of Sales | D12: =+IF(ISERROR('Acquirer IS'!D11/'Acquirer IS'!D9),0,'Acquirer IS'!D11/'Acquirer IS'!D9) -> 0.5899683444 | E12: =+IF(ISERROR('Acquirer IS'!E11/'Acquirer IS'!E9),0,'Acquirer IS'!E11/'Acquirer IS'!E9) -> 0 | F12: =+IF(ISERROR('Acquirer IS'!F11/'Acquirer IS'!F9),0,'Acquirer IS'!F11/'Acquirer IS'!F9) -> 0.5852510641 | G12: =+IF(ISERROR('Acquirer IS'!G11/'Acquirer IS'!G9),0,'Acquirer IS'!G11/'Acquirer IS'!G9) -> 0 | H12: 0.568 | J12: 0.56 | L12: =J12 -> 0.56 | N12: =L12 -> 0.56 | P12: =N12 -> 0.56 | R12: =P12 -> 0.56
B13: SG&A % annual Increase (Decrease) | D13: NA | F13: =+IF(ISERROR('Acquirer IS'!F15/'Acquirer IS'!D15-1),0,'Acquirer IS'!F15/'Acquirer IS'!D15-1) -> 0.138412489 | G13: =+IF(ISERROR('Acquirer IS'!G15/'Acquirer IS'!E15-1),0,'Acquirer IS'!G15/'Acquirer IS'!E15-1) -> 0 | H13: =+IF(ISERROR('Acquirer IS'!H15/'Acquirer IS'!F15-1),0,'Acquirer IS'!H15/'Acquirer IS'!F15-1) -> 0.07996137132 | J13: 0.07 | L13: 0.07 | N13: 0.07 | P13: 0.07 | R13: 0.07
B14: Other Operating Expense as a % of Sales | D14: =+IF(ISERROR('Acquirer IS'!D16/'Acquirer IS'!D9),0,'Acquirer IS'!D16/'Acquirer IS'!D9) -> 0.03315661352 | E14: =+IF(ISERROR('Acquirer IS'!E16/'Acquirer IS'!E9),0,'Acquirer IS'!E16/'Acquirer IS'!E9) -> 0 | F14: =+IF(ISERROR('Acquirer IS'!F16/'Acquirer IS'!F9),0,'Acquirer IS'!F16/'Acquirer IS'!F9) -> 0.03778073848 | G14: =+IF(ISERROR('Acquirer IS'!G16/'Acquirer IS'!G9),0,'Acquirer IS'!G16/'Acquirer IS'!G9) -> 0 | H14: =+IF(ISERROR('Acquirer IS'!H16/'Acquirer IS'!H9),0,'Acquirer IS'!H16/'Acquirer IS'!H9) -> 0.03665097243 | J14: 0.033 | L14: 0.033 | N14: 0.033 | P14: 0.033 | R14: 0.033
B15: Income from Affiliates Growth | D15: NA | F15: =IF('Acquirer IS'!D23=0,0,'Acquirer IS'!F23/'Acquirer IS'!D23-1) -> 0 | H15: =IF('Acquirer IS'!F23=0,0,'Acquirer IS'!H23/'Acquirer IS'!F23-1) -> 0 | J15: 0 | L15: 0 | N15: 0 | P15: 0 | R15: 0
B16: Minority Interest - % of Earnings | D16: ='Acquirer IS'!D30/('Acquirer IS'!D28-'Acquirer IS'!D31) -> 0 | F16: ='Acquirer IS'!F30/('Acquirer IS'!F28-'Acquirer IS'!F31) -> 0 | H16: ='Acquirer IS'!H30/('Acquirer IS'!H28-'Acquirer IS'!H31) -> 0 | J16: 0 | L16: 0 | N16: 0 | P16: 0 | R16: 0
B17: EBITDA Growth | D17: NA | F17: =+IF(ISERROR('Acquirer IS'!F49/'Acquirer IS'!D49-1),0,'Acquirer IS'!F49/'Acquirer IS'!D49-1) -> 0.05277333558 | G17: =+IF(ISERROR('Acquirer IS'!G49/'Acquirer IS'!E49-1),0,'Acquirer IS'!G49/'Acquirer IS'!E49-1) -> 0 | H17: =+IF(ISERROR('Acquirer IS'!H49/'Acquirer IS'!F49-1),0,'Acquirer IS'!H49/'Acquirer IS'!F49-1) -> 0.1849216501 | I17: =+IF(ISERROR('Acquirer IS'!I49/'Acquirer IS'!G49-1),0,'Acquirer IS'!I49/'Acquirer IS'!G49-1) -> 0 | J17: =+IF(ISERROR('Acquirer IS'!J49/'Acquirer IS'!H49-1),0,'Acquirer IS'!J49/'Acquirer IS'!H49-1) -> 0.2881105485 | K17: =+IF(ISERROR('Acquirer IS'!K49/'Acquirer IS'!I49-1),0,'Acquirer IS'!K49/'Acquirer IS'!I49-1) -> 0 | L17: =+IF(ISERROR('Acquirer IS'!L49/'Acquirer IS'!J49-1),0,'Acquirer IS'!L49/'Acquirer IS'!J49-1) -> 0.09880324104 | M17: =+IF(ISERROR('Acquirer IS'!M49/'Acquirer IS'!K49-1),0,'Acquirer IS'!M49/'Acquirer IS'!K49-1) -> 0 | N17: =+IF(ISERROR('Acquirer IS'!N49/'Acquirer IS'!L49-1),0,'Acquirer IS'!N49/'Acquirer IS'!L49-1) -> 0.09831034635 | O17: =+IF(ISERROR('Acquirer IS'!O49/'Acquirer IS'!M49-1),0,'Acquirer IS'!O49/'Acquirer IS'!M49-1) -> 0 | P17: =+IF(ISERROR('Acquirer IS'!P49/'Acquirer IS'!N49-1),0,'Acquirer IS'!P49/'Acquirer IS'!N49-1) -> 0.09783837388 | Q17: =+IF(ISERROR('Acquirer IS'!Q49/'Acquirer IS'!O49-1),0,'Acquirer IS'!Q49/'Acquirer IS'!O49-1) -> 0 | R17: =+IF(ISERROR('Acquirer IS'!R49/'Acquirer IS'!P49-1),0,'Acquirer IS'!R49/'Acquirer IS'!P49-1) -> 0.09738603833
B18: EBITDA Margin | D18: =+IF(ISERROR('Acquirer IS'!D49/'Acquirer IS'!D9),0,'Acquirer IS'!D49/'Acquirer IS'!D9) -> 0.114316229 | E18: =+IF(ISERROR('Acquirer IS'!E49/'Acquirer IS'!E9),0,'Acquirer IS'!E49/'Acquirer IS'!E9) -> 0 | F18: =+IF(ISERROR('Acquirer IS'!F49/'Acquirer IS'!F9),0,'Acquirer IS'!F49/'Acquirer IS'!F9) -> 0.1082119251 | G18: =+IF(ISERROR('Acquirer IS'!G49/'Acquirer IS'!G9),0,'Acquirer IS'!G49/'Acquirer IS'!G9) -> 0 | H18: =+IF(ISERROR('Acquirer IS'!H49/'Acquirer IS'!H9),0,'Acquirer IS'!H49/'Acquirer IS'!H9) -> 0.1184741685 | I18: =+IF(ISERROR('Acquirer IS'!I49/'Acquirer IS'!I9),0,'Acquirer IS'!I49/'Acquirer IS'!I9) -> 0 | J18: =+IF(ISERROR('Acquirer IS'!J49/'Acquirer IS'!J9),0,'Acquirer IS'!J49/'Acquirer IS'!J9) -> 0.1413035427 | K18: =+IF(ISERROR('Acquirer IS'!K49/'Acquirer IS'!K9),0,'Acquirer IS'!K49/'Acquirer IS'!K9) -> 0 | L18: =+IF(ISERROR('Acquirer IS'!L49/'Acquirer IS'!L9),0,'Acquirer IS'!L49/'Acquirer IS'!L9) -> 0.1437636951 | M18: =+IF(ISERROR('Acquirer IS'!M49/'Acquirer IS'!M9),0,'Acquirer IS'!M49/'Acquirer IS'!M9) -> 0 | N18: =+IF(ISERROR('Acquirer IS'!N49/'Acquirer IS'!N9),0,'Acquirer IS'!N49/'Acquirer IS'!N9) -> 0.1462010683 | O18: =+IF(ISERROR('Acquirer IS'!O49/'Acquirer IS'!O9),0,'Acquirer IS'!O49/'Acquirer IS'!O9) -> 0 | P18: =+IF(ISERROR('Acquirer IS'!P49/'Acquirer IS'!P9),0,'Acquirer IS'!P49/'Acquirer IS'!P9) -> 0.1486158732 | Q18: =+IF(ISERROR('Acquirer IS'!Q49/'Acquirer IS'!Q9),0,'Acquirer IS'!Q49/'Acquirer IS'!Q9) -> 0 | R18: =+IF(ISERROR('Acquirer IS'!R49/'Acquirer IS'!R9),0,'Acquirer IS'!R49/'Acquirer IS'!R9) -> 0.1510083188
B20: Balance Sheet
B22: Receivable Days | D22: =+IF(ISERROR(('Acquirer BS'!D10/'Acquirer IS'!D9)*365),0,('Acquirer BS'!D10/'Acquirer IS'!D9)*365) -> 51.76256362 | E22: =+IF(ISERROR(('Acquirer BS'!E10/'Acquirer IS'!E9)*365),0,('Acquirer BS'!E10/'Acquirer IS'!E9)*365) -> 0 | F22: =+IF(ISERROR(('Acquirer BS'!F10/'Acquirer IS'!F9)*365),0,('Acquirer BS'!F10/'Acquirer IS'!F9)*365) -> 55.69354085 | G22: =+IF(ISERROR(('Acquirer BS'!G10/'Acquirer IS'!G9)*365),0,('Acquirer BS'!G10/'Acquirer IS'!G9)*365) -> 0 | H22: =+IF(ISERROR(('Acquirer BS'!H10/'Acquirer IS'!H9)*365),0,('Acquirer BS'!H10/'Acquirer IS'!H9)*365) -> 52.66137219 | J22: 51 | L22: =J22 -> 51 | M22: =K22 -> 0 | N22: 51 | O22: 0 | P22: 51 | Q22: 0 | R22: 51
B23: Inventory Days | D23: =+IF(ISERROR(('Acquirer BS'!D11/'Acquirer IS'!D11)*365),0,('Acquirer BS'!D11/'Acquirer IS'!D11)*365) -> 69.79621958 | E23: =+IF(ISERROR(('Acquirer BS'!E11/'Acquirer IS'!E11)*365),0,('Acquirer BS'!E11/'Acquirer IS'!E11)*365) -> 0 | F23: =+IF(ISERROR(('Acquirer BS'!F11/'Acquirer IS'!F11)*365),0,('Acquirer BS'!F11/'Acquirer IS'!F11)*365) -> 71.76657107 | G23: =+IF(ISERROR(('Acquirer BS'!G11/'Acquirer IS'!G11)*365),0,('Acquirer BS'!G11/'Acquirer IS'!G11)*365) -> 0 | H23: =+IF(ISERROR(('Acquirer BS'!H11/'Acquirer IS'!H11)*365),0,('Acquirer BS'!H11/'Acquirer IS'!H11)*365) -> 73.02124917 | J23: 71 | L23: =J23 -> 71 | N23: =L23 -> 71 | P23: =N23 -> 71 | R23: =P23 -> 71
B24: Oth Cur Assets % of Sales | D24: =+IF(ISERROR('Acquirer BS'!D12/'Acquirer IS'!D9),0,'Acquirer BS'!D12/'Acquirer IS'!D9) -> 0.05418017723 | E24: =+IF(ISERROR('Acquirer BS'!E12/'Acquirer IS'!E9),0,'Acquirer BS'!E12/'Acquirer IS'!E9) -> 0 | F24: =+IF(ISERROR('Acquirer BS'!F12/'Acquirer IS'!F9),0,'Acquirer BS'!F12/'Acquirer IS'!F9) -> 0.061208776 | G24: =+IF(ISERROR('Acquirer BS'!G12/'Acquirer IS'!G9),0,'Acquirer BS'!G12/'Acquirer IS'!G9) -> 0 | H24: =+IF(ISERROR('Acquirer BS'!H12/'Acquirer IS'!H9),0,'Acquirer BS'!H12/'Acquirer IS'!H9) -> 0.0584577015 | J24: 0.052 | L24: 0.052 | N24: 0.052 | P24: 0.052 | R24: 0.052
B25: Days in Accounts Payable | D25: =+IF(ISERROR(('Acquirer BS'!D29/'Acquirer IS'!D11)*365),0,('Acquirer BS'!D29/'Acquirer IS'!D11)*365) -> 32.52593124 | E25: =+IF(ISERROR(('Acquirer BS'!E29/'Acquirer IS'!E11)*365),0,('Acquirer BS'!E29/'Acquirer IS'!E11)*365) -> 0 | F25: =+IF(ISERROR(('Acquirer BS'!F29/'Acquirer IS'!F11)*365),0,('Acquirer BS'!F29/'Acquirer IS'!F11)*365) -> 33.03711861 | G25: =+IF(ISERROR(('Acquirer BS'!G29/'Acquirer IS'!G11)*365),0,('Acquirer BS'!G29/'Acquirer IS'!G11)*365) -> 0 | H25: =+IF(ISERROR(('Acquirer BS'!H29/'Acquirer IS'!H11)*365),0,('Acquirer BS'!H29/'Acquirer IS'!H11)*365) -> 32.45051564 | J25: 33 | L25: 33 | N25: 33 | P25: 33 | R25: 33
B26: Oth Cur Liab % of COGS | D26: =+IF(ISERROR('Acquirer BS'!D30/'Acquirer IS'!D11),0,'Acquirer BS'!D30/'Acquirer IS'!D11) -> 0.1896568595 | E26: =+IF(ISERROR('Acquirer BS'!E30/'Acquirer IS'!E11),0,'Acquirer BS'!E30/'Acquirer IS'!E11) -> 0 | F26: =+IF(ISERROR('Acquirer BS'!F30/'Acquirer IS'!F11),0,'Acquirer BS'!F30/'Acquirer IS'!F11) -> 0.3696783349 | G26: =+IF(ISERROR('Acquirer BS'!G30/'Acquirer IS'!G11),0,'Acquirer BS'!G30/'Acquirer IS'!G11) -> 0 | H26: =+IF(ISERROR('Acquirer BS'!H30/'Acquirer IS'!H11),0,'Acquirer BS'!H30/'Acquirer IS'!H11) -> 0.2012502772 | J26: 0.21 | L26: 0.21 | N26: 0.21 | P26: 0.21 | R26: 0.21
B27: Change in Other Assets | D27: NA | F27: ='Acquirer BS'!F25-'Acquirer BS'!D25 -> -332.7 | H27: ='Acquirer BS'!H25-'Acquirer BS'!F25 -> -6.9 | J27: 0 | L27: 0 | N27: 0 | P27: 0 | R27: 0
B28: Change in Other LT Liabilities | D28: NA | F28: ='Acquirer BS'!F41-'Acquirer BS'!D41 -> 77 | H28: ='Acquirer BS'!H41-'Acquirer BS'!F41 -> 110.2 | J28: 0 | L28: 0 | N28: 0 | P28: 0 | R28: 0
B29: Working Capital/Sales (Excl Cash & Debt) | D29: =+IF(ISERROR((SUM('Acquirer BS'!D10:D12)-SUM('Acquirer BS'!D29:D30))/'Acquirer IS'!D9),0,(SUM('Acquirer BS'!D10:D12)-SUM('Acquirer BS'!D29:D30))/'Acquirer IS'!D9) -> 0.1443457679 | E29: =+IF(ISERROR((SUM('Acquirer BS'!E10:E12)-SUM('Acquirer BS'!E29:E30))/'Acquirer IS'!E9),0,(SUM('Acquirer BS'!E10:E12)-SUM('Acquirer BS'!E29:E30))/'Acquirer IS'!E9) -> 0 | F29: =+IF(ISERROR((SUM('Acquirer BS'!F10:F12)-SUM('Acquirer BS'!F29:F30))/'Acquirer IS'!F9),0,(SUM('Acquirer BS'!F10:F12)-SUM('Acquirer BS'!F29:F30))/'Acquirer IS'!F9) -> 0.0595390525 | G29: =+IF(ISERROR((SUM('Acquirer BS'!G10:G12)-SUM('Acquirer BS'!G29:G30))/'Acquirer IS'!G9),0,(SUM('Acquirer BS'!G10:G12)-SUM('Acquirer BS'!G29:G30))/'Acquirer IS'!G9) -> 0 | H29: =+IF(ISERROR((SUM('Acquirer BS'!H10:H12)-SUM('Acquirer BS'!H29:H30))/'Acquirer IS'!H9),0,(SUM('Acquirer BS'!H10:H12)-SUM('Acquirer BS'!H29:H30))/'Acquirer IS'!H9) -> 0.1507765849 | I29: =+IF(ISERROR((SUM('Acquirer BS'!I10:I12)-SUM('Acquirer BS'!I29:I30))/'Acquirer IS'!I9),0,(SUM('Acquirer BS'!I10:I12)-SUM('Acquirer BS'!I29:I30))/'Acquirer IS'!I9) -> 0 | J29: =+IF(ISERROR((SUM('Acquirer BS'!J10:J12)-SUM('Acquirer BS'!J29:J30))/'Acquirer IS'!J9),0,(SUM('Acquirer BS'!J10:J12)-SUM('Acquirer BS'!J29:J30))/'Acquirer IS'!J9) -> 0.1324273973 | K29: =+IF(ISERROR((SUM('Acquirer BS'!K10:K12)-SUM('Acquirer BS'!K29:K30))/'Acquirer IS'!K9),0,(SUM('Acquirer BS'!K10:K12)-SUM('Acquirer BS'!K29:K30))/'Acquirer IS'!K9) -> 0 | L29: =+IF(ISERROR((SUM('Acquirer BS'!L10:L12)-SUM('Acquirer BS'!L29:L30))/'Acquirer IS'!L9),0,(SUM('Acquirer BS'!L10:L12)-SUM('Acquirer BS'!L29:L30))/'Acquirer IS'!L9) -> 0.1324273973 | M29: =+IF(ISERROR((SUM('Acquirer BS'!M10:M12)-SUM('Acquirer BS'!M29:M30))/'Acquirer IS'!M9),0,(SUM('Acquirer BS'!M10:M12)-SUM('Acquirer BS'!M29:M30))/'Acquirer IS'!M9) -> 0 | N29: =+IF(ISERROR((SUM('Acquirer BS'!N10:N12)-SUM('Acquirer BS'!N29:N30))/'Acquirer IS'!N9),0,(SUM('Acquirer BS'!N10:N12)-SUM('Acquirer BS'!N29:N30))/'Acquirer IS'!N9) -> 0.1324273973 | O29: =+IF(ISERROR((SUM('Acquirer BS'!O10:O12)-SUM('Acquirer BS'!O29:O30))/'Acquirer IS'!O9),0,(SUM('Acquirer BS'!O10:O12)-SUM('Acquirer BS'!O29:O30))/'Acquirer IS'!O9) -> 0 | P29: =+IF(ISERROR((SUM('Acquirer BS'!P10:P12)-SUM('Acquirer BS'!P29:P30))/'Acquirer IS'!P9),0,(SUM('Acquirer BS'!P10:P12)-SUM('Acquirer BS'!P29:P30))/'Acquirer IS'!P9) -> 0.1324273973 | Q29: =+IF(ISERROR((SUM('Acquirer BS'!Q10:Q12)-SUM('Acquirer BS'!Q29:Q30))/'Acquirer IS'!Q9),0,(SUM('Acquirer BS'!Q10:Q12)-SUM('Acquirer BS'!Q29:Q30))/'Acquirer IS'!Q9) -> 0 | R29: =+IF(ISERROR((SUM('Acquirer BS'!R10:R12)-SUM('Acquirer BS'!R29:R30))/'Acquirer IS'!R9),0,(SUM('Acquirer BS'!R10:R12)-SUM('Acquirer BS'!R29:R30))/'Acquirer IS'!R9) -> 0.1324273973
B31: Cash Flow
B33: Capital Expenditures | D33: 245.4 | F33: 260.9 | H33: 1083.4 | J33: =J34*'Acquirer IS'!J9 -> 878.19498 | L33: =L34*'Acquirer IS'!L9 -> 948.4505784 | N33: =N34*'Acquirer IS'!N9 -> 1024.326625 | P33: =P34*'Acquirer IS'!P9 -> 1106.272755 | R33: =R34*'Acquirer IS'!R9 -> 1194.774575
B34: Capex as a % of Sales | D34: =+IF(ISERROR(D33/'Acquirer IS'!D9),0,D33/'Acquirer IS'!D9) -> 0.02361181938 | E34: =+IF(ISERROR(E33/'Acquirer IS'!E9),0,E33/'Acquirer IS'!E9) -> 0 | F34: =+IF(ISERROR(F33/'Acquirer IS'!F9),0,F33/'Acquirer IS'!F9) -> 0.02257154722 | G34: =+IF(ISERROR(G33/'Acquirer IS'!G9),0,G33/'Acquirer IS'!G9) -> 0 | H34: =+IF(ISERROR(H33/'Acquirer IS'!H9),0,H33/'Acquirer IS'!H9) -> 0.0866034101 | I34: =+IF(ISERROR(I33/'Acquirer IS'!I9),0,I33/'Acquirer IS'!I9) -> 0 | J34: 0.065 | K34: =+IF(ISERROR(K33/'Acquirer IS'!K9),0,K33/'Acquirer IS'!K9) -> 0 | L34: =J34 -> 0.065 | M34: =+IF(ISERROR(M33/'Acquirer IS'!M9),0,M33/'Acquirer IS'!M9) -> 0 | N34: =L34 -> 0.065 | O34: =+IF(ISERROR(O33/'Acquirer IS'!O9),0,O33/'Acquirer IS'!O9) -> 0 | P34: =N34 -> 0.065 | Q34: =+IF(ISERROR(Q33/'Acquirer IS'!Q9),0,Q33/'Acquirer IS'!Q9) -> 0 | R34: =P34 -> 0.065
B35: Depreciation | D35: 739.7 | F35: 895.6 | H35: 983.7 | J35: =J36*'Acquirer IS'!J9 -> 1013.3019 | L35: =L36*'Acquirer IS'!L9 -> 1094.366052 | N35: =N36*'Acquirer IS'!N9 -> 1181.915336 | P35: =P36*'Acquirer IS'!P9 -> 1276.468563 | R35: =R36*'Acquirer IS'!R9 -> 1378.586048
B36: Depreciation as a % of Sales | D36: =+IF(ISERROR(D35/'Acquirer IS'!D9),0,D35/'Acquirer IS'!D9) -> 0.07117222003 | E36: =+IF(ISERROR(E35/'Acquirer IS'!E9),0,E35/'Acquirer IS'!E9) -> 0 | F36: =+IF(ISERROR(F35/'Acquirer IS'!F9),0,F35/'Acquirer IS'!F9) -> 0.07748209157 | G36: =+IF(ISERROR(G35/'Acquirer IS'!G9),0,G35/'Acquirer IS'!G9) -> 0 | H36: =+IF(ISERROR(H35/'Acquirer IS'!H9),0,H35/'Acquirer IS'!H9) -> 0.07863372209 | J36: 0.075 | L36: =J36 -> 0.075 | N36: =L36 -> 0.075 | P36: =N36 -> 0.075 | R36: =P36 -> 0.075
B37: Goodwill Amortization (pre-6/2001) | D37: 0 | F37: 0 | H37: 0 | J37: 0 | L37: =J37 -> 0 | N37: =L37 -> 0 | P37: =N37 -> 0 | R37: =P37 -> 0
B38: Amortization of Intangibles | D38: 0 | F38: 0 | H38: 0 | J38: 0 | L38: 0 | N38: 0 | P38: 0 | R38: 0
B39: Retirement of Senior Debt | D39: 505.4 | F39: 1.4 | H39: 354.5 | J39: 500 | L39: 500 | N39: 500 | P39: 500 | R39: 500
B40: Retirement of Subordinated Debt | D40: 0 | F40: 0 | H40: 0 | J40: 0 | L40: 0 | N40: 0 | P40: 0 | R40: 0
B41: Chg in Deferred Taxes - Asset | D41: NA | F41: ='Acquirer BS'!F23-'Acquirer BS'!D23 -> 0 | H41: ='Acquirer BS'!H23-'Acquirer BS'!F23 -> 0 | J41: =AVERAGE(F41:H41) -> 0 | L41: 0 | N41: 0 | P41: 0 | R41: 0
B42: Chg in Deferred Taxes - Liab | D42: NA | F42: ='Acquirer BS'!F40-'Acquirer BS'!D40 -> 602.7 | H42: ='Acquirer BS'!H40-'Acquirer BS'!F40 -> -182.1 | J42: =AVERAGE(F42:H42) -> 210.3 | L42: 210.3 | N42: 210.3 | P42: 210.3 | R42: 210.3
B43: Dividend from Affiliates | D43: 0 | F43: 0 | H43: 0 | J43: =J44*-'Acquirer IS'!J23 -> 0 | L43: =L44*-'Acquirer IS'!L23 -> 0 | N43: =N44*-'Acquirer IS'!N23 -> 0 | P43: =P44*-'Acquirer IS'!P23 -> 0 | R43: =R44*-'Acquirer IS'!R23 -> 0
B44: Payout Ratio of Affiliates | D44: =IF('Acquirer IS'!D23=0,0,D43/-'Acquirer IS'!D23) -> 0 | F44: =IF('Acquirer IS'!F23=0,0,F43/-'Acquirer IS'!F23) -> 0 | H44: =IF('Acquirer IS'!H23=0,0,H43/-'Acquirer IS'!H23) -> 0 | J44: 0 | L44: =J44 -> 0 | N44: =L44 -> 0 | P44: =N44 -> 0 | R44: =P44 -> 0
B45: Dividends per Share | D45: 0 | F45: 0 | H45: 0 | J45: =IF(J46=0,0,J46*'Acquirer IS'!J53) -> 0 | L45: =IF(L46=0,0,L46*'Acquirer IS'!L53) -> 0 | N45: =IF(N46=0,0,N46*'Acquirer IS'!N53) -> 0 | P45: =IF(P46=0,0,P46*'Acquirer IS'!P53) -> 0 | R45: =IF(R46=0,0,R46*'Acquirer IS'!R53) -> 0
B46: Dividend Payout Ratio | D46: =+IF(ISERROR(D45/'Acquirer IS'!D53),0,D45/'Acquirer IS'!D53) -> 0 | E46: =+IF(ISERROR(E45/'Acquirer IS'!E53),0,E45/'Acquirer IS'!E53) -> 0 | F46: =+IF(ISERROR(F45/'Acquirer IS'!F53),0,F45/'Acquirer IS'!F53) -> 0 | G46: =+IF(ISERROR(G45/'Acquirer IS'!G53),0,G45/'Acquirer IS'!G53) -> 0 | H46: =+IF(ISERROR(H45/'Acquirer IS'!H53),0,H45/'Acquirer IS'!H53) -> 0 | J46: 0 | L46: =J46 -> 0 | N46: =L46 -> 0 | P46: =N46 -> 0 | R46: =P46 -> 0
B47: Dividends Paid | D47: =D45*D53 -> 0 | F47: =F45*F53 -> 0 | H47: =H45*H53 -> 0 | J47: =J45*J53 -> 0 | L47: =L45*L53 -> 0 | N47: =N45*N53 -> 0 | P47: =P45*P53 -> 0 | R47: =R45*R53 -> 0
B48: Effective Tax Rate | D48: =+IF(ISERROR('Acquirer IS'!D31/'Acquirer IS'!D28),0,'Acquirer IS'!D31/'Acquirer IS'!D28) -> 0.291954023 | E48: =+IF(ISERROR('Acquirer IS'!E31/'Acquirer IS'!E28),0,'Acquirer IS'!E31/'Acquirer IS'!E28) -> 0 | F48: =+IF(ISERROR('Acquirer IS'!F31/'Acquirer IS'!F28),0,'Acquirer IS'!F31/'Acquirer IS'!F28) -> 0.4612141653 | G48: =+IF(ISERROR('Acquirer IS'!G31/'Acquirer IS'!G28),0,'Acquirer IS'!G31/'Acquirer IS'!G28) -> 0 | H48: =+IF(ISERROR('Acquirer IS'!H31/'Acquirer IS'!H28),0,'Acquirer IS'!H31/'Acquirer IS'!H28) -> 0.0385019251 | J48: 0.26 | L48: =J48 -> 0.26 | N48: =L48 -> 0.26 | P48: =N48 -> 0.26 | R48: =P48 -> 0.26
B49: Marginal Tax Rate | D49: 0.4 | E49: 0.4 | F49: 0.4 | G49: 0.4 | H49: 0.4 | J49: 0.4 | K49: 0.4 | L49: 0.4 | M49: 0.4 | N49: 0.4 | O49: 0.4 | P49: 0.4 | Q49: 0.4 | R49: 0.4
B51: Other
B53: Shares Outstanding - Basic | D53: 0 | F53: 0 | H53: 358.1 | J53: 358.1 | L53: =J53 -> 358.1 | N53: =L53 -> 358.1 | P53: =N53 -> 358.1 | R53: =P53 -> 358.1
B54: Shares Outstanding - Diluted | D54: 0 | F54: 0 | H54: 361.7 | J54: 361.7 | L54: =J54 -> 361.7 | N54: =L54 -> 361.7 | P54: =N54 -> 361.7 | R54: =P54 -> 361.7
B55: Revolving Credit Facility Rate | D55: 0 | F55: 0 | H55: 0 | J55: 0.02 | K55: 0 | L55: 0 | M55: 0 | N55: 0 | O55: 0 | P55: 0 | Q55: 0 | R55: 0
B56: Senior Debt Rate | D56: 0 | F56: 0 | H56: 0 | J56: 0.05 | L56: =J56 -> 0.05 | N56: =L56 -> 0.05 | P56: =N56 -> 0.05 | R56: =P56 -> 0.05
B57: Subordinated Debt | D57: 0 | F57: 0 | H57: 0 | J57: 0.1 | L57: =J57 -> 0.1 | N57: =L57 -> 0.1 | P57: =N57 -> 0.1 | R57: =P57 -> 0.1
B58: Average Interest Rate | D58: NA | F58: =IF(AVERAGE('Acquirer BS'!D38:F38)=0,0,'Acquirer IS'!F26/AVERAGE('Acquirer BS'!D38:F38)) -> 0 | H58: =IF(AVERAGE('Acquirer BS'!F38:H38)=0,0,'Acquirer IS'!H26/AVERAGE('Acquirer BS'!F38:H38)) -> 0 | J58: =IF(AVERAGE('Acquirer BS'!H38:J38)=0,0,'Acquirer IS'!J26/AVERAGE('Acquirer BS'!H38:J38)) -> 0.05 | K58: =IF(AVERAGE('Acquirer BS'!I38:K38)=0,0,'Acquirer IS'!K26/AVERAGE('Acquirer BS'!I38:K38)) -> 0 | L58: =IF(AVERAGE('Acquirer BS'!J38:L38)=0,0,'Acquirer IS'!L26/AVERAGE('Acquirer BS'!J38:L38)) -> 0.05 | N58: =IF(AVERAGE('Acquirer BS'!L38:N38)=0,0,'Acquirer IS'!N26/AVERAGE('Acquirer BS'!L38:N38)) -> 0.05 | P58: =IF(AVERAGE('Acquirer BS'!N38:P38)=0,0,'Acquirer IS'!P26/AVERAGE('Acquirer BS'!N38:P38)) -> 0.05 | R58: =IF(AVERAGE('Acquirer BS'!P38:R38)=0,0,'Acquirer IS'!R26/AVERAGE('Acquirer BS'!P38:R38)) -> 0.05
B59: Marketable Securities Rate | D59: 0 | F59: 0 | H59: 0 | J59: 0 | L59: =J59 -> 0 | N59: =L59 -> 0 | P59: =N59 -> 0 | R59: =P59 -> 0

Sheet Acquirer IS
A1: ='Acquirer Assumptions'!A1 -> Thermo (Acquirer) | S1: Income Statement
A2: ($Millions except per share data)
D6: ='Acquirer Assumptions'!D6 -> Actual | J6: ='Acquirer Assumptions'!J6 -> Projections for the Period Ending December 31, | U6: 1 | V6: 0 = circ off
D7: ='Acquirer Assumptions'!D7 -> 2011 | F7: ='Acquirer Assumptions'!F7 -> 2012 | H7: ='Acquirer Assumptions'!H7 -> 2013 | J7: ='Acquirer Assumptions'!J7 -> 2014 | L7: ='Acquirer Assumptions'!L7 -> 2015 | N7: ='Acquirer Assumptions'!N7 -> 2016 | P7: ='Acquirer Assumptions'!P7 -> 2017 | R7: ='Acquirer Assumptions'!R7 -> 2018 | V7: 1 = circ on
B9: Sales | D9: 10393.1 | F9: 11558.8 | H9: 12509.9 | J9: =H9*(1+'Acquirer Assumptions'!J11) -> 13510.692 | L9: =J9*(1+'Acquirer Assumptions'!L11) -> 14591.54736 | N9: =L9*(1+'Acquirer Assumptions'!N11) -> 15758.87115 | P9: =N9*(1+'Acquirer Assumptions'!P11) -> 17019.58084 | R9: =P9*(1+'Acquirer Assumptions'!R11) -> 18381.14731
B11: Cost of Goods Sold | D11: =5264.7+866.9 -> 6131.6 | F11: =5733.4+1031.4 -> 6764.8 | H11: =6101.3+1113.1 -> 7214.4 | J11: =J9*'Acquirer Assumptions'!J12 -> 7565.98752 | L11: =L9*'Acquirer Assumptions'!L12 -> 8171.266522 | N11: =N9*'Acquirer Assumptions'!N12 -> 8824.967843 | P11: =P9*'Acquirer Assumptions'!P12 -> 9530.965271 | R11: =R9*'Acquirer Assumptions'!R12 -> 10293.44249
B13: Gross Profit | D13: =D9-D11 -> 4261.5 | F13: =F9-F11 -> 4794 | H13: =H9-H11 -> 5295.5 | J13: =J9-J11 -> 5944.70448 | L13: =L9-L11 -> 6420.280838 | N13: =N9-N11 -> 6933.903305 | P13: =P9-P11 -> 7488.61557 | R13: =R9-R11 -> 8087.704816
B15: SG&A | D15: 2728.8 | F15: 3106.5 | H15: 3354.9 | J15: =H15*(1+'Acquirer Assumptions'!J13) -> 3589.743 | L15: =J15*(1+'Acquirer Assumptions'!L13) -> 3841.02501 | N15: =L15*(1+'Acquirer Assumptions'!N13) -> 4109.896761 | P15: =N15*(1+'Acquirer Assumptions'!P13) -> 4397.589534 | R15: =P15*(1+'Acquirer Assumptions'!R13) -> 4705.420801
B16: Other Operating Expense | D16: =284.4+60.2 -> 344.6 | F16: =340.2+96.5 -> 436.7 | H16: =376.4+82.1 -> 458.5 | J16: =J9*'Acquirer Assumptions'!J14 -> 445.852836 | L16: =L9*'Acquirer Assumptions'!L14 -> 481.5210629 | N16: =N9*'Acquirer Assumptions'!N14 -> 520.0427479 | P16: =P9*'Acquirer Assumptions'!P14 -> 561.6461677 | R16: =R9*'Acquirer Assumptions'!R14 -> 606.5778612
B17: Depreciation | D17: ='Acquirer Assumptions'!D35 -> 739.7 | F17: ='Acquirer Assumptions'!F35 -> 895.6 | H17: ='Acquirer Assumptions'!H35 -> 983.7 | J17: ='Acquirer Assumptions'!J35 -> 1013.3019 | L17: ='Acquirer Assumptions'!L35 -> 1094.366052 | N17: ='Acquirer Assumptions'!N35 -> 1181.915336 | P17: ='Acquirer Assumptions'!P35 -> 1276.468563 | R17: ='Acquirer Assumptions'!R35 -> 1378.586048
B18: Amortization | D18: ='Acquirer Assumptions'!D37+'Acquirer Assumptions'!D38 -> 0 | F18: ='Acquirer Assumptions'!F37+'Acquirer Assumptions'!F38 -> 0 | H18: ='Acquirer Assumptions'!H37+'Acquirer Assumptions'!H38 -> 0 | J18: ='Acquirer Assumptions'!J37+'Acquirer Assumptions'!J38 -> 0 | L18: ='Acquirer Assumptions'!L37+'Acquirer Assumptions'!L38 -> 0 | N18: ='Acquirer Assumptions'!N37+'Acquirer Assumptions'!N38 -> 0 | P18: ='Acquirer Assumptions'!P37+'Acquirer Assumptions'!P38 -> 0 | R18: ='Acquirer Assumptions'!R37+'Acquirer Assumptions'!R38 -> 0
B20: EBIT | D20: =D13-SUM(D15:D18) -> 448.4 | F20: =F13-SUM(F15:F18) -> 355.2 | H20: =H13-SUM(H15:H18) -> 498.4 | J20: =J13-SUM(J15:J18) -> 895.806744 | L20: =L13-SUM(L15:L18) -> 1003.368714 | N20: =N13-SUM(N15:N18) -> 1122.048461 | P20: =P13-SUM(P15:P18) -> 1252.911305 | R20: =R13-SUM(R15:R18) -> 1397.120105
B22: Unusual (Gain) Loss | D22: 0 | F22: 0 | H22: 0 | J22: 0 | L22: 0 | N22: 0 | P22: 0 | R22: 0
B23: (Income) from Affiliates | D23: 0 | F23: 0 | H23: 0 | J23: =H23*(1+'Acquirer Assumptions'!J15) -> 0 | L23: =J23*(1+'Acquirer Assumptions'!L15) -> 0 | N23: =L23*(1+'Acquirer Assumptions'!N15) -> 0 | P23: =N23*(1+'Acquirer Assumptions'!P15) -> 0 | R23: =P23*(1+'Acquirer Assumptions'!R15) -> 0
B24: Other Expense (Income) | D24: 100.4 | F24: 118 | H24: 212.7 | J24: 0 | L24: =J24 -> 0 | N24: =L24 -> 0 | P24: 0 | R24: 0
B25: Interest (Income) | D25: 0 | F25: 0 | H25: 0 | J25: =IF($U$6=0,0,-'Acquirer Assumptions'!J59*AVERAGE('Acquirer BS'!H9:J9)) -> 0 | K25: =IF($U$6=0,0,-'Acquirer Assumptions'!K59*AVERAGE('Acquirer BS'!I9:K9)) -> 0 | L25: =IF($U$6=0,0,-'Acquirer Assumptions'!L59*AVERAGE('Acquirer BS'!J9:L9)) -> 0 | M25: =IF($U$6=0,0,-'Acquirer Assumptions'!M59*AVERAGE('Acquirer BS'!K9:M9)) -> 0 | N25: =IF($U$6=0,0,-'Acquirer Assumptions'!N59*AVERAGE('Acquirer BS'!L9:N9)) -> 0 | O25: =IF($U$6=0,0,-'Acquirer Assumptions'!O59*AVERAGE('Acquirer BS'!M9:O9)) -> 0 | P25: =IF($U$6=0,0,-'Acquirer Assumptions'!P59*AVERAGE('Acquirer BS'!N9:P9)) -> 0 | Q25: =IF($U$6=0,0,-'Acquirer Assumptions'!Q59*AVERAGE('Acquirer BS'!O9:Q9)) -> 0 | R25: =IF($U$6=0,0,-'Acquirer Assumptions'!R59*AVERAGE('Acquirer BS'!P9:R9)) -> 0
B26: Interest Expense | D26: 0 | F26: 0 | H26: 0 | J26: =IF($U$6=0,0,'Acquirer Assumptions'!J55*AVERAGE('Acquirer BS'!H34:J34)+'Acquirer Assumptions'!J56*AVERAGE('Acquirer BS'!H35:J35)+'Acquirer Assumptions'!J57*'Acquirer BS'!H36:J36) -> 339.06 | K26: =IF($U$6=0,0,'Acquirer Assumptions'!K55*AVERAGE('Acquirer BS'!I34:K34)+'Acquirer Assumptions'!K56*AVERAGE('Acquirer BS'!I35:K35)+'Acquirer Assumptions'!K57*'Acquirer BS'!I36:K36) -> 0 | L26: =IF($U$6=0,0,'Acquirer Assumptions'!L55*AVERAGE('Acquirer BS'!J34:L34)+'Acquirer Assumptions'!L56*AVERAGE('Acquirer BS'!J35:L35)+'Acquirer Assumptions'!L57*'Acquirer BS'!J36:L36) -> 314.06 | M26: =IF($U$6=0,0,'Acquirer Assumptions'!M55*AVERAGE('Acquirer BS'!K34:M34)+'Acquirer Assumptions'!M56*AVERAGE('Acquirer BS'!K35:M35)+'Acquirer Assumptions'!M57*'Acquirer BS'!K36:M36) -> 0 | N26: =IF($U$6=0,0,'Acquirer Assumptions'!N55*AVERAGE('Acquirer BS'!L34:N34)+'Acquirer Assumptions'!N56*AVERAGE('Acquirer BS'!L35:N35)+'Acquirer Assumptions'!N57*'Acquirer BS'!L36:N36) -> 289.06 | O26: =IF($U$6=0,0,'Acquirer Assumptions'!O55*AVERAGE('Acquirer BS'!M34:O34)+'Acquirer Assumptions'!O56*AVERAGE('Acquirer BS'!M35:O35)+'Acquirer Assumptions'!O57*'Acquirer BS'!M36:O36) -> 0 | P26: =IF($U$6=0,0,'Acquirer Assumptions'!P55*AVERAGE('Acquirer BS'!N34:P34)+'Acquirer Assumptions'!P56*AVERAGE('Acquirer BS'!N35:P35)+'Acquirer Assumptions'!P57*'Acquirer BS'!N36:P36) -> 264.06 | Q26: =IF($U$6=0,0,'Acquirer Assumptions'!Q55*AVERAGE('Acquirer BS'!O34:Q34)+'Acquirer Assumptions'!Q56*AVERAGE('Acquirer BS'!O35:Q35)+'Acquirer Assumptions'!Q57*'Acquirer BS'!O36:Q36) -> 0 | R26: =IF($U$6=0,0,'Acquirer Assumptions'!R55*AVERAGE('Acquirer BS'!P34:R34)+'Acquirer Assumptions'!R56*AVERAGE('Acquirer BS'!P35:R35)+'Acquirer Assumptions'!R57*'Acquirer BS'!P36:R36) -> 239.06
B28: Earnings before Taxes | D28: =D20-SUM(D22:D26) -> 348 | F28: =F20-SUM(F22:F26) -> 237.2 | H28: =H20-SUM(H22:H26) -> 285.7 | J28: =J20-SUM(J22:J26) -> 556.746744 | L28: =L20-SUM(L22:L26) -> 689.3087135 | N28: =N20-SUM(N22:N26) -> 832.9884607 | P28: =P20-SUM(P22:P26) -> 988.8513052 | R28: =R20-SUM(R22:R26) -> 1158.060105
B30: Noncontrolling Interest | D30: 0 | F30: 0 | H30: 0 | J30: ='Acquirer Assumptions'!J16*(J28-J31) -> 0 | L30: ='Acquirer Assumptions'!L16*(L28-L31) -> 0 | N30: ='Acquirer Assumptions'!N16*(N28-N31) -> 0 | P30: ='Acquirer Assumptions'!P16*(P28-P31) -> 0 | R30: ='Acquirer Assumptions'!R16*(R28-R31) -> 0
B31: Taxes | D31: 101.6 | F31: 109.4 | H31: 11 | J31: =J28*'Acquirer Assumptions'!J48 -> 144.7541534 | L31: =L28*'Acquirer Assumptions'!L48 -> 179.2202655 | N31: =N28*'Acquirer Assumptions'!N48 -> 216.5769998 | P31: =P28*'Acquirer Assumptions'!P48 -> 257.1013393 | R31: =R28*'Acquirer Assumptions'!R48 -> 301.0956273
B33: Net Income before Extra Items | D33: =D28-D30-D31 -> 246.4 | F33: =F28-F30-F31 -> 127.8 | H33: =H28-H30-H31 -> 274.7 | J33: =J28-J30-J31 -> 411.9925906 | L33: =L28-L30-L31 -> 510.088448 | N33: =N28-N30-N31 -> 616.4114609 | P33: =P28-P30-P31 -> 731.7499658 | R33: =R28-R30-R31 -> 856.9644776
B35: Extraordinary Items | D35: 47 | F35: 1.7 | H35: -19.2 | J35: 0 | L35: 0 | N35: 0 | P35: 0 | R35: 0
B36: Discontinued Operations | D36: 2.5 | E36: 0 | F36: 304.8 | G36: 0 | H36: -61.3 | J36: 0 | K36: 0 | L36: 0 | M36: 0 | N36: 0 | O36: 0 | P36: 0 | Q36: 0 | R36: 0
B38: Net Income after Extra Items | D38: =D33+D35+D36 -> 295.9 | F38: =F33+F35+F36 -> 434.3 | H38: =H33+H35+H36 -> 194.2 | J38: =J33+J35+J36 -> 411.9925906 | L38: =L33+L35+L36 -> 510.088448 | N38: =N33+N35+N36 -> 616.4114609 | P38: =P33+P35+P36 -> 731.7499658 | R38: =R33+R35+R36 -> 856.9644776
B40: EPS - Basic | D40: =+IF(ISERROR(D33/'Acquirer Assumptions'!D53),0,D33/'Acquirer Assumptions'!D53) -> 0 | E40: =+IF(ISERROR(E33/'Acquirer Assumptions'!E53),0,E33/'Acquirer Assumptions'!E53) -> 0 | F40: =+IF(ISERROR(F33/'Acquirer Assumptions'!F53),0,F33/'Acquirer Assumptions'!F53) -> 0 | G40: =+IF(ISERROR(G33/'Acquirer Assumptions'!G53),0,G33/'Acquirer Assumptions'!G53) -> 0 | H40: =+IF(ISERROR(H33/'Acquirer Assumptions'!H53),0,H33/'Acquirer Assumptions'!H53) -> 0.7671041608 | I40: =+IF(ISERROR(I33/'Acquirer Assumptions'!I53),0,I33/'Acquirer Assumptions'!I53) -> 0 | J40: =+IF(ISERROR(J33/'Acquirer Assumptions'!J53),0,J33/'Acquirer Assumptions'!J53) -> 1.150495924 | K40: =+IF(ISERROR(K33/'Acquirer Assumptions'!K53),0,K33/'Acquirer Assumptions'!K53) -> 0 | L40: =+IF(ISERROR(L33/'Acquirer Assumptions'!L53),0,L33/'Acquirer Assumptions'!L53) -> 1.424430182 | M40: =+IF(ISERROR(M33/'Acquirer Assumptions'!M53),0,M33/'Acquirer Assumptions'!M53) -> 0 | N40: =+IF(ISERROR(N33/'Acquirer Assumptions'!N53),0,N33/'Acquirer Assumptions'!N53) -> 1.721338902 | O40: =+IF(ISERROR(O33/'Acquirer Assumptions'!O53),0,O33/'Acquirer Assumptions'!O53) -> 0 | P40: =+IF(ISERROR(P33/'Acquirer Assumptions'!P53),0,P33/'Acquirer Assumptions'!P53) -> 2.043423529 | Q40: =+IF(ISERROR(Q33/'Acquirer Assumptions'!Q53),0,Q33/'Acquirer Assumptions'!Q53) -> 0 | R40: =+IF(ISERROR(R33/'Acquirer Assumptions'!R53),0,R33/'Acquirer Assumptions'!R53) -> 2.393087064
B42: EPS - Diluted | D42: =+IF(ISERROR(D33/'Acquirer Assumptions'!D54),0,D33/'Acquirer Assumptions'!D54) -> 0 | E42: =+IF(ISERROR(E33/'Acquirer Assumptions'!E54),0,E33/'Acquirer Assumptions'!E54) -> 0 | F42: =+IF(ISERROR(F33/'Acquirer Assumptions'!F54),0,F33/'Acquirer Assumptions'!F54) -> 0 | G42: =+IF(ISERROR(G33/'Acquirer Assumptions'!G54),0,G33/'Acquirer Assumptions'!G54) -> 0 | H42: =+IF(ISERROR(H33/'Acquirer Assumptions'!H54),0,H33/'Acquirer Assumptions'!H54) -> 0.7594691733 | I42: =+IF(ISERROR(I33/'Acquirer Assumptions'!I54),0,I33/'Acquirer Assumptions'!I54) -> 0 | J42: =+IF(ISERROR(J33/'Acquirer Assumptions'!J54),0,J33/'Acquirer Assumptions'!J54) -> 1.139045039 | K42: =+IF(ISERROR(K33/'Acquirer Assumptions'!K54),0,K33/'Acquirer Assumptions'!K54) -> 0 | L42: =+IF(ISERROR(L33/'Acquirer Assumptions'!L54),0,L33/'Acquirer Assumptions'!L54) -> 1.410252828 | M42: =+IF(ISERROR(M33/'Acquirer Assumptions'!M54),0,M33/'Acquirer Assumptions'!M54) -> 0 | N42: =+IF(ISERROR(N33/'Acquirer Assumptions'!N54),0,N33/'Acquirer Assumptions'!N54) -> 1.704206417 | O42: =+IF(ISERROR(O33/'Acquirer Assumptions'!O54),0,O33/'Acquirer Assumptions'!O54) -> 0 | P42: =+IF(ISERROR(P33/'Acquirer Assumptions'!P54),0,P33/'Acquirer Assumptions'!P54) -> 2.023085335 | Q42: =+IF(ISERROR(Q33/'Acquirer Assumptions'!Q54),0,Q33/'Acquirer Assumptions'!Q54) -> 0 | R42: =+IF(ISERROR(R33/'Acquirer Assumptions'!R54),0,R33/'Acquirer Assumptions'!R54) -> 2.369268669
B44: Other Financial Data
B46: Depreciation & Amortization | D46: ='Acquirer Assumptions'!D35+'Acquirer Assumptions'!D37+'Acquirer Assumptions'!D38 -> 739.7 | F46: ='Acquirer Assumptions'!F35+'Acquirer Assumptions'!F37+'Acquirer Assumptions'!F38 -> 895.6 | H46: ='Acquirer Assumptions'!H35+'Acquirer Assumptions'!H37+'Acquirer Assumptions'!H38 -> 983.7 | J46: ='Acquirer Assumptions'!J35+'Acquirer Assumptions'!J37+'Acquirer Assumptions'!J38 -> 1013.3019 | L46: ='Acquirer Assumptions'!L35+'Acquirer Assumptions'!L37+'Acquirer Assumptions'!L38 -> 1094.366052 | N46: ='Acquirer Assumptions'!N35+'Acquirer Assumptions'!N37+'Acquirer Assumptions'!N38 -> 1181.915336 | P46: ='Acquirer Assumptions'!P35+'Acquirer Assumptions'!P37+'Acquirer Assumptions'!P38 -> 1276.468563 | R46: ='Acquirer Assumptions'!R35+'Acquirer Assumptions'!R37+'Acquirer Assumptions'!R38 -> 1378.586048
B47: Capital Expenditures | D47: ='Acquirer Assumptions'!D33 -> 245.4 | F47: ='Acquirer Assumptions'!F33 -> 260.9 | H47: ='Acquirer Assumptions'!H33 -> 1083.4 | J47: ='Acquirer Assumptions'!J33 -> 878.19498 | L47: ='Acquirer Assumptions'!L33 -> 948.4505784 | N47: ='Acquirer Assumptions'!N33 -> 1024.326625 | P47: ='Acquirer Assumptions'!P33 -> 1106.272755 | R47: ='Acquirer Assumptions'!R33 -> 1194.774575
B49: EBITDA | D49: =D20+D46 -> 1188.1 | F49: =F20+F46 -> 1250.8 | H49: =H20+H46 -> 1482.1 | J49: =J20+J46 -> 1909.108644 | L49: =L20+L46 -> 2097.734766 | N49: =N20+N46 -> 2303.963797 | P49: =P20+P46 -> 2529.379868 | R49: =R20+R46 -> 2775.706153
B51: EPS (Excluding Unusual Items) | D51: =IF(ISERROR((D33+D22*(1-'Acquirer Assumptions'!D48))/'Acquirer Assumptions'!D54),0,(D33+D22*(1-'Acquirer Assumptions'!D48))/'Acquirer Assumptions'!D54) -> 0 | E51: =IF(ISERROR((E33+E22*(1-'Acquirer Assumptions'!E48))/'Acquirer Assumptions'!E54),0,(E33+E22*(1-'Acquirer Assumptions'!E48))/'Acquirer Assumptions'!E54) -> 0 | F51: =IF(ISERROR((F33+F22*(1-'Acquirer Assumptions'!F48))/'Acquirer Assumptions'!F54),0,(F33+F22*(1-'Acquirer Assumptions'!F48))/'Acquirer Assumptions'!F54) -> 0 | G51: =IF(ISERROR((G33+G22*(1-'Acquirer Assumptions'!G48))/'Acquirer Assumptions'!G54),0,(G33+G22*(1-'Acquirer Assumptions'!G48))/'Acquirer Assumptions'!G54) -> 0 | H51: =IF(ISERROR((H33+H22*(1-'Acquirer Assumptions'!H48))/'Acquirer Assumptions'!H54),0,(H33+H22*(1-'Acquirer Assumptions'!H48))/'Acquirer Assumptions'!H54) -> 0.7594691733 | I51: =IF(ISERROR((I33+I22*(1-'Acquirer Assumptions'!I48))/'Acquirer Assumptions'!I54),0,(I33+I22*(1-'Acquirer Assumptions'!I48))/'Acquirer Assumptions'!I54) -> 0 | J51: =IF(ISERROR((J33+J22*(1-'Acquirer Assumptions'!J48))/'Acquirer Assumptions'!J54),0,(J33+J22*(1-'Acquirer Assumptions'!J48))/'Acquirer Assumptions'!J54) -> 1.139045039 | K51: =IF(ISERROR((K33+K22*(1-'Acquirer Assumptions'!K48))/'Acquirer Assumptions'!K54),0,(K33+K22*(1-'Acquirer Assumptions'!K48))/'Acquirer Assumptions'!K54) -> 0 | L51: =IF(ISERROR((L33+L22*(1-'Acquirer Assumptions'!L48))/'Acquirer Assumptions'!L54),0,(L33+L22*(1-'Acquirer Assumptions'!L48))/'Acquirer Assumptions'!L54) -> 1.410252828 | M51: =IF(ISERROR((M33+M22*(1-'Acquirer Assumptions'!M48))/'Acquirer Assumptions'!M54),0,(M33+M22*(1-'Acquirer Assumptions'!M48))/'Acquirer Assumptions'!M54) -> 0 | N51: =IF(ISERROR((N33+N22*(1-'Acquirer Assumptions'!N48))/'Acquirer Assumptions'!N54),0,(N33+N22*(1-'Acquirer Assumptions'!N48))/'Acquirer Assumptions'!N54) -> 1.704206417 | O51: =IF(ISERROR((O33+O22*(1-'Acquirer Assumptions'!O48))/'Acquirer Assumptions'!O54),0,(O33+O22*(1-'Acquirer Assumptions'!O48))/'Acquirer Assumptions'!O54) -> 0 | P51: =IF(ISERROR((P33+P22*(1-'Acquirer Assumptions'!P48))/'Acquirer Assumptions'!P54),0,(P33+P22*(1-'Acquirer Assumptions'!P48))/'Acquirer Assumptions'!P54) -> 2.023085335 | Q51: =IF(ISERROR((Q33+Q22*(1-'Acquirer Assumptions'!Q48))/'Acquirer Assumptions'!Q54),0,(Q33+Q22*(1-'Acquirer Assumptions'!Q48))/'Acquirer Assumptions'!Q54) -> 0 | R51: =IF(ISERROR((R33+R22*(1-'Acquirer Assumptions'!R48))/'Acquirer Assumptions'!R54),0,(R33+R22*(1-'Acquirer Assumptions'!R48))/'Acquirer Assumptions'!R54) -> 2.369268669
B53: Cash EPS | F53: =+IF(ISERROR('Acquirer CF'!F27/'Acquirer Assumptions'!F54),0,'Acquirer CF'!F27/'Acquirer Assumptions'!F54) -> 0 | G53: =+IF(ISERROR('Acquirer CF'!G27/'Acquirer Assumptions'!G54),0,'Acquirer CF'!G27/'Acquirer Assumptions'!G54) -> 0 | H53: =+IF(ISERROR('Acquirer CF'!H27/'Acquirer Assumptions'!H54),0,'Acquirer CF'!H27/'Acquirer Assumptions'!H54) -> -0.2352778546 | I53: =+IF(ISERROR('Acquirer CF'!I27/'Acquirer Assumptions'!I54),0,'Acquirer CF'!I27/'Acquirer Assumptions'!I54) -> 0 | J53: =+IF(ISERROR('Acquirer CF'!J27/'Acquirer Assumptions'!J54),0,'Acquirer CF'!J27/'Acquirer Assumptions'!J54) -> 4.79018168 | K53: =+IF(ISERROR('Acquirer CF'!K27/'Acquirer Assumptions'!K54),0,'Acquirer CF'!K27/'Acquirer Assumptions'!K54) -> 0 | L53: =+IF(ISERROR('Acquirer CF'!L27/'Acquirer Assumptions'!L54),0,'Acquirer CF'!L27/'Acquirer Assumptions'!L54) -> 4.621563832 | M53: =+IF(ISERROR('Acquirer CF'!M27/'Acquirer Assumptions'!M54),0,'Acquirer CF'!M27/'Acquirer Assumptions'!M54) -> 0 | N53: =+IF(ISERROR('Acquirer CF'!N27/'Acquirer Assumptions'!N54),0,'Acquirer CF'!N27/'Acquirer Assumptions'!N54) -> 5.125908615 | O53: =+IF(ISERROR('Acquirer CF'!O27/'Acquirer Assumptions'!O54),0,'Acquirer CF'!O27/'Acquirer Assumptions'!O54) -> 0 | P53: =+IF(ISERROR('Acquirer CF'!P27/'Acquirer Assumptions'!P54),0,'Acquirer CF'!P27/'Acquirer Assumptions'!P54) -> 5.672010024 | Q53: =+IF(ISERROR('Acquirer CF'!Q27/'Acquirer Assumptions'!Q54),0,'Acquirer CF'!Q27/'Acquirer Assumptions'!Q54) -> 0 | R53: =+IF(ISERROR('Acquirer CF'!R27/'Acquirer Assumptions'!R54),0,'Acquirer CF'!R27/'Acquirer Assumptions'!R54) -> 6.263593647
B55: Dividends per share | F55: ='Acquirer Assumptions'!F45 -> 0 | H55: ='Acquirer Assumptions'!H45 -> 0 | J55: ='Acquirer Assumptions'!J45 -> 0 | L55: ='Acquirer Assumptions'!L45 -> 0 | N55: ='Acquirer Assumptions'!N45 -> 0 | P55: ='Acquirer Assumptions'!P45 -> 0 | R55: ='Acquirer Assumptions'!R45 -> 0
B57: Dividend-adjusted Cash EPS | F57: =F53-F55 -> 0 | H57: =H53-H55 -> -0.2352778546 | J57: =J53-J55 -> 4.79018168 | L57: =L53-L55 -> 4.621563832 | N57: =N53-N55 -> 5.125908615 | P57: =P53-P55 -> 5.672010024 | R57: =R53-R55 -> 6.263593647

Sheet Acquirer BS
A1: ='Acquirer Assumptions'!A1 -> Thermo (Acquirer) | S1: Balance Sheet
A2: ($Millions, except per share data)
D6: ='Acquirer IS'!D6 -> Actual | J6: ='Acquirer IS'!J6 -> Projections for the Period Ending December 31,
D7: ='Acquirer IS'!D7 -> 2011 | F7: ='Acquirer IS'!F7 -> 2012 | H7: ='Acquirer IS'!H7 -> 2013 | J7: ='Acquirer IS'!J7 -> 2014 | L7: ='Acquirer IS'!L7 -> 2015 | N7: ='Acquirer IS'!N7 -> 2016 | P7: ='Acquirer IS'!P7 -> 2017 | R7: ='Acquirer IS'!R7 -> 2018
B9: Cash and ST Investments | D9: =917.8+8.7 -> 926.5 | F9: =1016.3+4.3 -> 1020.6 | H9: =851+4.3 -> 855.3 | J9: ='Acquirer CF'!J52 -> 1209.713734 | L9: ='Acquirer CF'!L52 -> 1432.882793 | N9: ='Acquirer CF'!N52 -> 1762.597315 | P9: ='Acquirer CF'!P52 -> 2207.890586 | R9: ='Acquirer CF'!R52 -> 2778.657833
B10: Accounts Receivable | D10: 1473.9 | F10: 1763.7 | H10: 1804.9 | J10: =('Acquirer Assumptions'!J22*'Acquirer IS'!J9)/365 -> 1887.795321 | L10: =('Acquirer Assumptions'!L22*'Acquirer IS'!L9)/365 -> 2038.818946 | N10: =('Acquirer Assumptions'!N22*'Acquirer IS'!N9)/365 -> 2201.924462 | P10: =('Acquirer Assumptions'!P22*'Acquirer IS'!P9)/365 -> 2378.078419 | R10: =('Acquirer Assumptions'!R22*'Acquirer IS'!R9)/365 -> 2568.324692
B11: Inventory | D11: 1172.5 | F11: 1330.1 | H11: 1443.3 | J11: =('Acquirer Assumptions'!J23*'Acquirer IS'!J11)/365 -> 1471.740038 | L11: =('Acquirer Assumptions'!L23*'Acquirer IS'!L11)/365 -> 1589.479241 | N11: =('Acquirer Assumptions'!N23*'Acquirer IS'!N11)/365 -> 1716.63758 | P11: =('Acquirer Assumptions'!P23*'Acquirer IS'!P11)/365 -> 1853.968587 | R11: =('Acquirer Assumptions'!R23*'Acquirer IS'!R11)/365 -> 2002.286074
B12: Other | D12: =181.6+381.5 -> 563.1 | F12: =157.8+549.7 -> 707.5 | H12: =182+549.3 -> 731.3 | J12: ='Acquirer IS'!J9*'Acquirer Assumptions'!J24 -> 702.555984 | L12: ='Acquirer IS'!L9*'Acquirer Assumptions'!L24 -> 758.7604627 | N12: ='Acquirer IS'!N9*'Acquirer Assumptions'!N24 -> 819.4612997 | P12: ='Acquirer IS'!P9*'Acquirer Assumptions'!P24 -> 885.0182037 | R12: ='Acquirer IS'!R9*'Acquirer Assumptions'!R24 -> 955.81966
B14: Current Assets | D14: =SUM(D9:D12) -> 4136 | F14: =SUM(F9:F12) -> 4821.9 | H14: =SUM(H9:H12) -> 4834.8 | J14: =SUM(J9:J12) -> 5271.805076 | L14: =SUM(L9:L12) -> 5819.941443 | N14: =SUM(N9:N12) -> 6500.620657 | P14: =SUM(P9:P12) -> 7324.955795 | R14: =SUM(R9:R12) -> 8305.088259
B16: Property, Plant, & Equipment | D16: 4135.6 | F16: 1611.3 | H16: 1726.4 | J16: =H16+'Acquirer Assumptions'!J33 -> 2604.59498 | L16: =J16+'Acquirer Assumptions'!L33 -> 3553.045558 | N16: =L16+'Acquirer Assumptions'!N33 -> 4577.372183 | P16: =N16+'Acquirer Assumptions'!P33 -> 5683.644938 | R16: =P16+'Acquirer Assumptions'!R33 -> 6878.419513
B17: Accumulated Depreciation | D17: 0 | F17: 0 | H17: 0 | J17: =H17-'Acquirer Assumptions'!J35 -> -1013.3019 | L17: =J17-'Acquirer Assumptions'!L35 -> -2107.667952 | N17: =L17-'Acquirer Assumptions'!N35 -> -3289.583288 | P17: =N17-'Acquirer Assumptions'!P35 -> -4566.051851 | R17: =P17-'Acquirer Assumptions'!R35 -> -5944.637899
B19: Net Property, Plant, & Equipment | D19: 1360.7 | F19: =SUM(F16:F17) -> 1611.3 | H19: =SUM(H16:H17) -> 1726.4 | J19: =SUM(J16:J17) -> 1591.29308 | L19: =SUM(L16:L17) -> 1445.377606 | N19: =SUM(N16:N17) -> 1287.788895 | P19: =SUM(P16:P17) -> 1117.593087 | R19: =SUM(R16:R17) -> 933.7816134
B21: Goodwill | D21: 8995.2 | F21: 11973.3 | H21: 12474.5 | J21: =H21-'Acquirer Assumptions'!J37 -> 12474.5 | L21: =J21-'Acquirer Assumptions'!L37 -> 12474.5 | N21: =L21-'Acquirer Assumptions'!N37 -> 12474.5 | P21: =N21-'Acquirer Assumptions'!P37 -> 12474.5 | R21: =P21-'Acquirer Assumptions'!R37 -> 12474.5
B22: Intangible Assets | D22: 5913.2 | F22: 7815.9 | H22: 7804.5 | J22: =H22-'Acquirer Assumptions'!J38 -> 7804.5 | L22: =J22-'Acquirer Assumptions'!L38 -> 7804.5 | N22: =L22-'Acquirer Assumptions'!N38 -> 7804.5 | P22: =N22-'Acquirer Assumptions'!P38 -> 7804.5 | R22: =P22-'Acquirer Assumptions'!R38 -> 7804.5
B23: Deferred Taxes | D23: 0 | F23: 0 | H23: 0 | J23: =H23+'Acquirer Assumptions'!J41 -> 0 | L23: =J23+'Acquirer Assumptions'!L41 -> 0 | N23: =L23+'Acquirer Assumptions'!N41 -> 0 | P23: =N23+'Acquirer Assumptions'!P41 -> 0 | R23: =P23+'Acquirer Assumptions'!R41 -> 0
B24: Equity in Affiliates | D24: 0 | F24: 0 | H24: 0 | J24: =H24-'Acquirer IS'!J23-'Acquirer Assumptions'!J43 -> 0 | L24: =J24-'Acquirer IS'!L23-'Acquirer Assumptions'!L43 -> 0 | N24: =L24-'Acquirer IS'!N23-'Acquirer Assumptions'!N43 -> 0 | P24: =N24-'Acquirer IS'!P23-'Acquirer Assumptions'!P43 -> 0 | R24: =P24-'Acquirer IS'!R23-'Acquirer Assumptions'!R43 -> 0
B25: Other | D25: 944 | F25: 611.3 | H25: 604.4 | J25: =H25+'Acquirer Assumptions'!J27 -> 604.4 | L25: =J25+'Acquirer Assumptions'!L27 -> 604.4 | N25: =L25+'Acquirer Assumptions'!N27 -> 604.4 | P25: =N25+'Acquirer Assumptions'!P27 -> 604.4 | R25: =P25+'Acquirer Assumptions'!R27 -> 604.4
B27: Total Assets | D27: =D14+D19+SUM(D21:D25) -> 21349.1 | F27: =F14+F19+SUM(F21:F25) -> 26833.7 | H27: =H14+H19+SUM(H21:H25) -> 27444.6 | J27: =J14+J19+SUM(J21:J25) -> 27746.49816 | L27: =L14+L19+SUM(L21:L25) -> 28148.71905 | N27: =N14+N19+SUM(N21:N25) -> 28671.80955 | P27: =P14+P19+SUM(P21:P25) -> 29325.94888 | R27: =R14+R19+SUM(R21:R25) -> 30122.26987
B29: Accounts Payable | D29: 546.4 | F29: 612.3 | H29: 641.4 | J29: =('Acquirer Assumptions'!J25*'Acquirer IS'!J11)/365 -> 684.0481867 | L29: =('Acquirer Assumptions'!L25*'Acquirer IS'!L11)/365 -> 738.7720417 | N29: =('Acquirer Assumptions'!N25*'Acquirer IS'!N11)/365 -> 797.873805 | P29: =('Acquirer Assumptions'!P25*'Acquirer IS'!P11)/365 -> 861.7037094 | R29: =('Acquirer Assumptions'!R25*'Acquirer IS'!R11)/365 -> 930.6400062
B30: Other | D30: =105.9+304.5+158.1+594.4 -> 1162.9 | F30: =3113.1-612.3 -> 2500.8 | H30: =2093.3-641.4 -> 1451.9 | J30: ='Acquirer IS'!J11*'Acquirer Assumptions'!J26 -> 1588.857379 | L30: ='Acquirer IS'!L11*'Acquirer Assumptions'!L26 -> 1715.96597 | N30: ='Acquirer IS'!N11*'Acquirer Assumptions'!N26 -> 1853.243247 | P30: ='Acquirer IS'!P11*'Acquirer Assumptions'!P26 -> 2001.502707 | R30: ='Acquirer IS'!R11*'Acquirer Assumptions'!R26 -> 2161.622923
B32: Current Liabilities | D32: =SUM(D29:D30) -> 1709.3 | F32: =SUM(F29:F30) -> 3113.1 | H32: =SUM(H29:H30) -> 2093.3 | J32: =SUM(J29:J30) -> 2272.905566 | L32: =SUM(L29:L30) -> 2454.738011 | N32: =SUM(N29:N30) -> 2651.117052 | P32: =SUM(P29:P30) -> 2863.206416 | R32: =SUM(R29:R30) -> 3092.26293
B34: Revolving Credit Facility | D34: 0 | F34: 0 | H34: 0 | J34: ='Acquirer CF'!J51 -> 0 | L34: ='Acquirer CF'!L51 -> 0 | N34: ='Acquirer CF'!N51 -> 0 | P34: ='Acquirer CF'!P51 -> 0 | R34: ='Acquirer CF'!R51 -> 0
B35: Senor Debt | D35: 2031.6 | F35: 5755.2 | H35: 7031.2 | J35: =H35-'Acquirer Assumptions'!J39 -> 6531.2 | L35: =J35-'Acquirer Assumptions'!L39 -> 6031.2 | N35: =L35-'Acquirer Assumptions'!N39 -> 5531.2 | P35: =N35-'Acquirer Assumptions'!P39 -> 5031.2 | R35: =P35-'Acquirer Assumptions'!R39 -> 4531.2
B36: Subordinated Debt | D36: 0 | F36: 0 | H36: 0 | J36: =H36-'Acquirer Assumptions'!J40 -> 0 | L36: =J36-'Acquirer Assumptions'!L40 -> 0 | N36: =L36-'Acquirer Assumptions'!N40 -> 0 | P36: =N36-'Acquirer Assumptions'!P40 -> 0 | R36: =P36-'Acquirer Assumptions'!R40 -> 0
B38: Total | D38: =SUM(D34:D36) -> 2031.6 | F38: =SUM(F34:F36) -> 5755.2 | H38: =SUM(H34:H36) -> 7031.2 | J38: =SUM(J34:J36) -> 6531.2 | L38: =SUM(L34:L36) -> 6031.2 | N38: =SUM(N34:N36) -> 5531.2 | P38: =SUM(P34:P36) -> 5031.2 | R38: =SUM(R34:R36) -> 4531.2
B40: Deferred Taxes | D40: 1626.6 | F40: 2229.3 | H40: 2047.2 | J40: =H40+'Acquirer Assumptions'!J42 -> 2257.5 | L40: =J40+'Acquirer Assumptions'!L42 -> 2467.8 | N40: =L40+'Acquirer Assumptions'!N42 -> 2678.1 | P40: =N40+'Acquirer Assumptions'!P42 -> 2888.4 | R40: =P40+'Acquirer Assumptions'!R42 -> 3098.7
B41: Other | D41: 621 | F41: 698 | H41: 808.2 | J41: =H41+'Acquirer Assumptions'!J28 -> 808.2 | L41: =J41+'Acquirer Assumptions'!L28 -> 808.2 | N41: =L41+'Acquirer Assumptions'!N28 -> 808.2 | P41: =N41+'Acquirer Assumptions'!P28 -> 808.2 | R41: =P41+'Acquirer Assumptions'!R28 -> 808.2
B43: Total Liabilities | D43: =D32+D38+SUM(D40:D41) -> 5988.5 | F43: =F32+F38+SUM(F40:F41) -> 11795.6 | H43: =H32+H38+SUM(H40:H41) -> 11979.9 | J43: =J32+J38+SUM(J40:J41) -> 11869.80557 | L43: =L32+L38+SUM(L40:L41) -> 11761.93801 | N43: =N32+N38+SUM(N40:N41) -> 11668.61705 | P43: =P32+P38+SUM(P40:P41) -> 11591.00642 | R43: =R32+R38+SUM(R40:R41) -> 11530.36293
B45: Common Stock | D45: 401.3 | F45: 406.4 | H45: 413.5 | J45: =H45 -> 413.5 | L45: =J45 -> 413.5 | N45: =L45 -> 413.5 | P45: =N45 -> 413.5 | R45: =P45 -> 413.5
B46: Preferred Equity | D46: 0 | F46: 0 | H46: 0 | J46: =H46 -> 0 | L46: =J46 -> 0 | N46: =L46 -> 0 | P46: =N46 -> 0 | R46: =P46 -> 0
B47: Retained Earnings | D47: 5386.8 | F47: 6716.3 | H47: 7697.3 | J47: =H47+'Acquirer IS'!J38+'Acquirer CF'!J37 -> 8109.292591 | L47: =J47+'Acquirer IS'!L38+'Acquirer CF'!L37 -> 8619.381039 | N47: =L47+'Acquirer IS'!N38+'Acquirer CF'!N37 -> 9235.792499 | P47: =N47+'Acquirer IS'!P38+'Acquirer CF'!P37 -> 9967.542465 | R47: =P47+'Acquirer IS'!R38+'Acquirer CF'!R37 -> 10824.50694
B48: Treasury Stock | D48: -490.8 | F48: -1837.1 | H48: -2996.8 | J48: =H48 -> -2996.8 | L48: =J48 -> -2996.8 | N48: =L48 -> -2996.8 | P48: =N48 -> -2996.8 | R48: =P48 -> -2996.8
B49: Other Adjustments | D49: =10019.7+43.6 -> 10063.3 | F49: =10152-399.5 -> 9752.5 | H49: =10501.1-150.4 -> 10350.7 | J49: =H49 -> 10350.7 | L49: =J49 -> 10350.7 | N49: =L49 -> 10350.7 | P49: =N49 -> 10350.7 | R49: =P49 -> 10350.7
B50: Noncontrolling Interest | D50: 0 | F50: 0 | H50: 0 | J50: =H50+'Acquirer IS'!J30 -> 0 | L50: =J50+'Acquirer IS'!L30 -> 0 | N50: =L50+'Acquirer IS'!N30 -> 0 | P50: =N50+'Acquirer IS'!P30 -> 0 | R50: =P50+'Acquirer IS'!R30 -> 0
B51: Total Stockholders Equity | D51: =SUM(D45:D50) -> 15360.6 | E51: =SUM(E45:E50) -> 0 | F51: 15038.1 | G51: 0 | H51: 15464.7 | J51: =SUM(J45:J50) -> 15876.69259 | K51: =SUM(K45:K50) -> 0 | L51: 16386.78104 | M51: 0 | N51: 17003.1925 | O51: 0 | P51: 17734.94247 | Q51: 0 | R51: 18591.90694
B53: Total Liabilities and Equity | D53: =D43+D51 -> 21349.1 | F53: =F43+F51 -> 26833.7 | H53: =H43+H51 -> 27444.6 | J53: =J43+J51 -> 27746.49816 | L53: =L43+L51 -> 28148.71905 | N53: =N43+N51 -> 28671.80955 | P53: =P43+P51 -> 29325.94888 | R53: =R43+R51 -> 30122.26987
B57: Reconciliation | D57: =D53-D27 -> 0 | F57: =F53-F27 -> 0 | H57: =H53-H27 -> 0 | J57: =J53-J27 -> 0 | L57: =L53-L27 -> 0 | N57: =N53-N27 -> 0 | P57: =P53-P27 -> 0 | R57: =R53-R27 -> 0

Sheet Acquirer CF
A1: ='Acquirer Assumptions'!A1 -> Thermo (Acquirer) | S1: Statement of Cash Flow
A2: ($Millions, except per share data)
F6: ='Acquirer BS'!D6 -> Actual | J6: ='Acquirer BS'!J6 -> Projections for the Period Ending December 31,
F7: ='Acquirer BS'!F7 -> 2012 | H7: ='Acquirer BS'!H7 -> 2013 | J7: ='Acquirer BS'!J7 -> 2014 | L7: ='Acquirer BS'!L7 -> 2015 | N7: ='Acquirer BS'!N7 -> 2016 | P7: ='Acquirer BS'!P7 -> 2017 | R7: ='Acquirer BS'!R7 -> 2018
B9: Net Income | F9: ='Acquirer IS'!F38 -> 434.3 | H9: ='Acquirer IS'!H38 -> 194.2 | J9: ='Acquirer IS'!J38 -> 411.9925906 | L9: ='Acquirer IS'!L38 -> 510.088448 | N9: ='Acquirer IS'!N38 -> 616.4114609 | P9: ='Acquirer IS'!P38 -> 731.7499658 | R9: ='Acquirer IS'!R38 -> 856.9644776
B11: Depreciation & Amortization | F11: ='Acquirer IS'!F46 -> 895.6 | H11: ='Acquirer IS'!H46 -> 983.7 | J11: ='Acquirer IS'!J46 -> 1013.3019 | L11: ='Acquirer IS'!L46 -> 1094.366052 | N11: ='Acquirer IS'!N46 -> 1181.915336 | P11: ='Acquirer IS'!P46 -> 1276.468563 | R11: ='Acquirer IS'!R46 -> 1378.586048
B13: Income from Affiliates, Net of Dividends | F13: ='Acquirer IS'!F23+'Acquirer Assumptions'!F43 -> 0 | H13: ='Acquirer IS'!H23+'Acquirer Assumptions'!H43 -> 0 | J13: ='Acquirer IS'!J23+'Acquirer Assumptions'!J43 -> 0 | L13: ='Acquirer IS'!L23+'Acquirer Assumptions'!L43 -> 0 | N13: ='Acquirer IS'!N23+'Acquirer Assumptions'!N43 -> 0 | P13: ='Acquirer IS'!P23+'Acquirer Assumptions'!P43 -> 0 | R13: ='Acquirer IS'!R23+'Acquirer Assumptions'!R43 -> 0
A15: Change in
B17: Accounts Receivable | F17: ='Acquirer BS'!D10-'Acquirer BS'!F10 -> -289.8 | H17: ='Acquirer BS'!F10-'Acquirer BS'!H10 -> -41.2 | J17: ='Acquirer BS'!H10-'Acquirer BS'!J10 -> -82.89532055 | L17: ='Acquirer BS'!J10-'Acquirer BS'!L10 -> -151.0236256 | N17: ='Acquirer BS'!L10-'Acquirer BS'!N10 -> -163.1055157 | P17: ='Acquirer BS'!N10-'Acquirer BS'!P10 -> -176.153957 | R17: ='Acquirer BS'!P10-'Acquirer BS'!R10 -> -190.2462735
B18: Inventory | F18: ='Acquirer BS'!D11-'Acquirer BS'!F11 -> -157.6 | H18: ='Acquirer BS'!F11-'Acquirer BS'!H11 -> -113.2 | J18: ='Acquirer BS'!H11-'Acquirer BS'!J11 -> -28.44003814 | L18: ='Acquirer BS'!J11-'Acquirer BS'!L11 -> -117.7392031 | N18: ='Acquirer BS'!L11-'Acquirer BS'!N11 -> -127.1583393 | P18: ='Acquirer BS'!N11-'Acquirer BS'!P11 -> -137.3310064 | R18: ='Acquirer BS'!P11-'Acquirer BS'!R11 -> -148.317487
B19: Other Current Assets | F19: ='Acquirer BS'!D12-'Acquirer BS'!F12 -> -144.4 | H19: ='Acquirer BS'!F12-'Acquirer BS'!H12 -> -23.8 | J19: ='Acquirer BS'!H12-'Acquirer BS'!J12 -> 28.744016 | L19: ='Acquirer BS'!J12-'Acquirer BS'!L12 -> -56.20447872 | N19: ='Acquirer BS'!L12-'Acquirer BS'!N12 -> -60.70083702 | P19: ='Acquirer BS'!N12-'Acquirer BS'!P12 -> -65.55690398 | R19: ='Acquirer BS'!P12-'Acquirer BS'!R12 -> -70.8014563
B20: Accounts Payable | F20: ='Acquirer BS'!F29-'Acquirer BS'!D29 -> 65.9 | H20: ='Acquirer BS'!H29-'Acquirer BS'!F29 -> 29.1 | J20: ='Acquirer BS'!J29-'Acquirer BS'!H29 -> 42.64818674 | L20: ='Acquirer BS'!L29-'Acquirer BS'!J29 -> 54.72385494 | N20: ='Acquirer BS'!N29-'Acquirer BS'!L29 -> 59.10176333 | P20: ='Acquirer BS'!P29-'Acquirer BS'!N29 -> 63.8299044 | R20: ='Acquirer BS'!R29-'Acquirer BS'!P29 -> 68.93629675
B21: Other Current Liabilities | F21: ='Acquirer BS'!F30-'Acquirer BS'!D30 -> 1337.9 | H21: ='Acquirer BS'!H30-'Acquirer BS'!F30 -> -1048.9 | J21: ='Acquirer BS'!J30-'Acquirer BS'!H30 -> 136.9573792 | L21: ='Acquirer BS'!L30-'Acquirer BS'!J30 -> 127.1085903 | N21: ='Acquirer BS'!N30-'Acquirer BS'!L30 -> 137.2772776 | P21: ='Acquirer BS'!P30-'Acquirer BS'!N30 -> 148.2594598 | R21: ='Acquirer BS'!R30-'Acquirer BS'!P30 -> 160.1202165
B22: Other Assets | F22: ='Acquirer BS'!D25-'Acquirer BS'!F25 -> 332.7 | H22: ='Acquirer BS'!F25-'Acquirer BS'!H25 -> 6.9 | J22: ='Acquirer BS'!H25-'Acquirer BS'!J25 -> 0 | L22: ='Acquirer BS'!J25-'Acquirer BS'!L25 -> 0 | N22: ='Acquirer BS'!L25-'Acquirer BS'!N25 -> 0 | P22: ='Acquirer BS'!N25-'Acquirer BS'!P25 -> 0 | R22: ='Acquirer BS'!P25-'Acquirer BS'!R25 -> 0
B23: Deferred Taxes | F23: ='Acquirer BS'!F40-'Acquirer BS'!D40+'Acquirer BS'!D23-'Acquirer BS'!F23 -> 602.7 | H23: ='Acquirer BS'!H40-'Acquirer BS'!F40+'Acquirer BS'!F23-'Acquirer BS'!H23 -> -182.1 | J23: ='Acquirer BS'!J40-'Acquirer BS'!H40+'Acquirer BS'!H23-'Acquirer BS'!J23 -> 210.3 | L23: ='Acquirer BS'!L40-'Acquirer BS'!J40+'Acquirer BS'!J23-'Acquirer BS'!L23 -> 210.3 | N23: ='Acquirer BS'!N40-'Acquirer BS'!L40+'Acquirer BS'!L23-'Acquirer BS'!N23 -> 210.3 | P23: ='Acquirer BS'!P40-'Acquirer BS'!N40+'Acquirer BS'!N23-'Acquirer BS'!P23 -> 210.3 | R23: ='Acquirer BS'!R40-'Acquirer BS'!P40+'Acquirer BS'!P23-'Acquirer BS'!R23 -> 210.3
B24: Minority Interest | F24: ='Acquirer BS'!F50-'Acquirer BS'!D50 -> 0 | H24: ='Acquirer BS'!H50-'Acquirer BS'!F50 -> 0 | J24: ='Acquirer BS'!J50-'Acquirer BS'!H50 -> 0 | L24: ='Acquirer BS'!L50-'Acquirer BS'!J50 -> 0 | N24: ='Acquirer BS'!N50-'Acquirer BS'!L50 -> 0 | P24: ='Acquirer BS'!P50-'Acquirer BS'!N50 -> 0 | R24: ='Acquirer BS'!R50-'Acquirer BS'!P50 -> 0
B25: Other Liabilities | F25: ='Acquirer BS'!F41-'Acquirer BS'!D41 -> 77 | H25: ='Acquirer BS'!H41-'Acquirer BS'!F41 -> 110.2 | J25: ='Acquirer BS'!J41-'Acquirer BS'!H41 -> 0 | L25: ='Acquirer BS'!L41-'Acquirer BS'!J41 -> 0 | N25: ='Acquirer BS'!N41-'Acquirer BS'!L41 -> 0 | P25: ='Acquirer BS'!P41-'Acquirer BS'!N41 -> 0 | R25: ='Acquirer BS'!R41-'Acquirer BS'!P41 -> 0
A27: Cash Flow from Operating Activities | F27: =SUM(F9:F25) -> 3154.3 | H27: =SUM(H9:H25) -> -85.1 | J27: =SUM(J9:J25) -> 1732.608714 | L27: =SUM(L9:L25) -> 1671.619638 | N27: =SUM(N9:N25) -> 1854.041146 | P27: =SUM(P9:P25) -> 2051.566026 | R27: =SUM(R9:R25) -> 2265.541822
B29: Capital Expenditures | F29: =-'Acquirer IS'!F47 -> -260.9 | H29: =-'Acquirer IS'!H47 -> -1083.4 | J29: =-'Acquirer IS'!J47 -> -878.19498 | L29: =-'Acquirer IS'!L47 -> -948.4505784 | N29: =-'Acquirer IS'!N47 -> -1024.326625 | P29: =-'Acquirer IS'!P47 -> -1106.272755 | R29: =-'Acquirer IS'!R47 -> -1194.774575
B30: Acquisitions | F30: 0 | H30: 0 | J30: 0 | L30: 0 | N30: 0 | P30: 0 | R30: 0
B31: Sale of Assets | F31: 0 | H31: 0 | J31: 0 | L31: 0 | N31: 0 | P31: 0 | R31: 0
A33: Cash Flow from Investing Activities | F33: =SUM(F29:F31) -> -260.9 | H33: =SUM(H29:H31) -> -1083.4 | J33: =SUM(J29:J31) -> -878.19498 | L33: =SUM(L29:L31) -> -948.4505784 | N33: =SUM(N29:N31) -> -1024.326625 | P33: =SUM(P29:P31) -> -1106.272755 | R33: =SUM(R29:R31) -> -1194.774575
B35: Net Change in Equity | F35: ='Acquirer BS'!F45-'Acquirer BS'!D45+'Acquirer BS'!F46-'Acquirer BS'!D46+'Acquirer BS'!F48-'Acquirer BS'!D48+'Acquirer BS'!F49-'Acquirer BS'!D49 -> -1652 | H35: ='Acquirer BS'!H45-'Acquirer BS'!F45+'Acquirer BS'!H46-'Acquirer BS'!F46+'Acquirer BS'!H48-'Acquirer BS'!F48+'Acquirer BS'!H49-'Acquirer BS'!F49 -> -554.4 | J35: ='Acquirer BS'!J45-'Acquirer BS'!H45+'Acquirer BS'!J46-'Acquirer BS'!H46+'Acquirer BS'!J48-'Acquirer BS'!H48+'Acquirer BS'!J49-'Acquirer BS'!H49 -> 0 | L35: ='Acquirer BS'!L45-'Acquirer BS'!J45+'Acquirer BS'!L46-'Acquirer BS'!J46+'Acquirer BS'!L48-'Acquirer BS'!J48+'Acquirer BS'!L49-'Acquirer BS'!J49 -> 0 | N35: ='Acquirer BS'!N45-'Acquirer BS'!L45+'Acquirer BS'!N46-'Acquirer BS'!L46+'Acquirer BS'!N48-'Acquirer BS'!L48+'Acquirer BS'!N49-'Acquirer BS'!L49 -> 0 | P35: ='Acquirer BS'!P45-'Acquirer BS'!N45+'Acquirer BS'!P46-'Acquirer BS'!N46+'Acquirer BS'!P48-'Acquirer BS'!N48+'Acquirer BS'!P49-'Acquirer BS'!N49 -> 0 | R35: ='Acquirer BS'!R45-'Acquirer BS'!P45+'Acquirer BS'!R46-'Acquirer BS'!P46+'Acquirer BS'!R48-'Acquirer BS'!P48+'Acquirer BS'!R49-'Acquirer BS'!P49 -> 0
B36: Net Change in Debt | F36: ='Acquirer BS'!F35-'Acquirer BS'!D35+'Acquirer BS'!F36-'Acquirer BS'!D36 -> 3723.6 | H36: ='Acquirer BS'!H35-'Acquirer BS'!F35+'Acquirer BS'!H36-'Acquirer BS'!F36 -> 1276 | J36: ='Acquirer BS'!J35-'Acquirer BS'!H35+'Acquirer BS'!J36-'Acquirer BS'!H36 -> -500 | L36: ='Acquirer BS'!L35-'Acquirer BS'!J35+'Acquirer BS'!L36-'Acquirer BS'!J36 -> -500 | N36: ='Acquirer BS'!N35-'Acquirer BS'!L35+'Acquirer BS'!N36-'Acquirer BS'!L36 -> -500 | P36: ='Acquirer BS'!P35-'Acquirer BS'!N35+'Acquirer BS'!P36-'Acquirer BS'!N36 -> -500 | R36: ='Acquirer BS'!R35-'Acquirer BS'!P35+'Acquirer BS'!R36-'Acquirer BS'!P36 -> -500
B37: Dividends Paid | F37: =-'Acquirer Assumptions'!F47 -> 0 | H37: =-'Acquirer Assumptions'!H47 -> 0 | J37: =-'Acquirer Assumptions'!J47 -> 0 | L37: =-'Acquirer Assumptions'!L47 -> 0 | N37: =-'Acquirer Assumptions'!N47 -> 0 | P37: =-'Acquirer Assumptions'!P47 -> 0 | R37: =-'Acquirer Assumptions'!R47 -> 0
A39: Cash Flow from Financing Activities | F39: =SUM(F35:F37) -> 2071.6 | H39: =SUM(H35:H37) -> 721.6 | J39: =SUM(J35:J37) -> -500 | L39: =SUM(L35:L37) -> -500 | N39: =SUM(N35:N37) -> -500 | P39: =SUM(P35:P37) -> -500 | R39: =SUM(R35:R37) -> -500
B41: Net Change in Cash | F41: =F27+F33+F39 -> 4965 | H41: =H27+H33+H39 -> -446.9 | J41: =J27+J33+J39 -> 354.4137338 | L41: =L27+L33+L39 -> 223.1690595 | N41: =N27+N33+N39 -> 329.7145213 | P41: =P27+P33+P39 -> 445.293271 | R41: =R27+R33+R39 -> 570.7672473
B43: Beginning Cash Balance | F43: ='Acquirer BS'!D9 -> 926.5 | H43: ='Acquirer BS'!F9 -> 1020.6 | J43: ='Acquirer BS'!H9 -> 855.3 | L43: ='Acquirer BS'!J9 -> 1209.713734 | N43: ='Acquirer BS'!L9 -> 1432.882793 | P43: ='Acquirer BS'!N9 -> 1762.597315 | R43: ='Acquirer BS'!P9 -> 2207.890586
B45: Cash Available for Revolving Credit | F45: =F41+F43 -> 5891.5 | H45: =H41+H43 -> 573.7 | J45: =J41+J43 -> 1209.713734 | L45: =L41+L43 -> 1432.882793 | N45: =N41+N43 -> 1762.597315 | P45: =P41+P43 -> 2207.890586 | R45: =R41+R43 -> 2778.657833
B49: Beginning Revolver | J49: ='Acquirer BS'!H34 -> 0 | L49: ='Acquirer BS'!J34 -> 0 | N49: ='Acquirer BS'!L34 -> 0 | P49: ='Acquirer BS'!N34 -> 0 | R49: ='Acquirer BS'!P34 -> 0
B50: Total Repayment | J50: =IF(J45-J49<$F$54,J45-$F$54,J49) -> 0 | L50: =IF(L45-L49<$F$54,L45-$F$54,L49) -> 0 | N50: =IF(N45-N49<$F$54,N45-$F$54,N49) -> 0 | P50: =IF(P45-P49<$F$54,P45-$F$54,P49) -> 0 | R50: =IF(R45-R49<$F$54,R45-$F$54,R49) -> 0
B51: Ending Revolving Credit Facility | J51: =J49-J50 -> 0 | L51: =L49-L50 -> 0 | N51: =N49-N50 -> 0 | P51: =P49-P50 -> 0 | R51: =R49-R50 -> 0
B52: Ending Cash | J52: =IF(J45-J49<0,$F$54,J45-J50) -> 1209.713734 | L52: =IF(L45-L49<0,$F$54,L45-L50) -> 1432.882793 | N52: =IF(N45-N49<0,$F$54,N45-N50) -> 1762.597315 | P52: =IF(P45-P49<0,$F$54,P45-P50) -> 2207.890586 | R52: =IF(R45-R49<0,$F$54,R45-R50) -> 2778.657833
B54: Minimum Cash Balance | F54: 0

Sheet Newco Assumptions
A1: Newco | S1: Assumptions
A2: ($Millions except per share data)
D6: Actual | J6: Projections
D7: 2011 | F7: =D7+1 -> 2012 | H7: =F7+1 -> 2013 | J7: =H7+1 -> 2014 | L7: =J7+1 -> 2015 | N7: =L7+1 -> 2016 | P7: =N7+1 -> 2017 | R7: =P7+1 -> 2018
B9: Income Statement
B11: Sales Growth | D11: ='Acquirer Assumptions'!D11 -> NA | F11: =+IF(ISERROR('Acquirer Assumptions'!F11),0,'Acquirer Assumptions'!F11) -> 0.1121609529 | H11: ='Acquirer Assumptions'!H11 -> 0.092 | J11: =+IF(ISERROR('Newco IS'!M9/'Newco IS'!G9-1),0,'Newco IS'!M9/'Newco IS'!G9-1) -> 0.3011981178 | K11: =+IF(ISERROR('Newco IS'!N9/'Newco IS'!H9-1),0,'Newco IS'!N9/'Newco IS'!H9-1) -> 0 | L11: =+('Newco IS'!P9/'Newco IS'!M9)-1 -> 0.07851855398 | M11: =+('Newco IS'!Q9/'Newco IS'!N9)-1 ->  | N11: ='Newco IS'!R9/'Newco IS'!P9-1 -> 0.07788565005 | O11: =+('Newco IS'!S9/'Newco IS'!P9)-1 -> -1 | P11: ='Newco IS'!T9/'Newco IS'!R9-1 -> 0.07762524879 | Q11: =+('Newco IS'!U9/'Newco IS'!R9)-1 -> -1 | R11: ='Newco IS'!V9/'Newco IS'!T9-1 -> 0.07764840927
B12: COGS as a % of Sales | D12: ='Acquirer Assumptions'!D12 -> 0.5899683444 | F12: ='Acquirer Assumptions'!F12 -> 0.5852510641 | H12: ='Acquirer Assumptions'!H12 -> 0.568 | J12: =+IF(ISERROR('Newco IS'!M12/'Newco IS'!M9),0,'Newco IS'!M12/'Newco IS'!M9) -> 0.5299014304 | K12: =+IF(ISERROR('Newco IS'!N12/'Newco IS'!N9),0,'Newco IS'!N12/'Newco IS'!N9) -> 0 | L12: ='Newco IS'!P12/'Newco IS'!P9 -> 0.5236088938 | M12: ='Newco IS'!Q12/'Newco IS'!Q9 ->  | N12: ='Newco IS'!R12/'Newco IS'!R9 -> 0.5207091581 | O12: ='Newco IS'!S12/'Newco IS'!S9 ->  | P12: ='Newco IS'!T12/'Newco IS'!T9 -> 0.5217065741 | Q12: ='Newco IS'!U12/'Newco IS'!U9 ->  | R12: ='Newco IS'!V12/'Newco IS'!V9 -> 0.5226457796
B13: Integration Related Expenses ($M) | J13: 50 | L13: 50 | N13: 50
B14: SG&A % annual increase | D14: ='Acquirer Assumptions'!D13 -> NA | F14: ='Acquirer Assumptions'!F13 -> 0.138412489 | H14: ='Acquirer Assumptions'!H13 -> 0.07996137132 | J14: =+IF(ISERROR('Newco IS'!M16/'Newco IS'!G16-1),0,'Newco IS'!M16/'Newco IS'!G16-1) -> 0.2987733662 | K14: =+IF(ISERROR('Newco IS'!N16/'Newco IS'!H16-1),0,'Newco IS'!N16/'Newco IS'!H16-1) -> 0 | L14: ='Newco IS'!P16/'Newco IS'!M16-1 -> 0.05810794948 | M14: =+'Target IS'!M15/'Target IS'!K15-1 ->  | N14: =+'Newco IS'!R16/'Newco IS'!P16-1 -> 0.05944155226 | O14: =+'Target IS'!O15/'Target IS'!M15-1 ->  | P14: =+'Newco IS'!T16/'Newco IS'!R16-1 -> 0.06071223257 | Q14: =+'Target IS'!Q15/'Target IS'!O15-1 ->  | R14: ='Newco IS'!V16/'Newco IS'!T16-1 -> 0.06100879174
B15: Other Operating Expense as a % of Sales | D15: ='Acquirer Assumptions'!D14 -> 0.03315661352 | F15: ='Acquirer Assumptions'!F14 -> 0.03778073848 | H15: ='Acquirer Assumptions'!H14 -> 0.03665097243 | J15: =+IF(ISERROR('Newco IS'!M17/'Newco IS'!M9),0,'Newco IS'!M17/'Newco IS'!M9) -> 0.0484805528 | K15: =+IF(ISERROR('Newco IS'!N17/'Newco IS'!N9),0,'Newco IS'!N17/'Newco IS'!N9) -> 0 | L15: =+'Newco IS'!P17/'Newco IS'!P9 -> 0.04833278363 | M15: =+IF(ISERROR('Newco IS'!P17/'Newco IS'!P9),0,'Newco IS'!P17/'Newco IS'!P9) -> 0.04833278363 | N15: =+'Newco IS'!R17/'Newco IS'!R9 -> 0.04821479835 | O15: =+IF(ISERROR('Newco IS'!R17/'Newco IS'!R9),0,'Newco IS'!R17/'Newco IS'!R9) -> 0.04821479835 | P15: =+'Newco IS'!T17/'Newco IS'!T9 -> 0.04810976101 | Q15: =+IF(ISERROR('Newco IS'!T17/'Newco IS'!T9),0,'Newco IS'!T17/'Newco IS'!T9) -> 0.04810976101 | R15: =+'Newco IS'!V17/'Newco IS'!V9 -> 0.04800495553
B16: Income from Affiliates Growth | D16: ='Acquirer Assumptions'!D15 -> NA | F16: ='Acquirer Assumptions'!F15 -> 0 | H16: ='Acquirer Assumptions'!H15 -> 0 | J16: =IF('Newco IS'!M24=0,0,'Newco IS'!P24/'Newco IS'!M24-1) -> 0 | L16: =IF('Newco IS'!M24=0,0,'Newco IS'!P24/'Newco IS'!M24-1) -> 0 | N16: =IF('Newco IS'!O24=0,0,'Newco IS'!R24/'Newco IS'!O24-1) -> 0 | P16: =IF('Newco IS'!Q24=0,0,'Newco IS'!T24/'Newco IS'!Q24-1) -> 0 | R16: =IF('Newco IS'!S24=0,0,'Newco IS'!V24/'Newco IS'!S24-1) -> 0
B17: Minority Interest - % of Earnings | D17: ='Acquirer Assumptions'!D16 -> 0 | F17: ='Acquirer Assumptions'!F16 -> 0 | H17: ='Acquirer Assumptions'!H16 -> 0 | J17: ='Newco IS'!M31/('Newco IS'!M29-'Newco IS'!M32) -> 0 | L17: ='Newco IS'!P31/('Newco IS'!P29-'Newco IS'!P32) -> 0 | N17: ='Newco IS'!R31/('Newco IS'!R29-'Newco IS'!R32) -> 0 | P17: ='Newco IS'!T31/('Newco IS'!T29-'Newco IS'!T32) -> 0 | R17: ='Newco IS'!V31/('Newco IS'!V29-'Newco IS'!V32) -> 0
B18: EBITDA Growth | D18: ='Acquirer Assumptions'!D17 -> NA | F18: ='Acquirer Assumptions'!F17 -> 0.05277333558 | H18: ='Acquirer Assumptions'!H17 -> 0.1849216501 | J18: =+IF(ISERROR('Newco IS'!M50/'Newco IS'!G50-1),0,'Newco IS'!M50/'Newco IS'!G50-1) -> 0.4141776715 | K18: =+IF(ISERROR('Newco IS'!N50/'Newco IS'!H50-1),0,'Newco IS'!N50/'Newco IS'!H50-1) -> 0 | L18: ='Newco IS'!P50/'Newco IS'!M50-1 -> 0.1604487264 | M18: =+IF(ISERROR('Newco IS'!P50/'Newco IS'!J50-1),0,'Newco IS'!P50/'Newco IS'!J50-1) -> 0 | N18: ='Newco IS'!R50/'Newco IS'!P50-1 -> 0.1438147767 | O18: =+IF(ISERROR('Newco IS'!R50/'Newco IS'!L50-1),0,'Newco IS'!R50/'Newco IS'!L50-1) -> 0 | P18: ='Newco IS'!T50/'Newco IS'!R50-1 -> 0.09680749434 | Q18: =+IF(ISERROR('Newco IS'!T50/'Newco IS'!N50-1),0,'Newco IS'!T50/'Newco IS'!N50-1) -> 0 | R18: ='Newco IS'!V50/'Newco IS'!T50-1 -> 0.09607917673
B19: EBITDA Margin | D19: ='Acquirer Assumptions'!D18 -> 0.114316229 | F19: ='Acquirer Assumptions'!F18 -> 0.1082119251 | H19: ='Acquirer Assumptions'!H18 -> 0.1184741685 | J19: =+IF(ISERROR('Newco IS'!M50/'Newco IS'!M9),0,'Newco IS'!M50/'Newco IS'!M9) -> 0.1535725515 | K19: =+IF(ISERROR('Newco IS'!N50/'Newco IS'!N9),0,'Newco IS'!N50/'Newco IS'!N9) -> 0 | L19: ='Newco IS'!P50/'Newco IS'!P9 -> 0.1652387631 | M19: =+IF(ISERROR('Newco IS'!P50/'Newco IS'!P9),0,'Newco IS'!P50/'Newco IS'!P9) -> 0.1652387631 | N19: ='Newco IS'!R50/'Newco IS'!R9 -> 0.1753456305 | O19: =+IF(ISERROR('Newco IS'!R50/'Newco IS'!R9),0,'Newco IS'!R50/'Newco IS'!R9) -> 0.1753456305 | P19: ='Newco IS'!T50/'Newco IS'!T9 -> 0.1784668667 | Q19: =+IF(ISERROR('Newco IS'!T50/'Newco IS'!T9),0,'Newco IS'!T50/'Newco IS'!T9) -> 0.1784668667 | R19: ='Newco IS'!V50/'Newco IS'!V9 -> 0.1815191436
B21: Balance Sheet
B23: Receivable Days | D23: ='Acquirer Assumptions'!D22 -> 51.76256362 | F23: ='Acquirer Assumptions'!F22 -> 55.69354085 | H23: ='Acquirer Assumptions'!H22 -> 52.66137219 | J23: =+IF(ISERROR(('Target Assumptions'!J22*'Target IS'!J9+'Acquirer Assumptions'!J22*'Acquirer IS'!J9)/('Target IS'!J9+'Acquirer IS'!J9)),0,('Target Assumptions'!J22*'Target IS'!J9+'Acquirer Assumptions'!J22*'Acquirer IS'!J9)/('Target IS'!J9+'Acquirer IS'!J9)) -> 52.85007107 | K23: =+IF(ISERROR(('Target Assumptions'!K22*'Target IS'!K9+'Acquirer Assumptions'!K22*'Acquirer IS'!K9)/('Target IS'!K9+'Acquirer IS'!K9)),0,('Target Assumptions'!K22*'Target IS'!K9+'Acquirer Assumptions'!K22*'Acquirer IS'!K9)/('Target IS'!K9+'Acquirer IS'!K9)) -> 0 | L23: =+IF(ISERROR(('Target Assumptions'!L22*'Target IS'!L9+'Acquirer Assumptions'!L22*'Acquirer IS'!L9)/('Target IS'!L9+'Acquirer IS'!L9)),0,('Target Assumptions'!L22*'Target IS'!L9+'Acquirer Assumptions'!L22*'Acquirer IS'!L9)/('Target IS'!L9+'Acquirer IS'!L9)) -> 52.83687405 | M23: =+IF(ISERROR(('Target Assumptions'!M22*'Target IS'!M9+'Acquirer Assumptions'!M22*'Acquirer IS'!M9)/('Target IS'!M9+'Acquirer IS'!M9)),0,('Target Assumptions'!M22*'Target IS'!M9+'Acquirer Assumptions'!M22*'Acquirer IS'!M9)/('Target IS'!M9+'Acquirer IS'!M9)) -> 0 | N23: =+IF(ISERROR(('Target Assumptions'!N22*'Target IS'!N9+'Acquirer Assumptions'!N22*'Acquirer IS'!N9)/('Target IS'!N9+'Acquirer IS'!N9)),0,('Target Assumptions'!N22*'Target IS'!N9+'Acquirer Assumptions'!N22*'Acquirer IS'!N9)/('Target IS'!N9+'Acquirer IS'!N9)) -> 52.82374326 | O23: =+IF(ISERROR(('Target Assumptions'!O22*'Target IS'!O9+'Acquirer Assumptions'!O22*'Acquirer IS'!O9)/('Target IS'!O9+'Acquirer IS'!O9)),0,('Target Assumptions'!O22*'Target IS'!O9+'Acquirer Assumptions'!O22*'Acquirer IS'!O9)/('Target IS'!O9+'Acquirer IS'!O9)) -> 0 | P23: =+IF(ISERROR(('Target Assumptions'!P22*'Target IS'!P9+'Acquirer Assumptions'!P22*'Acquirer IS'!P9)/('Target IS'!P9+'Acquirer IS'!P9)),0,('Target Assumptions'!P22*'Target IS'!P9+'Acquirer Assumptions'!P22*'Acquirer IS'!P9)/('Target IS'!P9+'Acquirer IS'!P9)) -> 52.81067875 | Q23: =+IF(ISERROR(('Target Assumptions'!Q22*'Target IS'!Q9+'Acquirer Assumptions'!Q22*'Acquirer IS'!Q9)/('Target IS'!Q9+'Acquirer IS'!Q9)),0,('Target Assumptions'!Q22*'Target IS'!Q9+'Acquirer Assumptions'!Q22*'Acquirer IS'!Q9)/('Target IS'!Q9+'Acquirer IS'!Q9)) -> 0 | R23: =+IF(ISERROR(('Target Assumptions'!R22*'Target IS'!R9+'Acquirer Assumptions'!R22*'Acquirer IS'!R9)/('Target IS'!R9+'Acquirer IS'!R9)),0,('Target Assumptions'!R22*'Target IS'!R9+'Acquirer Assumptions'!R22*'Acquirer IS'!R9)/('Target IS'!R9+'Acquirer IS'!R9)) -> 52.7976806
B24: Inventory Days | D24: ='Acquirer Assumptions'!D23 -> 69.79621958 | F24: ='Acquirer Assumptions'!F23 -> 71.76657107 | H24: ='Acquirer Assumptions'!H23 -> 73.02124917 | J24: =+IF(ISERROR(('Target Assumptions'!J23*'Target BS'!J11+'Acquirer Assumptions'!J23*'Acquirer BS'!J11)/('Target BS'!J11+'Acquirer BS'!J11)),0,('Target Assumptions'!J23*'Target BS'!J11+'Acquirer Assumptions'!J23*'Acquirer BS'!J11)/('Target BS'!J11+'Acquirer BS'!J11)) -> 73.82069354 | K24: =+IF(ISERROR(('Target Assumptions'!K23*'Target BS'!K11+'Acquirer Assumptions'!K23*'Acquirer BS'!K11)/('Target BS'!K11+'Acquirer BS'!K11)),0,('Target Assumptions'!K23*'Target BS'!K11+'Acquirer Assumptions'!K23*'Acquirer BS'!K11)/('Target BS'!K11+'Acquirer BS'!K11)) -> 0 | L24: =+IF(ISERROR(('Target Assumptions'!L23*'Target BS'!L11+'Acquirer Assumptions'!L23*'Acquirer BS'!L11)/('Target BS'!L11+'Acquirer BS'!L11)),0,('Target Assumptions'!L23*'Target BS'!L11+'Acquirer Assumptions'!L23*'Acquirer BS'!L11)/('Target BS'!L11+'Acquirer BS'!L11)) -> 73.80020173 | M24: =+IF(ISERROR(('Target Assumptions'!M23*'Target BS'!M11+'Acquirer Assumptions'!M23*'Acquirer BS'!M11)/('Target BS'!M11+'Acquirer BS'!M11)),0,('Target Assumptions'!M23*'Target BS'!M11+'Acquirer Assumptions'!M23*'Acquirer BS'!M11)/('Target BS'!M11+'Acquirer BS'!M11)) -> 0 | N24: =+IF(ISERROR(('Target Assumptions'!N23*'Target BS'!N11+'Acquirer Assumptions'!N23*'Acquirer BS'!N11)/('Target BS'!N11+'Acquirer BS'!N11)),0,('Target Assumptions'!N23*'Target BS'!N11+'Acquirer Assumptions'!N23*'Acquirer BS'!N11)/('Target BS'!N11+'Acquirer BS'!N11)) -> 73.77981813 | O24: =+IF(ISERROR(('Target Assumptions'!O23*'Target BS'!O11+'Acquirer Assumptions'!O23*'Acquirer BS'!O11)/('Target BS'!O11+'Acquirer BS'!O11)),0,('Target Assumptions'!O23*'Target BS'!O11+'Acquirer Assumptions'!O23*'Acquirer BS'!O11)/('Target BS'!O11+'Acquirer BS'!O11)) -> 0 | P24: =+IF(ISERROR(('Target Assumptions'!P23*'Target BS'!P11+'Acquirer Assumptions'!P23*'Acquirer BS'!P11)/('Target BS'!P11+'Acquirer BS'!P11)),0,('Target Assumptions'!P23*'Target BS'!P11+'Acquirer Assumptions'!P23*'Acquirer BS'!P11)/('Target BS'!P11+'Acquirer BS'!P11)) -> 73.75954277 | Q24: =+IF(ISERROR(('Target Assumptions'!Q23*'Target BS'!Q11+'Acquirer Assumptions'!Q23*'Acquirer BS'!Q11)/('Target BS'!Q11+'Acquirer BS'!Q11)),0,('Target Assumptions'!Q23*'Target BS'!Q11+'Acquirer Assumptions'!Q23*'Acquirer BS'!Q11)/('Target BS'!Q11+'Acquirer BS'!Q11)) -> 0 | R24: =+IF(ISERROR(('Target Assumptions'!R23*'Target BS'!R11+'Acquirer Assumptions'!R23*'Acquirer BS'!R11)/('Target BS'!R11+'Acquirer BS'!R11)),0,('Target Assumptions'!R23*'Target BS'!R11+'Acquirer Assumptions'!R23*'Acquirer BS'!R11)/('Target BS'!R11+'Acquirer BS'!R11)) -> 73.73937565
B25: Oth Cur Assets % of Sales | D25: ='Acquirer Assumptions'!D24 -> 0.05418017723 | F25: ='Acquirer Assumptions'!F24 -> 0.061208776 | H25: ='Acquirer Assumptions'!H24 -> 0.0584577015 | J25: =+IF(ISERROR(('Target BS'!J12+'Acquirer BS'!J12)/('Target IS'!J9+'Acquirer IS'!J9)),0,('Target BS'!J12+'Acquirer BS'!J12)/('Target IS'!J9+'Acquirer IS'!J9)) -> 0.05269377665 | K25: =+IF(ISERROR(('Target BS'!K12+'Acquirer BS'!K12)/('Target IS'!K9+'Acquirer IS'!K9)),0,('Target BS'!K12+'Acquirer BS'!K12)/('Target IS'!K9+'Acquirer IS'!K9)) -> 0 | L25: =+IF(ISERROR(('Target BS'!L12+'Acquirer BS'!L12)/('Target IS'!L9+'Acquirer IS'!L9)),0,('Target BS'!L12+'Acquirer BS'!L12)/('Target IS'!L9+'Acquirer IS'!L9)) -> 0.05268882777 | M25: =+IF(ISERROR(('Target BS'!M12+'Acquirer BS'!M12)/('Target IS'!M9+'Acquirer IS'!M9)),0,('Target BS'!M12+'Acquirer BS'!M12)/('Target IS'!M9+'Acquirer IS'!M9)) -> 0 | N25: =+IF(ISERROR(('Target BS'!N12+'Acquirer BS'!N12)/('Target IS'!N9+'Acquirer IS'!N9)),0,('Target BS'!N12+'Acquirer BS'!N12)/('Target IS'!N9+'Acquirer IS'!N9)) -> 0.05268390372 | O25: =+IF(ISERROR(('Target BS'!O12+'Acquirer BS'!O12)/('Target IS'!O9+'Acquirer IS'!O9)),0,('Target BS'!O12+'Acquirer BS'!O12)/('Target IS'!O9+'Acquirer IS'!O9)) -> 0 | P25: =+IF(ISERROR(('Target BS'!P12+'Acquirer BS'!P12)/('Target IS'!P9+'Acquirer IS'!P9)),0,('Target BS'!P12+'Acquirer BS'!P12)/('Target IS'!P9+'Acquirer IS'!P9)) -> 0.05267900453 | Q25: =+IF(ISERROR(('Target BS'!Q12+'Acquirer BS'!Q12)/('Target IS'!Q9+'Acquirer IS'!Q9)),0,('Target BS'!Q12+'Acquirer BS'!Q12)/('Target IS'!Q9+'Acquirer IS'!Q9)) -> 0 | R25: =+IF(ISERROR(('Target BS'!R12+'Acquirer BS'!R12)/('Target IS'!R9+'Acquirer IS'!R9)),0,('Target BS'!R12+'Acquirer BS'!R12)/('Target IS'!R9+'Acquirer IS'!R9)) -> 0.05267413022
B26: Days in Accounts Payable | D26: ='Acquirer Assumptions'!D25 -> 32.52593124 | F26: ='Acquirer Assumptions'!F25 -> 33.03711861 | H26: ='Acquirer Assumptions'!H25 -> 32.45051564 | J26: =+IF(ISERROR(('Target Assumptions'!J25*'Target IS'!J11+'Acquirer Assumptions'!J25*'Acquirer IS'!J11)/('Target IS'!J11+'Acquirer IS'!J11)),0,('Target Assumptions'!J25*'Target IS'!J11+'Acquirer Assumptions'!J25*'Acquirer IS'!J11)/('Target IS'!J11+'Acquirer IS'!J11)) -> 34.3283839 | K26: =+IF(ISERROR(('Target Assumptions'!K25*'Target IS'!K11+'Acquirer Assumptions'!K25*'Acquirer IS'!K11)/('Target IS'!K11+'Acquirer IS'!K11)),0,('Target Assumptions'!K25*'Target IS'!K11+'Acquirer Assumptions'!K25*'Acquirer IS'!K11)/('Target IS'!K11+'Acquirer IS'!K11)) -> 0 | L26: =+IF(ISERROR(('Target Assumptions'!L25*'Target IS'!L11+'Acquirer Assumptions'!L25*'Acquirer IS'!L11)/('Target IS'!L11+'Acquirer IS'!L11)),0,('Target Assumptions'!L25*'Target IS'!L11+'Acquirer Assumptions'!L25*'Acquirer IS'!L11)/('Target IS'!L11+'Acquirer IS'!L11)) -> 34.31840064 | M26: =+IF(ISERROR(('Target Assumptions'!M25*'Target IS'!M11+'Acquirer Assumptions'!M25*'Acquirer IS'!M11)/('Target IS'!M11+'Acquirer IS'!M11)),0,('Target Assumptions'!M25*'Target IS'!M11+'Acquirer Assumptions'!M25*'Acquirer IS'!M11)/('Target IS'!M11+'Acquirer IS'!M11)) -> 0 | N26: =+IF(ISERROR(('Target Assumptions'!N25*'Target IS'!N11+'Acquirer Assumptions'!N25*'Acquirer IS'!N11)/('Target IS'!N11+'Acquirer IS'!N11)),0,('Target Assumptions'!N25*'Target IS'!N11+'Acquirer Assumptions'!N25*'Acquirer IS'!N11)/('Target IS'!N11+'Acquirer IS'!N11)) -> 34.3084751 | O26: =+IF(ISERROR(('Target Assumptions'!O25*'Target IS'!O11+'Acquirer Assumptions'!O25*'Acquirer IS'!O11)/('Target IS'!O11+'Acquirer IS'!O11)),0,('Target Assumptions'!O25*'Target IS'!O11+'Acquirer Assumptions'!O25*'Acquirer IS'!O11)/('Target IS'!O11+'Acquirer IS'!O11)) -> 0 | P26: =+IF(ISERROR(('Target Assumptions'!P25*'Target IS'!P11+'Acquirer Assumptions'!P25*'Acquirer IS'!P11)/('Target IS'!P11+'Acquirer IS'!P11)),0,('Target Assumptions'!P25*'Target IS'!P11+'Acquirer Assumptions'!P25*'Acquirer IS'!P11)/('Target IS'!P11+'Acquirer IS'!P11)) -> 34.2986072 | Q26: =+IF(ISERROR(('Target Assumptions'!Q25*'Target IS'!Q11+'Acquirer Assumptions'!Q25*'Acquirer IS'!Q11)/('Target IS'!Q11+'Acquirer IS'!Q11)),0,('Target Assumptions'!Q25*'Target IS'!Q11+'Acquirer Assumptions'!Q25*'Acquirer IS'!Q11)/('Target IS'!Q11+'Acquirer IS'!Q11)) -> 0 | R26: =+IF(ISERROR(('Target Assumptions'!R25*'Target IS'!R11+'Acquirer Assumptions'!R25*'Acquirer IS'!R11)/('Target IS'!R11+'Acquirer IS'!R11)),0,('Target Assumptions'!R25*'Target IS'!R11+'Acquirer Assumptions'!R25*'Acquirer IS'!R11)/('Target IS'!R11+'Acquirer IS'!R11)) -> 34.28879687
B27: Oth Cur Liab % of COGS | D27: ='Acquirer Assumptions'!D26 -> 0.1896568595 | F27: ='Acquirer Assumptions'!F26 -> 0.3696783349 | H27: ='Acquirer Assumptions'!H26 -> 0.2012502772 | J27: =+IF(ISERROR(('Target BS'!J30+'Acquirer BS'!J30)/('Target IS'!J11+'Acquirer IS'!J11)),0,('Target BS'!J30+'Acquirer BS'!J30)/('Target IS'!J11+'Acquirer IS'!J11)) -> 0.2991914905 | K27: =+IF(ISERROR(('Target BS'!K30+'Acquirer BS'!K30)/('Target IS'!K11+'Acquirer IS'!K11)),0,('Target BS'!K30+'Acquirer BS'!K30)/('Target IS'!K11+'Acquirer IS'!K11)) -> 0 | L27: =+IF(ISERROR(('Target BS'!L30+'Acquirer BS'!L30)/('Target IS'!L11+'Acquirer IS'!L11)),0,('Target BS'!L30+'Acquirer BS'!L30)/('Target IS'!L11+'Acquirer IS'!L11)) -> 0.2985211859 | M27: =+IF(ISERROR(('Target BS'!M30+'Acquirer BS'!M30)/('Target IS'!M11+'Acquirer IS'!M11)),0,('Target BS'!M30+'Acquirer BS'!M30)/('Target IS'!M11+'Acquirer IS'!M11)) -> 0 | N27: =+IF(ISERROR(('Target BS'!N30+'Acquirer BS'!N30)/('Target IS'!N11+'Acquirer IS'!N11)),0,('Target BS'!N30+'Acquirer BS'!N30)/('Target IS'!N11+'Acquirer IS'!N11)) -> 0.2978547566 | O27: =+IF(ISERROR(('Target BS'!O30+'Acquirer BS'!O30)/('Target IS'!O11+'Acquirer IS'!O11)),0,('Target BS'!O30+'Acquirer BS'!O30)/('Target IS'!O11+'Acquirer IS'!O11)) -> 0 | P27: =+IF(ISERROR(('Target BS'!P30+'Acquirer BS'!P30)/('Target IS'!P11+'Acquirer IS'!P11)),0,('Target BS'!P30+'Acquirer BS'!P30)/('Target IS'!P11+'Acquirer IS'!P11)) -> 0.2971921977 | Q27: =+IF(ISERROR(('Target BS'!Q30+'Acquirer BS'!Q30)/('Target IS'!Q11+'Acquirer IS'!Q11)),0,('Target BS'!Q30+'Acquirer BS'!Q30)/('Target IS'!Q11+'Acquirer IS'!Q11)) -> 0 | R27: =+IF(ISERROR(('Target BS'!R30+'Acquirer BS'!R30)/('Target IS'!R11+'Acquirer IS'!R11)),0,('Target BS'!R30+'Acquirer BS'!R30)/('Target IS'!R11+'Acquirer IS'!R11)) -> 0.2965335042
B28: Change in Other Assets | D28: ='Acquirer Assumptions'!D27 -> NA | F28: ='Acquirer Assumptions'!F27 -> -332.7 | H28: ='Acquirer Assumptions'!H27 -> -6.9 | J28: ='Target Assumptions'!J27+'Acquirer Assumptions'!J27 -> 0 | L28: ='Target Assumptions'!L27+'Acquirer Assumptions'!L27 -> 0 | N28: ='Target Assumptions'!N27+'Acquirer Assumptions'!N27 -> 0 | P28: ='Target Assumptions'!P27+'Acquirer Assumptions'!P27 -> 0 | R28: ='Target Assumptions'!R27+'Acquirer Assumptions'!R27 -> 0
B29: Change in Other LT Liabilities | D29: ='Acquirer Assumptions'!D28 -> NA | F29: ='Acquirer Assumptions'!F28 -> 77 | H29: ='Acquirer Assumptions'!H28 -> 110.2 | J29: ='Target Assumptions'!J28+'Acquirer Assumptions'!J28 -> 0 | L29: ='Target Assumptions'!L28+'Acquirer Assumptions'!L28 -> 0 | N29: ='Target Assumptions'!N28+'Acquirer Assumptions'!N28 -> 0 | P29: ='Target Assumptions'!P28+'Acquirer Assumptions'!P28 -> 0 | R29: ='Target Assumptions'!R28+'Acquirer Assumptions'!R28 -> 0
B30: Working Capital/Sales (Excl Cash & Debt) | D30: =+IF(ISERROR((SUM('Target BS'!D10:D12)-SUM('Target BS'!D29:D30)+SUM('Acquirer BS'!D10:D12)-SUM('Acquirer BS'!D29:D30))/('Target IS'!D9+'Acquirer IS'!D9)),0,(SUM('Target BS'!D10:D12)-SUM('Target BS'!D29:D30)+SUM('Acquirer BS'!D10:D12)-SUM('Acquirer BS'!D29:D30))/('Target IS'!D9+'Acquirer IS'!D9)) -> 0.1105341459 | E30: =+IF(ISERROR((SUM('Target BS'!E10:E12)-SUM('Target BS'!E29:E30)+SUM('Acquirer BS'!E10:E12)-SUM('Acquirer BS'!E29:E30))/('Target IS'!E9+'Acquirer IS'!E9)),0,(SUM('Target BS'!E10:E12)-SUM('Target BS'!E29:E30)+SUM('Acquirer BS'!E10:E12)-SUM('Acquirer BS'!E29:E30))/('Target IS'!E9+'Acquirer IS'!E9)) -> 0 | F30: =+IF(ISERROR((SUM('Target BS'!F10:F12)-SUM('Target BS'!F29:F30)+SUM('Acquirer BS'!F10:F12)-SUM('Acquirer BS'!F29:F30))/('Target IS'!F9+'Acquirer IS'!F9)),0,(SUM('Target BS'!F10:F12)-SUM('Target BS'!F29:F30)+SUM('Acquirer BS'!F10:F12)-SUM('Acquirer BS'!F29:F30))/('Target IS'!F9+'Acquirer IS'!F9)) -> 0.02630669406 | G30: =+IF(ISERROR((SUM('Target BS'!G10:G12)-SUM('Target BS'!G29:G30)+SUM('Acquirer BS'!G10:G12)-SUM('Acquirer BS'!G29:G30))/('Target IS'!G9+'Acquirer IS'!G9)),0,(SUM('Target BS'!G10:G12)-SUM('Target BS'!G29:G30)+SUM('Acquirer BS'!G10:G12)-SUM('Acquirer BS'!G29:G30))/('Target IS'!G9+'Acquirer IS'!G9)) -> 0 | H30: =+IF(ISERROR((SUM('Target BS'!H10:H12)-SUM('Target BS'!H29:H30)+SUM('Acquirer BS'!H10:H12)-SUM('Acquirer BS'!H29:H30))/('Target IS'!H9+'Acquirer IS'!H9)),0,(SUM('Target BS'!H10:H12)-SUM('Target BS'!H29:H30)+SUM('Acquirer BS'!H10:H12)-SUM('Acquirer BS'!H29:H30))/('Target IS'!H9+'Acquirer IS'!H9)) -> 0.1252544701 | I30: =+IF(ISERROR((SUM('Target BS'!I10:I12)-SUM('Target BS'!I29:I30)+SUM('Acquirer BS'!I10:I12)-SUM('Acquirer BS'!I29:I30))/('Target IS'!I9+'Acquirer IS'!I9)),0,(SUM('Target BS'!I10:I12)-SUM('Target BS'!I29:I30)+SUM('Acquirer BS'!I10:I12)-SUM('Acquirer BS'!I29:I30))/('Target IS'!I9+'Acquirer IS'!I9)) -> 0 | J30: =+IF(ISERROR((SUM('Target BS'!J10:J12)-SUM('Target BS'!J29:J30)+SUM('Acquirer BS'!J10:J12)-SUM('Acquirer BS'!J29:J30))/('Target IS'!J9+'Acquirer IS'!J9)),0,(SUM('Target BS'!J10:J12)-SUM('Target BS'!J29:J30)+SUM('Acquirer BS'!J10:J12)-SUM('Acquirer BS'!J29:J30))/('Target IS'!J9+'Acquirer IS'!J9)) -> 0.09549427644 | K30: =+IF(ISERROR((SUM('Target BS'!K10:K12)-SUM('Target BS'!K29:K30)+SUM('Acquirer BS'!K10:K12)-SUM('Acquirer BS'!K29:K30))/('Target IS'!K9+'Acquirer IS'!K9)),0,(SUM('Target BS'!K10:K12)-SUM('Target BS'!K29:K30)+SUM('Acquirer BS'!K10:K12)-SUM('Acquirer BS'!K29:K30))/('Target IS'!K9+'Acquirer IS'!K9)) -> 0 | L30: =+IF(ISERROR((SUM('Target BS'!L10:L12)-SUM('Target BS'!L29:L30)+SUM('Acquirer BS'!L10:L12)-SUM('Acquirer BS'!L29:L30))/('Target IS'!L9+'Acquirer IS'!L9)),0,(SUM('Target BS'!L10:L12)-SUM('Target BS'!L29:L30)+SUM('Acquirer BS'!L10:L12)-SUM('Acquirer BS'!L29:L30))/('Target IS'!L9+'Acquirer IS'!L9)) -> 0.09575772954 | M30: =+IF(ISERROR((SUM('Target BS'!M10:M12)-SUM('Target BS'!M29:M30)+SUM('Acquirer BS'!M10:M12)-SUM('Acquirer BS'!M29:M30))/('Target IS'!M9+'Acquirer IS'!M9)),0,(SUM('Target BS'!M10:M12)-SUM('Target BS'!M29:M30)+SUM('Acquirer BS'!M10:M12)-SUM('Acquirer BS'!M29:M30))/('Target IS'!M9+'Acquirer IS'!M9)) -> 0 | N30: =+IF(ISERROR((SUM('Target BS'!N10:N12)-SUM('Target BS'!N29:N30)+SUM('Acquirer BS'!N10:N12)-SUM('Acquirer BS'!N29:N30))/('Target IS'!N9+'Acquirer IS'!N9)),0,(SUM('Target BS'!N10:N12)-SUM('Target BS'!N29:N30)+SUM('Acquirer BS'!N10:N12)-SUM('Acquirer BS'!N29:N30))/('Target IS'!N9+'Acquirer IS'!N9)) -> 0.09601986065 | O30: =+IF(ISERROR((SUM('Target BS'!O10:O12)-SUM('Target BS'!O29:O30)+SUM('Acquirer BS'!O10:O12)-SUM('Acquirer BS'!O29:O30))/('Target IS'!O9+'Acquirer IS'!O9)),0,(SUM('Target BS'!O10:O12)-SUM('Target BS'!O29:O30)+SUM('Acquirer BS'!O10:O12)-SUM('Acquirer BS'!O29:O30))/('Target IS'!O9+'Acquirer IS'!O9)) -> 0 | P30: =+IF(ISERROR((SUM('Target BS'!P10:P12)-SUM('Target BS'!P29:P30)+SUM('Acquirer BS'!P10:P12)-SUM('Acquirer BS'!P29:P30))/('Target IS'!P9+'Acquirer IS'!P9)),0,(SUM('Target BS'!P10:P12)-SUM('Target BS'!P29:P30)+SUM('Acquirer BS'!P10:P12)-SUM('Acquirer BS'!P29:P30))/('Target IS'!P9+'Acquirer IS'!P9)) -> 0.09628066845 | Q30: =+IF(ISERROR((SUM('Target BS'!Q10:Q12)-SUM('Target BS'!Q29:Q30)+SUM('Acquirer BS'!Q10:Q12)-SUM('Acquirer BS'!Q29:Q30))/('Target IS'!Q9+'Acquirer IS'!Q9)),0,(SUM('Target BS'!Q10:Q12)-SUM('Target BS'!Q29:Q30)+SUM('Acquirer BS'!Q10:Q12)-SUM('Acquirer BS'!Q29:Q30))/('Target IS'!Q9+'Acquirer IS'!Q9)) -> 0 | R30: =+IF(ISERROR((SUM('Target BS'!R10:R12)-SUM('Target BS'!R29:R30)+SUM('Acquirer BS'!R10:R12)-SUM('Acquirer BS'!R29:R30))/('Target IS'!R9+'Acquirer IS'!R9)),0,(SUM('Target BS'!R10:R12)-SUM('Target BS'!R29:R30)+SUM('Acquirer BS'!R10:R12)-SUM('Acquirer BS'!R29:R30))/('Target IS'!R9+'Acquirer IS'!R9)) -> 0.09654015174
B32: Cash Flow
B34: Capital Expenditures | D34: ='Acquirer Assumptions'!D33 -> 245.4 | F34: ='Acquirer Assumptions'!F33 -> 260.9 | H34: ='Acquirer Assumptions'!H33 -> 1083.4 | J34: ='Target Assumptions'!J33+'Acquirer Assumptions'!J33 -> 894.45256 | L34: ='Target Assumptions'!L33+'Acquirer Assumptions'!L33 -> 965.846189 | N34: ='Target Assumptions'!N33+'Acquirer Assumptions'!N33 -> 1042.939928 | P34: ='Target Assumptions'!P33+'Acquirer Assumptions'!P33 -> 1126.188989 | R34: ='Target Assumptions'!R33+'Acquirer Assumptions'!R33 -> 1216.084946
B35: Capex as a % of Sales | D35: ='Acquirer Assumptions'!D34 -> 0.02361181938 | F35: ='Acquirer Assumptions'!F34 -> 0.02257154722 | H35: ='Acquirer Assumptions'!H34 -> 0.0866034101 | J35: =+IF(ISERROR(J34/'Newco IS'!M9),0,J34/'Newco IS'!M9) -> 0.05087873342 | K35: =+IF(ISERROR(K34/'Newco IS'!N9),0,K34/'Newco IS'!N9) -> 0 | L35: =+IF(ISERROR(L34/'Newco IS'!O9),0,L34/'Newco IS'!O9) -> 0 | M35: =+IF(ISERROR(M34/'Newco IS'!P9),0,M34/'Newco IS'!P9) -> 0 | N35: =+IF(ISERROR(N34/'Newco IS'!Q9),0,N34/'Newco IS'!Q9) -> 0 | O35: =+IF(ISERROR(O34/'Newco IS'!R9),0,O34/'Newco IS'!R9) -> 0 | P35: =+IF(ISERROR(P34/'Newco IS'!S9),0,P34/'Newco IS'!S9) -> 0 | Q35: =+IF(ISERROR(Q34/'Newco IS'!T9),0,Q34/'Newco IS'!T9) -> 0 | R35: =+IF(ISERROR(R34/'Newco IS'!U9),0,R34/'Newco IS'!U9) -> 0
B36: Depreciation | D36: ='Acquirer Assumptions'!D35 -> 739.7 | F36: ='Acquirer Assumptions'!F35 -> 895.6 | H36: ='Acquirer Assumptions'!H35 -> 983.7 | J36: ='Target Assumptions'!J35+'Acquirer Assumptions'!J35 -> 1143.36254 | L36: ='Target Assumptions'!L35+'Acquirer Assumptions'!L35 -> 1233.530937 | N36: ='Target Assumptions'!N35+'Acquirer Assumptions'!N35 -> 1330.821763 | P36: ='Target Assumptions'!P35+'Acquirer Assumptions'!P35 -> 1435.79844 | R36: ='Target Assumptions'!R35+'Acquirer Assumptions'!R35 -> 1549.069016
B37: Depreciation as a % of Sales | D37: ='Acquirer Assumptions'!D36 -> 0.07117222003 | F37: ='Acquirer Assumptions'!F36 -> 0.07748209157 | H37: ='Acquirer Assumptions'!H36 -> 0.07863372209 | J37: =+IF(ISERROR(J36/'Newco IS'!M9),0,J36/'Newco IS'!M9) -> 0.06503736529 | K37: =+IF(ISERROR(K36/'Newco IS'!N9),0,K36/'Newco IS'!N9) -> 0 | L37: =+IF(ISERROR(L36/'Newco IS'!O9),0,L36/'Newco IS'!O9) -> 0 | M37: =+IF(ISERROR(M36/'Newco IS'!P9),0,M36/'Newco IS'!P9) -> 0 | N37: =+IF(ISERROR(N36/'Newco IS'!Q9),0,N36/'Newco IS'!Q9) -> 0 | O37: =+IF(ISERROR(O36/'Newco IS'!R9),0,O36/'Newco IS'!R9) -> 0 | P37: =+IF(ISERROR(P36/'Newco IS'!S9),0,P36/'Newco IS'!S9) -> 0 | Q37: =+IF(ISERROR(Q36/'Newco IS'!T9),0,Q36/'Newco IS'!T9) -> 0 | R37: =+IF(ISERROR(R36/'Newco IS'!U9),0,R36/'Newco IS'!U9) -> 0
B38: Goodwill Amortization (Pre-6/2001) | D38: ='Acquirer Assumptions'!D37 -> 0 | F38: ='Acquirer Assumptions'!F37 -> 0 | H38: ='Acquirer Assumptions'!H37 -> 0 | J38: ='Acquirer Assumptions'!J37+Summary!F31 -> 0 | L38: ='Acquirer Assumptions'!L37+Summary!F31 -> 0 | N38: ='Acquirer Assumptions'!N37+Summary!F31 -> 0 | P38: ='Acquirer Assumptions'!P37+Summary!F31 -> 0 | R38: ='Acquirer Assumptions'!R37+Summary!F31 -> 0
B39: Amortization of Intangibles | D39: ='Acquirer Assumptions'!D38 -> 0 | F39: ='Acquirer Assumptions'!F38 -> 0 | H39: ='Acquirer Assumptions'!H38 -> 0 | J39: ='Target Assumptions'!J38+'Acquirer Assumptions'!J38 -> 300 | L39: ='Target Assumptions'!L38+'Acquirer Assumptions'!L38 -> 300 | N39: ='Target Assumptions'!N38+'Acquirer Assumptions'!N38 -> 300 | P39: ='Target Assumptions'!P38+'Acquirer Assumptions'!P38 -> 300 | R39: ='Target Assumptions'!R38+'Acquirer Assumptions'!R38 -> 300
B40: Amortization of Transaction Exp | D40: 0 | F40: 0 | H40: 0 | J40: =Summary!$F$33 -> 9.88 | L40: =Summary!$F$33 -> 9.88 | N40: =Summary!$F$33 -> 9.88 | P40: =Summary!$F$33 -> 9.88 | R40: =Summary!$F$33 -> 9.88
B41: Chg in Deferred Taxes - Asset | D41: ='Acquirer Assumptions'!D41 -> NA | F41: ='Acquirer Assumptions'!F41 -> 0 | H41: ='Acquirer Assumptions'!H41 -> 0 | J41: ='Target Assumptions'!J41+'Acquirer Assumptions'!J41 -> 0 | L41: ='Target Assumptions'!L41+'Acquirer Assumptions'!L41 -> 0 | N41: ='Target Assumptions'!N41+'Acquirer Assumptions'!N41 -> 0 | P41: ='Target Assumptions'!P41+'Acquirer Assumptions'!P41 -> 0 | R41: ='Target Assumptions'!R41+'Acquirer Assumptions'!R41 -> 0
B42: Chg in Deferred Taxes - Liab | D42: ='Acquirer Assumptions'!D42 -> NA | F42: ='Acquirer Assumptions'!F42 -> 602.7 | H42: ='Acquirer Assumptions'!H42 -> -182.1 | J42: ='Target Assumptions'!J42+'Acquirer Assumptions'!J42 -> 210.3 | L42: ='Target Assumptions'!L42+'Acquirer Assumptions'!L42 -> 210.3 | N42: ='Target Assumptions'!N42+'Acquirer Assumptions'!N42 -> 210.3 | P42: ='Target Assumptions'!P42+'Acquirer Assumptions'!P42 -> 210.3 | R42: ='Target Assumptions'!R42+'Acquirer Assumptions'!R42 -> 210.3
B43: Dividend from Affiliates | D43: ='Acquirer Assumptions'!D43 -> 0 | F43: ='Acquirer Assumptions'!F43 -> 0 | H43: ='Acquirer Assumptions'!H43 -> 0 | J43: ='Target Assumptions'!J43+'Acquirer Assumptions'!J43 -> 0 | L43: ='Target Assumptions'!L43+'Acquirer Assumptions'!L43 -> 0 | N43: ='Target Assumptions'!N43+'Acquirer Assumptions'!N43 -> 0 | P43: ='Target Assumptions'!P43+'Acquirer Assumptions'!P43 -> 0 | R43: ='Target Assumptions'!R43+'Acquirer Assumptions'!R43 -> 0
B44: Payout Ratio of Affiliates | D44: ='Acquirer Assumptions'!D44 -> 0 | F44: ='Acquirer Assumptions'!F44 -> 0 | H44: ='Acquirer Assumptions'!H44 -> 0 | J44: =IF('Newco IS'!M24=0,0,J43/-'Newco IS'!M24) -> 0 | L44: =IF('Newco IS'!P24=0,0,L43/-'Newco IS'!P24) -> 0 | N44: =IF('Newco IS'!R24=0,0,N43/-'Newco IS'!R24) -> 0 | P44: =IF('Newco IS'!T24=0,0,P43/-'Newco IS'!T24) -> 0 | R44: =IF('Newco IS'!V24=0,0,R43/-'Newco IS'!V24) -> 0
B45: Dividends per Share | D45: ='Acquirer Assumptions'!D45 -> 0 | F45: ='Acquirer Assumptions'!F45 -> 0 | H45: ='Acquirer Assumptions'!H45 -> 0 | J45: ='Acquirer Assumptions'!J45 -> 0 | L45: ='Acquirer Assumptions'!L45 -> 0 | N45: ='Acquirer Assumptions'!N45 -> 0 | P45: ='Acquirer Assumptions'!P45 -> 0 | R45: ='Acquirer Assumptions'!R45 -> 0
B46: Dividend Payout Ratio | D46: ='Acquirer Assumptions'!D46 -> 0 | F46: ='Acquirer Assumptions'!F46 -> 0 | H46: ='Acquirer Assumptions'!H46 -> 0 | J46: ='Acquirer Assumptions'!J46 -> 0 | L46: ='Acquirer Assumptions'!L46 -> 0 | N46: ='Acquirer Assumptions'!N46 -> 0 | P46: ='Acquirer Assumptions'!P46 -> 0 | R46: ='Acquirer Assumptions'!R46 -> 0
B47: Dividends Paid | D47: ='Acquirer Assumptions'!D47 -> 0 | F47: ='Acquirer Assumptions'!F47 -> 0 | H47: ='Acquirer Assumptions'!H47 -> 0 | J47: =J45*J53 -> 0 | L47: =L45*L53 -> 0 | N47: =N45*N53 -> 0 | P47: =P45*P53 -> 0 | R47: =R45*R53 -> 0
B48: Effective Tax Rate | D48: ='Acquirer Assumptions'!D48 -> 0.291954023 | F48: ='Acquirer Assumptions'!F48 -> 0.4612141653 | H48: ='Acquirer Assumptions'!H48 -> 0.0385019251 | J48: ='Acquirer Assumptions'!J48 -> 0.26 | L48: ='Acquirer Assumptions'!L48 -> 0.26 | N48: ='Acquirer Assumptions'!N48 -> 0.26 | P48: ='Acquirer Assumptions'!P48 -> 0.26 | R48: ='Acquirer Assumptions'!R48 -> 0.26
B49: Marginal Tax Rate | D49: ='Acquirer Assumptions'!D50 -> 0 | E49: ='Acquirer Assumptions'!E50 -> 0 | F49: ='Acquirer Assumptions'!F50 -> 0 | G49: ='Acquirer Assumptions'!G50 -> 0 | H49: ='Acquirer Assumptions'!H50 -> 0 | J49: ='Acquirer Assumptions'!J50 -> 0 | K49: ='Acquirer Assumptions'!K50 -> 0 | L49: ='Acquirer Assumptions'!L50 -> 0 | M49: ='Acquirer Assumptions'!M50 -> 0 | N49: ='Acquirer Assumptions'!N50 -> 0 | O49: ='Acquirer Assumptions'!O50 -> 0 | P49: ='Acquirer Assumptions'!P50 -> 0 | Q49: ='Acquirer Assumptions'!Q50 -> 0 | R49: ='Acquirer Assumptions'!R50 -> 0
B51: Other
B53: Shares Outstanding - Basic | D53: ='Acquirer Assumptions'!D53 -> 0 | F53: ='Acquirer Assumptions'!F53 -> 0 | H53: ='Acquirer Assumptions'!H53 -> 358.1 | J53: ='Acquirer Assumptions'!H53+Summary!J14+Summary!J15+Summary!J16+Summary!J17 -> 386.626971 | L53: =J53 -> 386.626971 | N53: =J53 -> 386.626971 | P53: =J53 -> 386.626971 | R53: =J53 -> 386.626971
B54: Shares Outstanding - Diluted | D54: ='Acquirer Assumptions'!D54 -> 0 | F54: ='Acquirer Assumptions'!F54 -> 0 | H54: ='Acquirer Assumptions'!H54 -> 361.7 | J54: ='Acquirer Assumptions'!H54+Summary!$J$14+Summary!$J$15+Summary!$J$16 -> 390.226971 | L54: ='Acquirer Assumptions'!H54+Summary!$J$15+Summary!$J$16+Summary!$J$17 -> 390.226971 | N54: ='Acquirer Assumptions'!H54+Summary!$J$15+Summary!$J$16+Summary!$J$17 -> 390.226971 | P54: ='Acquirer Assumptions'!H54+Summary!$J$15+Summary!$J$16+Summary!$J$17 -> 390.226971 | R54: ='Acquirer Assumptions'!H54+Summary!$J$15+Summary!$J$16+Summary!$J$17 -> 390.226971
B55: Revolving Credit Facility Rate | D55: ='Acquirer Assumptions'!D55 -> 0 | F55: ='Acquirer Assumptions'!F55 -> 0 | H55: ='Acquirer Assumptions'!H55 -> 0 | J55: 0.02 | L55: =J55 -> 0.02 | N55: =L55 -> 0.02 | P55: =N55 -> 0.02 | R55: =P55 -> 0.02
B56: Senior Debt Rate | D56: ='Acquirer Assumptions'!D56 -> 0 | F56: ='Acquirer Assumptions'!F56 -> 0 | H56: ='Acquirer Assumptions'!H56 -> 0 | J56: 0.055 | L56: =J56 -> 0.055 | N56: =L56 -> 0.055 | P56: =N56 -> 0.055 | R56: =P56 -> 0.055
B57: Subordinated Debt | D57: ='Acquirer Assumptions'!D57 -> 0 | F57: ='Acquirer Assumptions'!F57 -> 0 | H57: ='Acquirer Assumptions'!H57 -> 0 | J57: 0.1 | L57: =J57 -> 0.1 | N57: =L57 -> 0.1 | P57: =N57 -> 0.1 | R57: =P57 -> 0.1
B58: Average Interest Rate | D58: ='Acquirer Assumptions'!D58 -> NA | F58: ='Acquirer Assumptions'!F58 -> 0 | H58: ='Acquirer Assumptions'!H58 -> 0 | J58: =+IF(ISERROR('Newco IS'!M27/AVERAGE('Newco BS'!M39:P39)),0,'Newco IS'!M27/AVERAGE('Newco BS'!M39:P39)) -> 0.04742475409 | K58: =+IF(ISERROR('Newco IS'!N27/AVERAGE('Newco BS'!N39:Q39)),0,'Newco IS'!N27/AVERAGE('Newco BS'!N39:Q39)) -> 0 | L58: =+IF(ISERROR('Newco IS'!P27/AVERAGE('Newco BS'!P39:R39)),0,'Newco IS'!P27/AVERAGE('Newco BS'!P39:R39)) -> 0.04742062905 | M58: =+IF(ISERROR('Newco IS'!P27/AVERAGE('Newco BS'!P39:S39)),0,'Newco IS'!P27/AVERAGE('Newco BS'!P39:S39)) -> 0.04742062905 | N58: =+IF(ISERROR('Newco IS'!R27/AVERAGE('Newco BS'!R39:T39)),0,'Newco IS'!R27/AVERAGE('Newco BS'!R39:T39)) -> 0.04741561788 | O58: =+IF(ISERROR('Newco IS'!R27/AVERAGE('Newco BS'!R39:U39)),0,'Newco IS'!R27/AVERAGE('Newco BS'!R39:U39)) -> 0.04741561788 | P58: =+IF(ISERROR('Newco IS'!T27/AVERAGE('Newco BS'!T39:V39)),0,'Newco IS'!T27/AVERAGE('Newco BS'!T39:V39)) -> 0.04740940065 | Q58: =+IF(ISERROR('Newco IS'!T27/AVERAGE('Newco BS'!T39:W39)),0,'Newco IS'!T27/AVERAGE('Newco BS'!T39:W39)) -> 0.04740940065 | R58: =+IF(ISERROR('Newco IS'!V27/AVERAGE('Newco BS'!V39:X39)),0,'Newco IS'!V27/AVERAGE('Newco BS'!V39:X39)) -> 0.04740148243
B59: Marketable Securities Rate | D59: ='Acquirer Assumptions'!D59 -> 0 | F59: ='Acquirer Assumptions'!F59 -> 0 | H59: ='Acquirer Assumptions'!H59 -> 0 | J59: ='Acquirer Assumptions'!J59 -> 0 | L59: ='Acquirer Assumptions'!L59 -> 0 | N59: ='Acquirer Assumptions'!N59 -> 0 | P59: ='Acquirer Assumptions'!P59 -> 0 | R59: ='Acquirer Assumptions'!R59 -> 0

Sheet Newco IS
A1: ='Newco Assumptions'!A1 -> Newco | W1: Pro Forma Income Statement
A2: ($Millions, except per share data)
D6: Actual | G6: ="Projected "&('Newco Assumptions'!J7)&"" -> Projected 2014 | K6: Trans | M6: Pro Forma | P6: ='Newco Assumptions'!J6 -> Projections | Y6: 1 | Z6: 0 = circ off
D7: ='Acquirer Assumptions'!H7 -> 2013 | G7: ='Acquirer Assumptions'!A1 -> Thermo (Acquirer) | I7: Target | K7: Adj | M7: ='Newco Assumptions'!J7 -> 2014 | P7: ='Acquirer Assumptions'!L7 -> 2015 | R7: ='Acquirer Assumptions'!N7 -> 2016 | T7: ='Acquirer Assumptions'!P7 -> 2017 | V7: ='Acquirer Assumptions'!R7 -> 2018 | Z7: 1 = circ on
B9: Sales | D9: ='Acquirer IS'!H9 -> 12509.9 | G9: ='Acquirer IS'!J9 -> 13510.692 | I9: ='Target IS'!J9 -> 4064.395 | K9: =Summary!R39 -> 5 | M9: =G9+I9+K9 -> 17580.087 | P9: ='Target IS'!L9+'Acquirer IS'!L9+Summary!R40 -> 18960.45001 | R9: ='Target IS'!N9+'Acquirer IS'!N9+Summary!R41 -> 20437.19698 | T9: ='Target IS'!P9+'Acquirer IS'!P9+Summary!R42 -> 22023.63948 | V9: ='Target IS'!R9+'Acquirer IS'!R9+Summary!R43 -> 23733.74006
B11: Integration Expenses | K11: ='Newco Assumptions'!J13 -> 50 | M11: =SUM(G11:K11) -> 50 | P11: ='Newco Assumptions'!L13 -> 50
B12: Cost of Goods Sold | D12: ='Acquirer IS'!H11 -> 7214.4 | G12: ='Acquirer IS'!J11 -> 7565.98752 | I12: ='Target IS'!J11 -> 1772.07622 | K12: =IF($Y$6=0,0,Summary!R39*(1-Summary!P39)-Summary!L39) -> -72.35049285 | M12: =IF($Y$6=0,0,G12+I12+K12+M11) -> 9315.713247 | P12: =IF($Y$6=0,0,'Target IS'!L11+'Acquirer IS'!L11+Summary!R40*(1-Summary!P40)-Summary!L40)+P11 -> 9927.860255 | R12: =IF($Y$6=0,0,'Target IS'!N11+'Acquirer IS'!N11+Summary!R41*(1-Summary!P41)-Summary!L41) -> 10641.83564 | T12: =IF($Y$6=0,0,'Target IS'!P11+'Acquirer IS'!P11+Summary!R42*(1-Summary!P42)-Summary!L42) -> 11489.8775 | V12: =IF($Y$6=0,0,'Target IS'!R11+'Acquirer IS'!R11+Summary!R43*(1-Summary!P43)-Summary!L43) -> 12404.33908
B14: Gross Profit | D14: =D9-D12 -> 5295.5 | G14: =G9-G12 -> 5944.70448 | I14: =I9-I12 -> 2292.31878 | M14: =M9-SUM(M11:M12) -> 8214.373753 | N14: =N9-SUM(N11:N12) -> 0 | O14: 0 | P14: 8982.589755 | R14: 9795.361348 | T14: 10533.76198 | V14: 11329.40098
B16: SG&A | D16: ='Acquirer IS'!H15 -> 3354.9 | G16: ='Acquirer IS'!J15 -> 3589.743 | I16: ='Target IS'!J15 -> 1082.0196 | K16: =-Summary!F39+Summary!R39*Summary!F63 -> -9.5 | M16: =G16+I16+K16 -> 4662.2626 | P16: ='Target IS'!L15+'Acquirer IS'!L15-Summary!F40+Summary!R40*Summary!F63 -> 4933.17712 | R16: ='Target IS'!N15+'Acquirer IS'!N15-Summary!F41+Summary!R41*Summary!F63 -> 5226.412825 | T16: ='Target IS'!P15+'Acquirer IS'!P15-Summary!F42+Summary!R42*Summary!F63 -> 5543.720016 | V16: ='Target IS'!R15+'Acquirer IS'!R15-Summary!F43+Summary!R43*Summary!F63 -> 5881.935676
B17: Other Operating Expense | D17: ='Acquirer IS'!H16 -> 458.5 | G17: ='Acquirer IS'!J16 -> 445.852836 | I17: ='Target IS'!J16 -> 406.4395 | M17: =G17+I17+K17 -> 852.292336 | P17: ='Target IS'!L16+'Acquirer IS'!L16 -> 916.4113279 | R17: ='Target IS'!N16+'Acquirer IS'!N16 -> 985.3753315 | T17: ='Target IS'!P16+'Acquirer IS'!P16 -> 1059.552032 | V17: ='Target IS'!R16+'Acquirer IS'!R16 -> 1139.337136
B18: Depreciation | D18: ='Acquirer IS'!H17 -> 983.7 | G18: ='Acquirer IS'!J17 -> 1013.3019 | I18: ='Target IS'!J17 -> 130.06064 | M18: =G18+I18+K18 -> 1143.36254 | P18: ='Target IS'!L17+'Acquirer IS'!L17 -> 1233.530937 | R18: ='Target IS'!N17+'Acquirer IS'!N17 -> 1330.821763 | T18: ='Target IS'!P17+'Acquirer IS'!P17 -> 1435.79844 | V18: ='Target IS'!R17+'Acquirer IS'!R17 -> 1549.069016
B19: Amortization | D19: ='Acquirer IS'!H18 -> 0 | G19: =IF(Summary!F29="No",0,'Acquirer IS'!J18) -> 0 | I19: ='Target IS'!J18 -> 300 | K19: =Summary!F33 -> 9.88 | M19: =G19+I19+K19 -> 309.88 | P19: ='Newco Assumptions'!L38+'Newco Assumptions'!L39+'Newco Assumptions'!L40 -> 309.88 | R19: ='Newco Assumptions'!N38+'Newco Assumptions'!N39+'Newco Assumptions'!N40 -> 309.88 | T19: ='Newco Assumptions'!P38+'Newco Assumptions'!P39+'Newco Assumptions'!P40 -> 309.88 | V19: ='Newco Assumptions'!R38+'Newco Assumptions'!R39+'Newco Assumptions'!R40 -> 309.88
B21: EBIT | D21: =D14-SUM(D16:D19) -> 498.4 | G21: =G14-SUM(G16:G19) -> 895.806744 | I21: =I14-SUM(I16:I19) -> 373.79904 | M21: =M14-SUM(M16:M19) -> 1246.576277 | P21: =P14-SUM(P16:P19) -> 1589.590371 | R21: =R14-SUM(R16:R19) -> 1942.871428 | T21: =T14-SUM(T16:T19) -> 2184.811493 | V21: =V14-SUM(V16:V19) -> 2449.179153
B23: Unusual (Gain) Loss | D23: ='Acquirer IS'!H22 -> 0 | G23: ='Acquirer IS'!J22 -> 0 | I23: ='Target IS'!J22 -> 0 | K23: =Summary!R17*(1-Summary!F34) -> 395.2 | M23: =G23+I23+K23 -> 395.2 | P23: ='Target IS'!L22+'Acquirer IS'!L22 -> 0 | R23: ='Target IS'!N22+'Acquirer IS'!N22 -> 0 | T23: ='Target IS'!P22+'Acquirer IS'!P22 -> 0 | V23: ='Target IS'!R22+'Acquirer IS'!R22 -> 0
B24: (Income) from Affiliates | D24: ='Acquirer IS'!H23 -> 0 | G24: ='Acquirer IS'!J23 -> 0 | I24: ='Target IS'!J23 -> 0 | M24: =G24+I24+K24 -> 0 | P24: ='Target IS'!L23+'Acquirer IS'!L23 -> 0 | R24: ='Target IS'!N23+'Acquirer IS'!N23 -> 0 | T24: ='Target IS'!P23+'Acquirer IS'!P23 -> 0 | V24: ='Target IS'!R23+'Acquirer IS'!R23 -> 0
B25: Other Expense (Income) | D25: ='Acquirer IS'!H24 -> 212.7 | G25: ='Acquirer IS'!J24 -> 0 | I25: ='Target IS'!J24 -> 0 | M25: =G25+I25+K25 -> 0 | P25: ='Target IS'!L24+'Acquirer IS'!L24 -> 0 | R25: ='Target IS'!N24+'Acquirer IS'!N24 -> 0 | T25: ='Target IS'!P24+'Acquirer IS'!P24 -> 0 | V25: ='Target IS'!R24+'Acquirer IS'!R24 -> 0
B26: Interest (Income) | D26: ='Acquirer IS'!H25 -> 0 | G26: ='Acquirer IS'!J25 -> 0 | I26: ='Target IS'!J25 -> 0 | K26: =+IF(ISERROR(M26-G26-I26),0,M26-G26-I26) -> 0 | M26: =IF($Y$6=0,0,-'Newco Assumptions'!J59*AVERAGE('Newco BS'!M9:P9)) -> 0 | P26: =IF($Y$6=0,0,-'Newco Assumptions'!J59*AVERAGE('Newco BS'!P9:R9)) -> 0 | R26: =IF($Y$6=0,0,-'Newco Assumptions'!L59*AVERAGE('Newco BS'!R9:T9)) -> 0 | T26: =IF($Y$6=0,0,-'Newco Assumptions'!N59*AVERAGE('Newco BS'!T9:V9)) -> 0 | V26: =IF($Y$6=0,0,-'Newco Assumptions'!P59*AVERAGE('Newco BS'!V9:X9)) -> 0
B27: Interest Expense | D27: ='Acquirer IS'!H26 -> 0 | G27: ='Acquirer IS'!J26 -> 339.06 | I27: ='Target IS'!J26 -> 105.545 | K27: =+IF(ISERROR(M27-G27-I27),0,M27-G27-I27) -> 424.9793792 | M27: =+IF(ISERROR(IF($Y$6=0,0,'Debt Repayment'!H52)),0,IF($Y$6=0,0,'Debt Repayment'!H52)) -> 869.5843792 | N27: =+IF(ISERROR(IF($Y$6=0,0,'Debt Repayment'!I52)),0,IF($Y$6=0,0,'Debt Repayment'!I52)) -> 0 | O27: =+IF(ISERROR(IF($Y$6=0,0,'Debt Repayment'!J52)),0,IF($Y$6=0,0,'Debt Repayment'!J52)) -> 792.6296506 | P27: =+IF(ISERROR(IF($Y$6=0,0,'Debt Repayment'!J52)),0,IF($Y$6=0,0,'Debt Repayment'!J52)) -> 792.6296506 | Q27: =+IF(ISERROR(IF($Y$6=0,0,'Debt Repayment'!L52)),0,IF($Y$6=0,0,'Debt Repayment'!L52)) -> 715.6749219 | R27: =+IF(ISERROR(IF($Y$6=0,0,'Debt Repayment'!L52)),0,IF($Y$6=0,0,'Debt Repayment'!L52)) -> 715.6749219 | S27: =+IF(ISERROR(IF($Y$6=0,0,'Debt Repayment'!N52)),0,IF($Y$6=0,0,'Debt Repayment'!N52)) -> 638.7201933 | T27: =+IF(ISERROR(IF($Y$6=0,0,'Debt Repayment'!N52)),0,IF($Y$6=0,0,'Debt Repayment'!N52)) -> 638.7201933 | U27: =+IF(ISERROR(IF($Y$6=0,0,'Debt Repayment'!P52)),0,IF($Y$6=0,0,'Debt Repayment'!P52)) -> 561.7654647 | V27: =+IF(ISERROR(IF($Y$6=0,0,'Debt Repayment'!P52)),0,IF($Y$6=0,0,'Debt Repayment'!P52)) -> 561.7654647
B29: Earnings before Taxes | D29: =D21-SUM(D23:D27) -> 285.7 | G29: =G21-SUM(G23:G27) -> 556.746744 | I29: =I21-SUM(I23:I27) -> 268.25404 | M29: =M21-SUM(M23:M27) -> -18.20810234 | P29: =P21-SUM(P23:P27) -> 796.9607203 | R29: =R21-SUM(R23:R27) -> 1227.196506 | T29: =T21-SUM(T23:T27) -> 1546.0913 | V29: =V21-SUM(V23:V27) -> 1887.413689
B31: Noncontrolling Interest | D31: ='Acquirer IS'!H30 -> 0 | G31: ='Acquirer IS'!J30 -> 0 | I31: ='Target IS'!J30 -> 0 | M31: =G31+I31+K31 -> 0 | P31: ='Target IS'!L30+'Acquirer IS'!L30 -> 0 | R31: ='Target IS'!N30+'Acquirer IS'!N30 -> 0 | T31: ='Target IS'!P30+'Acquirer IS'!P30 -> 0 | V31: ='Target IS'!R30+'Acquirer IS'!R30 -> 0
B32: Taxes | D32: ='Acquirer IS'!H31 -> 11 | G32: ='Acquirer IS'!J31 -> 144.7541534 | I32: ='Target IS'!J31 -> 107.301616 | K32: =(K9-K11-K12-K16-K19-K23+K26-K27)*'Newco Assumptions'!J48 -> -206.2343104 | M32: =G32+I32+K32 -> 45.82145899 | P32: =P29*'Newco Assumptions'!L48 -> 207.2097873 | R32: =R29*'Newco Assumptions'!N48 -> 319.0710916 | T32: =T29*'Newco Assumptions'!P48 -> 401.9837379 | V32: =V29*'Newco Assumptions'!R48 -> 490.7275591
B34: Net Income before Extra Items | D34: =D29-D31-D32 -> 274.7 | G34: =G29-G31-G32 -> 411.9925906 | I34: =I29-I31-I32 -> 160.952424 | M34: =M29-M31-M32 -> -64.02956133 | P34: =P29-P31-P32 -> 589.750933 | R34: =R29-R31-R32 -> 908.1254147 | T34: =T29-T31-T32 -> 1144.107562 | V34: =V29-V31-V32 -> 1396.68613
B36: Extraordinary Items | D36: ='Acquirer IS'!H35 -> -19.2 | G36: ='Acquirer IS'!J35 -> 0 | I36: ='Target IS'!J35 -> 0 | M36: =G36+I36+K36 -> 0 | P36: ='Target IS'!L35+'Acquirer IS'!L35 -> 0 | R36: ='Target IS'!N35+'Acquirer IS'!N35 -> 0 | T36: ='Target IS'!P35+'Acquirer IS'!P35 -> 0 | V36: ='Target IS'!R35+'Acquirer IS'!R35 -> 0
B37: Discontinued Operations | D37: ='Acquirer IS'!H36 -> -61.3 | G37: ='Acquirer IS'!J36 -> 0 | I37: ='Target IS'!J36 -> 0 | M37: =G37+I37+K37 -> 0 | P37: ='Target IS'!L36+'Acquirer IS'!L36 -> 0 | R37: ='Target IS'!N36+'Acquirer IS'!N36 -> 0 | T37: ='Target IS'!P36+'Acquirer IS'!P36 -> 0 | V37: ='Target IS'!R36+'Acquirer IS'!R36 -> 0
B39: Net Income after Extra Items | D39: =D34+D36+D37 -> 194.2 | G39: =G34+G36+G37 -> 411.9925906 | I39: =I34+I36+I37 -> 160.952424 | M39: =M34+M36+M37 -> -64.02956133 | P39: =P34+P36+P37 -> 589.750933 | R39: =R34+R36+R37 -> 908.1254147 | T39: =T34+T36+T37 -> 1144.107562 | V39: =V34+V36+V37 -> 1396.68613
B41: EPS - Basic | D41: ='Acquirer IS'!H40 -> 0.7671041608 | G41: =+IF(ISERROR(G34/'Acquirer Assumptions'!J53),0,G34/'Acquirer Assumptions'!J53) -> 1.150495924 | I41: =+IF(ISERROR(I34/'Target Assumptions'!J53),0,I34/'Target Assumptions'!J53) -> 0.9423444028 | M41: =+IF(ISERROR(M34/'Newco Assumptions'!J53),0,M34/'Newco Assumptions'!J53) -> -0.1656106949 | N41: =+IF(ISERROR(N34/'Newco Assumptions'!K53),0,N34/'Newco Assumptions'!K53) -> 0 | P41: =P34/'Newco Assumptions'!L53 -> 1.525374527 | Q41: =+IF(ISERROR(Q34/'Newco Assumptions'!N53),0,Q34/'Newco Assumptions'!N53) -> 0 | R41: =R34/'Newco Assumptions'!N53 -> 2.348841345 | S41: =+IF(ISERROR(S34/'Newco Assumptions'!P53),0,S34/'Newco Assumptions'!P53) -> 0 | T41: =T34/'Newco Assumptions'!P53 -> 2.959202662 | U41: =+IF(ISERROR(U34/'Newco Assumptions'!R53),0,U34/'Newco Assumptions'!R53) -> 0 | V41: =V34/'Newco Assumptions'!R53 -> 3.612490164
B43: EPS - Diluted | D43: ='Acquirer IS'!H42 -> 0.7594691733 | G43: =+IF(ISERROR(G39/'Acquirer Assumptions'!J54),0,G39/'Acquirer Assumptions'!J54) -> 1.139045039 | H43: =+IF(ISERROR(H39/'Acquirer Assumptions'!K54),0,H39/'Acquirer Assumptions'!K54) -> 0 | I43: =+IF(ISERROR(I39/'Acquirer Assumptions'!L54),0,I39/'Acquirer Assumptions'!L54) -> 0.444988731 | M43: =+IF(ISERROR(M39/'Newco Assumptions'!J54),0,M39/'Newco Assumptions'!J54) -> -0.16408287 | N43: =+IF(ISERROR(N39/'Newco Assumptions'!K54),0,N39/'Newco Assumptions'!K54) -> 0 | P43: =P34/'Newco Assumptions'!L54 -> 1.511302337 | Q43: =+IF(ISERROR(Q39/'Newco Assumptions'!N54),0,Q39/'Newco Assumptions'!N54) -> 0 | R43: =R34/'Newco Assumptions'!N54 -> 2.327172344 | S43: =+IF(ISERROR(S39/'Newco Assumptions'!P54),0,S39/'Newco Assumptions'!P54) -> 0 | T43: =T34/'Newco Assumptions'!P54 -> 2.931902833 | U43: =+IF(ISERROR(U39/'Newco Assumptions'!R54),0,U39/'Newco Assumptions'!R54) -> 0 | V43: =V39/'Newco Assumptions'!R54 -> 3.579163496
B45: Other Financial Data
B47: Depreciation & Amortization | D47: ='Acquirer IS'!H46 -> 983.7 | G47: ='Acquirer IS'!J46 -> 1013.3019 | I47: ='Target IS'!J46 -> 430.06064 | K47: =K19 -> 9.88 | M47: =G47+I47+K47 -> 1453.24254 | P47: ='Newco Assumptions'!L36+'Newco Assumptions'!L38+'Newco Assumptions'!L39+'Newco Assumptions'!L40 -> 1543.410937 | R47: ='Newco Assumptions'!N36+'Newco Assumptions'!N38+'Newco Assumptions'!N39+'Newco Assumptions'!N40 -> 1640.701763 | T47: ='Newco Assumptions'!P36+'Newco Assumptions'!P38+'Newco Assumptions'!P39+'Newco Assumptions'!P40 -> 1745.67844 | V47: ='Newco Assumptions'!R36+'Newco Assumptions'!R38+'Newco Assumptions'!R39+'Newco Assumptions'!R40 -> 1858.949016
B48: Capital Expenditures | D48: ='Acquirer IS'!H47 -> 1083.4 | G48: ='Acquirer IS'!J47 -> 878.19498 | I48: ='Target IS'!J47 -> 16.25758 | M48: =G48+I48+K48 -> 894.45256 | P48: ='Newco Assumptions'!L34 -> 965.846189 | R48: ='Newco Assumptions'!N34 -> 1042.939928 | T48: ='Newco Assumptions'!P34 -> 1126.188989 | V48: ='Newco Assumptions'!R34 -> 1216.084946
B50: EBITDA | D50: =D21+D47 -> 1482.1 | G50: =G21+G47 -> 1909.108644 | I50: =I21+I47 -> 803.85968 | M50: =M21+M47 -> 2699.818817 | P50: =P21+P47 -> 3133.001308 | R50: =R21+R47 -> 3583.573191 | T50: =T21+T47 -> 3930.489933 | V50: =V21+V47 -> 4308.128169
B52: EPS (Excluding Unusual Items) | D52: ='Acquirer IS'!H51 -> 0.7594691733 | G52: =+IF(ISERROR((G34+G23*(1-'Acquirer Assumptions'!J48))/'Acquirer Assumptions'!J54),0,(G34+G23*(1-'Acquirer Assumptions'!J48))/'Acquirer Assumptions'!J54) -> 1.139045039 | I52: =+IF(ISERROR((I34+I23*(1-'Target Assumptions'!J49))/'Target Assumptions'!J54),0,(I34+I23*(1-'Target Assumptions'!J49))/'Target Assumptions'!J54) -> 0.9223634613 | M52: =+IF(ISERROR((M34+M23*(1-'Newco Assumptions'!J48))/'Newco Assumptions'!J54),0,(M34+M23*(1-'Newco Assumptions'!J48))/'Newco Assumptions'!J54) -> 0.5853476455 | N52: =+IF(ISERROR((N34+N23*(1-'Newco Assumptions'!K48))/'Newco Assumptions'!K54),0,(N34+N23*(1-'Newco Assumptions'!K48))/'Newco Assumptions'!K54) -> 0 | O52: =+IF(ISERROR((O34+O23*(1-'Newco Assumptions'!L48))/'Newco Assumptions'!L54),0,(O34+O23*(1-'Newco Assumptions'!L48))/'Newco Assumptions'!L54) -> 0 | P52: =(P34+P23*(1-'Newco Assumptions'!L48))/'Newco Assumptions'!L54 -> 1.511302337 | Q52: =(Q34+Q23*(1-'Newco Assumptions'!M48))/'Newco Assumptions'!M54 ->  | R52: =(R34+R23*(1-'Newco Assumptions'!N48))/'Newco Assumptions'!N54 -> 2.327172344 | S52: =(S34+S23*(1-'Newco Assumptions'!O48))/'Newco Assumptions'!O54 ->  | T52: =(T34+T23*(1-'Newco Assumptions'!P48))/'Newco Assumptions'!P54 -> 2.931902833 | U52: =(U34+U23*(1-'Newco Assumptions'!Q48))/'Newco Assumptions'!Q54 ->  | V52: =(V34+V23*(1-'Newco Assumptions'!R48))/'Newco Assumptions'!R54 -> 3.579163496
B54: Cash EPS | D54: ='Acquirer IS'!H53 -> -0.2352778546 | G54: =+IF(ISERROR('Acquirer CF'!J27/'Acquirer Assumptions'!J54),0,'Acquirer CF'!J27/'Acquirer Assumptions'!J54) -> 4.79018168 | I54: =+IF(ISERROR('Target CF'!J27/'Target Assumptions'!J54),0,'Target CF'!J27/'Target Assumptions'!J54) -> 4.919075211 | M54: =+IF(ISERROR('Newco CF'!J27/'Newco Assumptions'!J54),0,'Newco CF'!J27/'Newco Assumptions'!J54) -> 9.461145943 | N54: =+IF(ISERROR('Newco CF'!K27/'Newco Assumptions'!K54),0,'Newco CF'!K27/'Newco Assumptions'!K54) -> 0 | O54: =+IF(ISERROR('Newco CF'!L27/'Newco Assumptions'!L54),0,'Newco CF'!L27/'Newco Assumptions'!L54) -> 5.883435574 | P54: ='Newco CF'!L27/'Newco Assumptions'!L54 -> 5.883435574 | Q54: =+IF(ISERROR('Newco CF'!N27/'Newco Assumptions'!N54),0,'Newco CF'!N27/'Newco Assumptions'!N54) -> 6.996520816 | R54: ='Newco CF'!N27/'Newco Assumptions'!N54 -> 6.996520816 | S54: =+IF(ISERROR('Newco CF'!P27/'Newco Assumptions'!P54),0,'Newco CF'!P27/'Newco Assumptions'!P54) -> 7.942109354 | T54: ='Newco CF'!P27/'Newco Assumptions'!P54 -> 7.942109354 | U54: =+IF(ISERROR('Newco CF'!R27/'Newco Assumptions'!R54),0,'Newco CF'!R27/'Newco Assumptions'!R54) -> 8.878404789 | V54: ='Newco CF'!R27/'Newco Assumptions'!R54 -> 8.878404789
B56: Dividends per share | D56: ='Acquirer Assumptions'!H45 -> 0 | G56: ='Acquirer Assumptions'!J45 -> 0 | I56: ='Target Assumptions'!J45 -> 0 | M56: ='Newco Assumptions'!J45 -> 0 | P56: ='Newco Assumptions'!L45 -> 0 | R56: ='Newco Assumptions'!N45 -> 0 | T56: ='Newco Assumptions'!P45 -> 0 | V56: ='Newco Assumptions'!R45 -> 0
B58: Dividend-adjusted Cash EPS | D58: =D54-D56 -> -0.2352778546 | G58: =+IF(ISERROR(G54-G56),0,G54-G56) -> 4.79018168 | I58: =+IF(ISERROR(I54-I56),0,I54-I56) -> 4.919075211 | M58: =M54-M56 -> 9.461145943 | P58: =P54-P56 -> 5.883435574 | R58: =R54-R56 -> 6.996520816 | T58: =T54-T56 -> 7.942109354 | V58: =V54-V56 -> 8.878404789

Sheet Newco BS
A1: ='Newco IS'!A1 -> Newco | Y1: Pro Forma Balance Sheet
A2: ($Millions, except per share data)
E6: ="Actual "&('Newco Assumptions'!H7)&"" -> Actual 2013 | I6: Pre-Trans | K6: Trans | M6: Pro Forma | P6: ='Newco IS'!P6 -> Projections
E7: ='Acquirer IS'!A1 -> Thermo (Acquirer) | G7: Target | I7: Adj | K7: Adj | M7: ='Newco Assumptions'!H7 -> 2013 | P7: ='Acquirer IS'!J7 -> 2014 | R7: ='Acquirer IS'!L7 -> 2015 | T7: ='Acquirer IS'!N7 -> 2016 | V7: ='Acquirer IS'!P7 -> 2017 | X7: ='Acquirer IS'!R7 -> 2018
B9: Cash | E9: ='Acquirer BS'!H9 -> 855.3 | G9: ='Target BS'!H9 -> 276.3 | K9: =-Summary!R7 -> -1000 | M9: =E9+G9+I9+K9 -> 131.6 | P9: =+IF(ISERROR('Newco CF'!J52),0,'Newco CF'!J52) -> 1307.925571 | R9: ='Newco CF'!L52 -> 1016.738433 | T9: ='Newco CF'!N52 -> 1082.813439 | V9: ='Newco CF'!P52 -> 1434.633534 | X9: ='Newco CF'!R52 -> 2061.925405
B10: Accounts Receivable | E10: ='Acquirer BS'!H10 -> 1804.9 | G10: ='Target BS'!H10 -> 697.3 | M10: =E10+G10+I10+K10 -> 2502.2 | P10: =('Newco Assumptions'!J23*'Newco IS'!M9)/365 -> 2545.503691 | R10: =('Newco Assumptions'!L23*'Newco IS'!P9)/365 -> 2744.687422 | T10: =('Newco Assumptions'!N23*'Newco IS'!R9)/365 -> 2957.723963 | V10: =('Newco Assumptions'!P23*'Newco IS'!T9)/365 -> 3186.529726 | X10: =('Newco Assumptions'!R23*'Newco IS'!V9)/365 -> 3433.113498
B11: Inventory | E11: ='Acquirer BS'!H11 -> 1443.3 | G11: ='Target BS'!H11 -> 403.5 | I11: 0 | M11: =E11+G11+I11+K11 -> 1846.8 | P11: =+IF(ISERROR(('Newco IS'!M12+'Newco IS'!M18)/'Newco Assumptions'!J24),0,('Newco IS'!M12+'Newco IS'!M18)/'Newco Assumptions'!J24) -> 141.6821664 | Q11: =+IF(ISERROR(('Newco IS'!N12+'Newco IS'!N18)/'Newco Assumptions'!K24),0,('Newco IS'!N12+'Newco IS'!N18)/'Newco Assumptions'!K24) -> 0 | R11: =+('Newco IS'!P12+'Newco IS'!P18)/'Newco Assumptions'!L24 -> 151.2379496 | S11: =+IF(ISERROR(('Newco IS'!P12+'Newco IS'!P18)/'Newco Assumptions'!M24),0,('Newco IS'!P12+'Newco IS'!P18)/'Newco Assumptions'!M24) -> 0 | T11: =+('Newco IS'!R12+'Newco IS'!R18)/'Newco Assumptions'!N24 -> 162.2755071 | U11: =+IF(ISERROR(('Newco IS'!R12+'Newco IS'!R18)/'Newco Assumptions'!O24),0,('Newco IS'!R12+'Newco IS'!R18)/'Newco Assumptions'!O24) -> 0 | V11: =('Newco IS'!T12+'Newco IS'!T18)/'Newco Assumptions'!P24 -> 175.2407276 | W11: =+IF(ISERROR(('Newco IS'!T12+'Newco IS'!T18)/'Newco Assumptions'!Q24),0,('Newco IS'!T12+'Newco IS'!T18)/'Newco Assumptions'!Q24) -> 0 | X11: =+('Newco IS'!V12+'Newco IS'!V18)/'Newco Assumptions'!R24 -> 189.2260135
B12: Other | E12: ='Acquirer BS'!H12 -> 731.3 | G12: ='Target BS'!H12 -> 248.1 | M12: =E12+G12+I12+K12 -> 979.4 | P12: ='Newco Assumptions'!J25*'Newco IS'!M9 -> 926.3611779 | R12: ='Newco Assumptions'!L25*'Newco IS'!P9 -> 999.003885 | T12: ='Newco Assumptions'!N25*'Newco IS'!R9 -> 1076.711318 | V12: ='Newco Assumptions'!P25*'Newco IS'!T9 -> 1160.183404 | X12: ='Newco Assumptions'!R25*'Newco IS'!V9 -> 1250.154114
B14: Current Assets | E14: =SUM(E9:E12) -> 4834.8 | G14: =SUM(G9:G12) -> 1625.2 | M14: =SUM(M9:M12) -> 5460 | P14: =SUM(P9:P12) -> 4921.472607 | R14: =SUM(R9:R12) -> 4911.667691 | T14: =SUM(T9:T12) -> 5279.524227 | V14: =SUM(V9:V12) -> 5956.587392 | X14: =SUM(X9:X12) -> 6934.419031
B16: Property, Plant, & Equipment | E16: ='Acquirer BS'!H16 -> 1726.4 | G16: ='Target BS'!H16 -> 871.4 | I16: 0 | M16: =E16+G16+I16+K16 -> 2597.8 | P16: =M16+'Newco Assumptions'!J34 -> 3492.25256 | R16: =P16+'Newco Assumptions'!L34 -> 4458.098749 | T16: =R16+'Newco Assumptions'!N34 -> 5501.038677 | V16: =T16+'Newco Assumptions'!P34 -> 6627.227666 | X16: =V16+'Newco Assumptions'!R34 -> 7843.312612
B17: Accumulated Depreciation | E17: ='Acquirer BS'!H17 -> 0 | G17: ='Target BS'!H17 -> 0 | I17: 0 | M17: =E17+G17+I17+K17 -> 0 | P17: =M17-'Newco Assumptions'!J36 -> -1143.36254 | R17: =P17-'Newco Assumptions'!L36 -> -2376.893477 | T17: =R17-'Newco Assumptions'!N36 -> -3707.71524 | V17: =T17-'Newco Assumptions'!P36 -> -5143.513679 | X17: =V17-'Newco Assumptions'!R36 -> -6692.582695
B19: Net Property, Plant, & Equipment | E19: =SUM(E16:E17) -> 1726.4 | G19: =SUM(G16:G17) -> 871.4 | M19: =SUM(M16:M17) -> 2597.8 | P19: =SUM(P16:P17) -> 2348.89002 | R19: =SUM(R16:R17) -> 2081.205272 | T19: =SUM(T16:T17) -> 1793.323437 | V19: =SUM(V16:V17) -> 1483.713987 | X19: =SUM(X16:X17) -> 1150.729917
B21: Goodwill | E21: ='Acquirer BS'!H21 -> 12474.5 | G21: ='Target BS'!H21 -> 4503.4 | I21: 0 | K21: =Summary!F27 -> 9157.1943 | M21: =E21+G21+I21+K21 -> 26135.0943 | P21: =M21-'Newco Assumptions'!J38 -> 26135.0943 | R21: =P21-'Newco Assumptions'!L38 -> 26135.0943 | T21: =R21-'Newco Assumptions'!N38 -> 26135.0943 | V21: =T21-'Newco Assumptions'!P38 -> 26135.0943 | X21: =V21-'Newco Assumptions'!R38 -> 26135.0943
B22: Intangible Assets | E22: ='Acquirer BS'!H22 -> 7804.5 | G22: ='Target BS'!H22 -> 1525.8 | M22: 9330.3 | P22: =M22-'Newco Assumptions'!J39 -> 9030.3 | R22: =P22-'Newco Assumptions'!L39 -> 8730.3 | T22: =R22-'Newco Assumptions'!N39 -> 8430.3 | V22: =T22-'Newco Assumptions'!P39 -> 8130.3 | X22: =V22-'Newco Assumptions'!R39 -> 7830.3
B23: Deferred Financing Expenses | E23: 0 | G23: 0 | K23: =Summary!R17*Summary!F34 -> 98.8 | M23: 98.8 | P23: =M23-'Newco Assumptions'!J40 -> 88.92 | R23: =P23-'Newco Assumptions'!L40 -> 79.04 | T23: =R23-'Newco Assumptions'!N40 -> 69.16 | V23: =T23-'Newco Assumptions'!P40 -> 59.28 | X23: =V23-'Newco Assumptions'!R40 -> 49.4
B24: Deferred Taxes | E24: ='Acquirer BS'!H23 -> 0 | G24: ='Target BS'!H23 -> 23 | M24: 23 | P24: =M24+'Newco Assumptions'!J41 -> 23 | R24: =P24+'Newco Assumptions'!L41 -> 23 | T24: =R24+'Newco Assumptions'!N41 -> 23 | V24: =T24+'Newco Assumptions'!P41 -> 23 | X24: =V24+'Newco Assumptions'!R41 -> 23
B25: Equity in Affiliates | E25: ='Acquirer BS'!H24 -> 0 | G25: ='Target BS'!H24 -> 0 | M25: 0 | P25: =M25-'Newco IS'!M24-'Newco Assumptions'!J43 -> 0 | R25: =P25-'Newco IS'!P24-'Newco Assumptions'!L43 -> 0 | T25: =R25-'Newco IS'!R24-'Newco Assumptions'!N43 -> 0 | V25: =T25-'Newco IS'!T24-'Newco Assumptions'!P43 -> 0 | X25: =V25-'Newco IS'!V24-'Newco Assumptions'!R43 -> 0
B26: Other | E26: ='Acquirer BS'!H25 -> 604.4 | G26: ='Target BS'!H25 -> 89.2 | M26: 693.6 | P26: =M26+'Newco Assumptions'!J28 -> 693.6 | R26: =P26+'Newco Assumptions'!L28 -> 693.6 | T26: =R26+'Newco Assumptions'!N28 -> 693.6 | V26: =T26+'Newco Assumptions'!P28 -> 693.6 | X26: =V26+'Newco Assumptions'!R28 -> 693.6
B28: Total Assets | E28: =E14+E19+SUM(E21:E26) -> 27444.6 | G28: =G14+G19+SUM(G21:G26) -> 8638 | M28: =M14+M19+SUM(M21:M26) -> 44338.5943 | P28: =P14+P19+SUM(P21:P26) -> 43241.27693 | R28: =R14+R19+SUM(R21:R26) -> 42653.90726 | T28: =T14+T19+SUM(T21:T26) -> 42424.00196 | V28: =V14+V19+SUM(V21:V26) -> 42481.57568 | X28: =X14+X19+SUM(X21:X26) -> 42816.54325
B30: Accounts Payable | E30: ='Acquirer BS'!H29 -> 641.4 | G30: ='Target BS'!H29 -> 186.6 | M30: =E30+G30+I30+K30 -> 828 | P30: =('Newco Assumptions'!J26*'Newco IS'!M12)/365 -> 876.1462484 | R30: =('Newco Assumptions'!L26*'Newco IS'!P12)/365 -> 933.4473582 | T30: =('Newco Assumptions'!N26*'Newco IS'!R12)/365 -> 1000.28809 | V30: =('Newco Assumptions'!P26*'Newco IS'!T12)/365 -> 1079.68985 | X30: =('Newco Assumptions'!R26*'Newco IS'!V12)/365 -> 1165.287296
B31: Other | E31: ='Acquirer BS'!H30 -> 1451.9 | G31: ='Target BS'!H30 -> 1005.8 | M31: =E31+G31+I31+K31 -> 2457.7 | P31: ='Newco Assumptions'!J27*'Newco IS'!M12 -> 2787.182132 | R31: ='Newco Assumptions'!L27*'Newco IS'!P12 -> 2963.676616 | T31: ='Newco Assumptions'!N27*'Newco IS'!R12 -> 3169.721363 | V31: ='Newco Assumptions'!P27*'Newco IS'!T12 -> 3414.701947 | X31: ='Newco Assumptions'!R27*'Newco IS'!V12 -> 3678.302133
B33: Current Liabilities | E33: =SUM(E30:E31) -> 2093.3 | G33: =SUM(G30:G31) -> 1192.4 | M33: =SUM(M30:M31) -> 3285.7 | P33: =SUM(P30:P31) -> 3663.32838 | R33: =SUM(R30:R31) -> 3897.123974 | T33: =SUM(T30:T31) -> 4170.009453 | V33: =SUM(V30:V31) -> 4494.391797 | X33: =SUM(X30:X31) -> 4843.589428
B35: Revolving Credit Facility | E35: ='Acquirer BS'!H34 -> 0 | G35: ='Target BS'!H34 -> 0 | K35: =Summary!R11 -> 0 | M35: =E35+G35+I35+K35 -> 0 | P35: =+IF(ISERROR('Newco CF'!J51),0,'Newco CF'!J51) -> 0 | Q35: =+IF(ISERROR('Newco CF'!K51),0,'Newco CF'!K51) -> 0 | R35: =+IF(ISERROR('Newco CF'!L51),0,'Newco CF'!L51) -> 0 | S35: =+IF(ISERROR('Newco CF'!M51),0,'Newco CF'!M51) -> 0 | T35: =+IF(ISERROR('Newco CF'!N51),0,'Newco CF'!N51) -> 0 | U35: =+IF(ISERROR('Newco CF'!O51),0,'Newco CF'!O51) -> 0 | V35: =+IF(ISERROR('Newco CF'!P51),0,'Newco CF'!P51) -> 0 | W35: =+IF(ISERROR('Newco CF'!Q51),0,'Newco CF'!Q51) -> 0 | X35: =+IF(ISERROR('Newco CF'!R51),0,'Newco CF'!R51) -> 0
B36: Senior Debt | E36: ='Acquirer BS'!H35 -> 7031.2 | G36: ='Target BS'!H35 -> 2260.9 | K36: =Summary!R12 -> 9854.5943 | M36: =E36+G36+I36+K36 -> 19146.6943 | P36: =+M36-'Debt Repayment'!H10-'Debt Repayment'!H16-'Debt Repayment'!H22 -> 17525.47811 | Q36: =+IF(ISERROR(N36-'Debt Repayment'!I10-'Debt Repayment'!I16-'Debt Repayment'!I22),0,N36-'Debt Repayment'!I10-'Debt Repayment'!I16-'Debt Repayment'!I22) -> 0 | R36: =+P36-'Debt Repayment'!J10-'Debt Repayment'!J16-'Debt Repayment'!J22 -> 15904.26192 | S36: =+Q36-'Debt Repayment'!K10-'Debt Repayment'!K16-'Debt Repayment'!K22 -> 0 | T36: =+R36-'Debt Repayment'!L10-'Debt Repayment'!L16-'Debt Repayment'!L22 -> 14283.04573 | U36: =+S36-'Debt Repayment'!M10-'Debt Repayment'!M16-'Debt Repayment'!M22 -> 0 | V36: =+T36-'Debt Repayment'!N10-'Debt Repayment'!N16-'Debt Repayment'!N22 -> 12661.82953 | W36: =+U36-'Debt Repayment'!O10-'Debt Repayment'!O16-'Debt Repayment'!O22 -> 0 | X36: =+V36-'Debt Repayment'!P10-'Debt Repayment'!P16-'Debt Repayment'!P22 -> 11040.61334
B37: Subordinated Debt | E37: ='Acquirer BS'!H36 -> 0 | G37: ='Target BS'!H36 -> 0 | K37: =Summary!R13 -> 0 | M37: =E37+G37+I37+K37 -> 0 | P37: =+M37-'Debt Repayment'!H11-'Debt Repayment'!H17-'Debt Repayment'!H23 -> 0 | Q37: =+IF(ISERROR(N37-'Debt Repayment'!I11-'Debt Repayment'!I17-'Debt Repayment'!I23),0,N37-'Debt Repayment'!I11-'Debt Repayment'!I17-'Debt Repayment'!I23) -> 0 | R37: =+P37-'Debt Repayment'!J11-'Debt Repayment'!J17-'Debt Repayment'!J23 -> 0 | S37: =+Q37-'Debt Repayment'!K11-'Debt Repayment'!K17-'Debt Repayment'!K23 -> 0 | T37: =+R37-'Debt Repayment'!L11-'Debt Repayment'!L17-'Debt Repayment'!L23 -> 0 | U37: =+S37-'Debt Repayment'!M11-'Debt Repayment'!M17-'Debt Repayment'!M23 -> 0 | V37: =+T37-'Debt Repayment'!N11-'Debt Repayment'!N17-'Debt Repayment'!N23 -> 0 | W37: =+U37-'Debt Repayment'!O11-'Debt Repayment'!O17-'Debt Repayment'!O23 -> 0 | X37: =+V37-'Debt Repayment'!P11-'Debt Repayment'!P17-'Debt Repayment'!P23 -> 0
B39: Total | E39: =SUM(E35:E37) -> 7031.2 | G39: =SUM(G35:G37) -> 2260.9 | M39: =SUM(M35:M37) -> 19146.6943 | P39: =SUM(P35:P37) -> 17525.47811 | R39: =SUM(R35:R37) -> 15904.26192 | T39: =SUM(T35:T37) -> 14283.04573 | V39: =SUM(V35:V37) -> 12661.82953 | X39: =SUM(X35:X37) -> 11040.61334
B41: Deferred Taxes | E41: ='Acquirer BS'!H40 -> 2047.2 | G41: ='Target BS'!H40 -> 287.4 | M41: =E41+G41+I41+K41 -> 2334.6 | P41: =M41+'Newco Assumptions'!J42 -> 2544.9 | R41: =P41+'Newco Assumptions'!L42 -> 2755.2 | T41: =R41+'Newco Assumptions'!N42 -> 2965.5 | V41: =T41+'Newco Assumptions'!P42 -> 3175.8 | X41: =V41+'Newco Assumptions'!R42 -> 3386.1
B42: Other | E42: ='Acquirer BS'!H41 -> 808.2 | G42: ='Target BS'!H41 -> 443.9 | M42: =E42+G42+I42+K42 -> 1252.1 | P42: =M42+'Newco Assumptions'!J29 -> 1252.1 | R42: =P42+'Newco Assumptions'!L29 -> 1252.1 | T42: =R42+'Newco Assumptions'!N29 -> 1252.1 | V42: =T42+'Newco Assumptions'!P29 -> 1252.1 | X42: =V42+'Newco Assumptions'!R29 -> 1252.1
B44: Total Liabilities | E44: =E33+E39+SUM(E41:E42) -> 11979.9 | G44: =G33+G39+SUM(G41:G42) -> 4184.6 | M44: =M33+M39+SUM(M41:M42) -> 26019.0943 | P44: =P33+P39+SUM(P41:P42) -> 24985.80649 | R44: =R33+R39+SUM(R41:R42) -> 23808.68589 | T44: =T33+T39+SUM(T41:T42) -> 22670.65518 | V44: =V33+V39+SUM(V41:V42) -> 21584.12133 | X44: =X33+X39+SUM(X41:X42) -> 20522.40277
B46: Common Stock | E46: ='Acquirer BS'!H45 -> 413.5 | G46: ='Target BS'!H45 -> 5733.7 | K46: =Summary!R8+Summary!R9-G46 -> -3533.7 | M46: =E46+G46+I46+K46 -> 2613.5 | P46: =M46 -> 2613.5 | R46: =P46 -> 2613.5 | T46: =R46 -> 2613.5 | V46: =T46 -> 2613.5 | X46: =V46 -> 2613.5
B47: Preferred Equity | E47: ='Acquirer BS'!H46 -> 0 | G47: ='Target BS'!H46 -> 0 | K47: =-G47+Summary!R10 -> 1050 | M47: 1050 | P47: =M47 -> 1050 | R47: =P47 -> 1050 | T47: =R47 -> 1050 | V47: =T47 -> 1050 | X47: =V47 -> 1050
B48: Retained Earnings | E48: ='Acquirer BS'!H47 -> 7697.3 | G48: ='Target BS'!H47 -> 1341.8 | K48: =-G48 -> -1341.8 | M48: 7697.3 | P48: =M48+'Newco IS'!M39+'Newco CF'!J37 -> 7633.270439 | R48: =P48+'Newco IS'!P39+'Newco CF'!L37 -> 8223.021372 | T48: =R48+'Newco IS'!R39+'Newco CF'!N37 -> 9131.146786 | V48: =T48+'Newco IS'!T39+'Newco CF'!P37 -> 10275.25435 | X48: =V48+'Newco IS'!V39+'Newco CF'!R37 -> 11671.94048
B49: Treasury Stock | E49: ='Acquirer BS'!H48 -> -2996.8 | G49: ='Target BS'!H48 -> -2682 | K49: =-G49 -> 2682 | M49: -2996.8 | P49: =M49 -> -2996.8 | R49: =P49 -> -2996.8 | T49: =R49 -> -2996.8 | V49: =T49 -> -2996.8 | X49: =V49 -> -2996.8
B50: Other Adjustments | E50: ='Acquirer BS'!H49 -> 10350.7 | G50: ='Target BS'!H49 -> 59.1 | K50: =-G50-Summary!R17*(1-Summary!F34) -> -454.3 | M50: 9955.5 | P50: =M50 -> 9955.5 | R50: =P50 -> 9955.5 | T50: =R50 -> 9955.5 | V50: =T50 -> 9955.5 | X50: =V50 -> 9955.5
B51: Noncontrolling Interest | E51: ='Acquirer BS'!H50 -> 0 | G51: ='Target BS'!H50 -> 0.8 | K51: =-G51 -> -0.8 | M51: 0 | N51: =F51+H51+J51+L51 -> 0 | O51: =G51+I51+K51+M51 -> 0 | P51: =M51 -> 0 | Q51: =N51 -> 0 | R51: 0 | S51: 0 | T51: 0 | U51: 0 | V51: 0 | W51: 0 | X51: 0
B52: Total Stockholders Equity | E52: =SUM(E46:E51) -> 15464.7 | F52: =SUM(F46:F51) -> 0 | G52: 4453.4 | M52: =SUM(M46:M51) -> 18319.5 | N52: =SUM(N46:N51) -> 0 | O52: 0 | P52: 18255.47044 | Q52: 0 | R52: 18845.22137 | S52: 0 | T52: 19753.34679 | U52: 0 | V52: 20897.45435 | W52: 0 | X52: 22294.14048
B54: Total Liabilities and Equity | E54: =E44+E52 -> 27444.6 | G54: =G44+G52 -> 8638 | M54: =M44+M52 -> 44338.5943 | P54: =+IF(ISERROR(P44+P52),0,P44+P52) -> 43241.27693 | Q54: =+IF(ISERROR(Q44+Q52),0,Q44+Q52) -> 0 | R54: 42653.90726 | S54: 0 | T54: 42424.00196 | U54: 0 | V54: 42481.57568 | W54: 0 | X54: 42816.54325
B59: Reconciliation | E59: =E54-E28 -> 0 | G59: =G54-G28 -> 0 | M59: =M28-M54 -> 0 | P59: =P28-P54 -> 0 | Q59: =Q54-Q28+12 -> 12 | R59: =R28-R54 -> 0 | S59: =S28-S54 -> 0 | T59: 0 | U59: 0 | V59: 0 | W59: 0 | X59: 0

Sheet Newco CF
A1: ='Newco IS'!A1 -> Newco | S1: Pro Forma Statement of Cash Flow
A2: ($Millions, except per share data)
F6: ='Newco Assumptions'!D6 -> Actual | J6: ='Newco BS'!P6 -> Projections
F7: ='Acquirer BS'!F7 -> 2012 | H7: ='Acquirer BS'!H7 -> 2013 | J7: ='Acquirer BS'!J7 -> 2014 | L7: ='Acquirer BS'!L7 -> 2015 | N7: ='Acquirer BS'!N7 -> 2016 | P7: ='Acquirer BS'!P7 -> 2017 | R7: ='Acquirer BS'!R7 -> 2018
B9: Net Income | F9: ='Acquirer CF'!F9 -> 434.3 | H9: ='Acquirer CF'!H9 -> 194.2 | J9: ='Newco IS'!M39 -> -64.02956133 | L9: ='Newco IS'!P39 -> 589.750933 | N9: ='Newco IS'!R39 -> 908.1254147 | P9: ='Newco IS'!T39 -> 1144.107562 | R9: ='Newco IS'!V39 -> 1396.68613
B11: Depreciation & Amortization | F11: ='Acquirer CF'!F11 -> 895.6 | H11: ='Acquirer CF'!H11 -> 983.7 | J11: ='Newco IS'!M47 -> 1453.24254 | L11: ='Newco IS'!P47 -> 1543.410937 | N11: ='Newco IS'!R47 -> 1640.701763 | P11: ='Newco IS'!T47 -> 1745.67844 | R11: ='Newco IS'!V47 -> 1858.949016
B13: Income from Affiliates, Net of Dividends | F13: ='Acquirer CF'!F13 -> 0 | H13: ='Acquirer CF'!H13 -> 0 | J13: ='Newco IS'!M24+'Newco Assumptions'!J43 -> 0 | L13: ='Newco IS'!P24+'Newco Assumptions'!L43 -> 0 | N13: ='Newco IS'!R24+'Newco Assumptions'!N43 -> 0 | P13: ='Newco IS'!T24+'Newco Assumptions'!P43 -> 0 | R13: ='Newco IS'!V24+'Newco Assumptions'!R43 -> 0
A15: Change in
B17: Accounts Receivable | F17: ='Acquirer CF'!F17 -> -289.8 | H17: ='Acquirer CF'!H17 -> -41.2 | J17: ='Newco BS'!M10-'Newco BS'!P10 -> -43.30369138 | L17: ='Newco BS'!P10-'Newco BS'!R10 -> -199.1837311 | N17: ='Newco BS'!R10-'Newco BS'!T10 -> -213.0365405 | P17: ='Newco BS'!T10-'Newco BS'!V10 -> -228.8057627 | R17: ='Newco BS'!V10-'Newco BS'!X10 -> -246.5837728
B18: Inventory | F18: ='Acquirer CF'!F18 -> -157.6 | H18: ='Acquirer CF'!H18 -> -113.2 | J18: ='Newco BS'!M11-'Newco BS'!P11 -> 1705.117834 | L18: ='Newco BS'!P11-'Newco BS'!R11 -> -9.555783215 | N18: ='Newco BS'!R11-'Newco BS'!T11 -> -11.03755745 | P18: ='Newco BS'!T11-'Newco BS'!V11 -> -12.96522054 | R18: ='Newco BS'!V11-'Newco BS'!X11 -> -13.98528587
B19: Other Current Assets | F19: ='Acquirer CF'!F19 -> -144.4 | H19: ='Acquirer CF'!H19 -> -23.8 | J19: ='Newco BS'!M12-'Newco BS'!P12 -> 53.03882212 | L19: ='Newco BS'!P12-'Newco BS'!R12 -> -72.64270714 | N19: ='Newco BS'!R12-'Newco BS'!T12 -> -77.70743326 | P19: ='Newco BS'!T12-'Newco BS'!V12 -> -83.47208597 | R19: ='Newco BS'!V12-'Newco BS'!X12 -> -89.97071022
B20: Accounts Payable | F20: ='Acquirer CF'!F20 -> 65.9 | H20: ='Acquirer CF'!H20 -> 29.1 | J20: ='Newco BS'!P30-'Newco BS'!M30 -> 48.14624839 | L20: ='Newco BS'!R30-'Newco BS'!P30 -> 57.30110977 | N20: ='Newco BS'!T30-'Newco BS'!R30 -> 66.84073207 | P20: ='Newco BS'!V30-'Newco BS'!T30 -> 79.40175988 | R20: ='Newco BS'!X30-'Newco BS'!V30 -> 85.59744544
B21: Other Current Liabilities | F21: ='Acquirer CF'!F21 -> 1337.9 | H21: ='Acquirer CF'!H21 -> -1048.9 | J21: ='Newco BS'!P31-'Newco BS'!M31 -> 329.4821315 | L21: ='Newco BS'!R31-'Newco BS'!P31 -> 176.4944848 | N21: ='Newco BS'!T31-'Newco BS'!R31 -> 206.0447468 | P21: ='Newco BS'!V31-'Newco BS'!T31 -> 244.9805842 | R21: ='Newco BS'!X31-'Newco BS'!V31 -> 263.6001856
B22: Other Assets | F22: ='Acquirer CF'!F22 -> 332.7 | H22: ='Acquirer CF'!H22 -> 6.9 | J22: ='Newco BS'!M26-'Newco BS'!P26 -> 0 | L22: ='Newco BS'!P26-'Newco BS'!R26 -> 0 | N22: ='Newco BS'!R26-'Newco BS'!T26 -> 0 | P22: ='Newco BS'!T26-'Newco BS'!V26 -> 0 | R22: ='Newco BS'!V26-'Newco BS'!X26 -> 0
B23: Deferred Taxes | F23: ='Acquirer CF'!F23 -> 602.7 | H23: ='Acquirer CF'!H23 -> -182.1 | J23: ='Newco BS'!P41-'Newco BS'!M41+'Newco BS'!M24-'Newco BS'!P24 -> 210.3 | L23: ='Newco BS'!R41-'Newco BS'!P41+'Newco BS'!P24-'Newco BS'!R24 -> 210.3 | N23: ='Newco BS'!T41-'Newco BS'!R41+'Newco BS'!R24-'Newco BS'!T24 -> 210.3 | P23: ='Newco BS'!V41-'Newco BS'!T41+'Newco BS'!T24-'Newco BS'!V24 -> 210.3 | R23: ='Newco BS'!X41-'Newco BS'!V41+'Newco BS'!V24-'Newco BS'!X24 -> 210.3
B24: Minority Interest | F24: ='Acquirer CF'!F24 -> 0 | H24: ='Acquirer CF'!H24 -> 0 | J24: ='Newco BS'!P51-'Newco BS'!M51 -> 0 | L24: ='Newco BS'!R51-'Newco BS'!P51 -> 0 | N24: ='Newco BS'!T51-'Newco BS'!R51 -> 0 | P24: ='Newco BS'!V51-'Newco BS'!T51 -> 0 | R24: ='Newco BS'!X51-'Newco BS'!V51 -> 0
B25: Other Liabilities | F25: ='Acquirer CF'!F25 -> 77 | H25: ='Acquirer CF'!H25 -> 110.2 | J25: ='Newco BS'!P42-'Newco BS'!M42 -> 0 | L25: ='Newco BS'!R42-'Newco BS'!P42 -> 0 | N25: ='Newco BS'!T42-'Newco BS'!R42 -> 0 | P25: ='Newco BS'!V42-'Newco BS'!T42 -> 0 | R25: ='Newco BS'!X42-'Newco BS'!V42 -> 0
A27: Cash Flow from Operating Activities | F27: =SUM(F9:F25) -> 3154.3 | H27: =SUM(H9:H25) -> -85.1 | J27: =SUM(J9:J25) -> 3691.994323 | L27: =SUM(L9:L25) -> 2295.875243 | N27: =SUM(N9:N25) -> 2730.231125 | P27: =SUM(P9:P25) -> 3099.225276 | R27: =SUM(R9:R25) -> 3464.593008
B29: Capital Expenditures | F29: ='Acquirer CF'!F29 -> -260.9 | H29: ='Acquirer CF'!H29 -> -1083.4 | J29: =-'Newco IS'!M48 -> -894.45256 | L29: =-'Newco Assumptions'!L34 -> -965.846189 | N29: =-'Newco Assumptions'!N34 -> -1042.939928 | P29: =-'Newco Assumptions'!P34 -> -1126.188989 | R29: =-'Newco Assumptions'!R34 -> -1216.084946
B30: Acquisitions | F30: ='Acquirer CF'!F30 -> 0 | H30: ='Acquirer CF'!H30 -> 0 | J30: 0 | L30: 0 | N30: 0 | P30: 0 | R30: 0
B31: Sale of Assets | F31: ='Acquirer CF'!F31 -> 0 | H31: ='Acquirer CF'!H31 -> 0 | J31: 0 | L31: 0 | N31: 0 | P31: 0 | R31: 0
A33: Cash Flow from Investing Activities | F33: =SUM(F29:F31) -> -260.9 | H33: =SUM(H29:H31) -> -1083.4 | J33: =SUM(J29:J31) -> -894.45256 | L33: =SUM(L29:L31) -> -965.846189 | N33: =SUM(N29:N31) -> -1042.939928 | P33: =SUM(P29:P31) -> -1126.188989 | R33: =SUM(R29:R31) -> -1216.084946
B35: Net Change in Equity | F35: ='Acquirer CF'!F35 -> -1652 | H35: ='Acquirer CF'!H35 -> -554.4 | J35: ='Newco BS'!P46-'Newco BS'!M46+'Newco BS'!P47-'Newco BS'!M47+'Newco BS'!P49-'Newco BS'!M49+'Newco BS'!P50-'Newco BS'!M50 -> 0 | L35: ='Newco BS'!R46-'Newco BS'!P46+'Newco BS'!R47-'Newco BS'!P47+'Newco BS'!R49-'Newco BS'!P49+'Newco BS'!R50-'Newco BS'!P50 -> 0 | N35: ='Newco BS'!T46-'Newco BS'!R46+'Newco BS'!T47-'Newco BS'!R47+'Newco BS'!T49-'Newco BS'!R49+'Newco BS'!T50-'Newco BS'!R50 -> 0 | P35: ='Newco BS'!V46-'Newco BS'!T46+'Newco BS'!V47-'Newco BS'!T47+'Newco BS'!V49-'Newco BS'!T49+'Newco BS'!V50-'Newco BS'!T50 -> 0 | R35: ='Newco BS'!X46-'Newco BS'!V46+'Newco BS'!X47-'Newco BS'!V47+'Newco BS'!X49-'Newco BS'!V49+'Newco BS'!X50-'Newco BS'!V50 -> 0
B36: Net Change in Debt | F36: ='Acquirer CF'!F36 -> 3723.6 | H36: ='Acquirer CF'!H36 -> 1276 | J36: ='Newco BS'!P36-'Newco BS'!M36+'Newco BS'!P37-'Newco BS'!M37 -> -1621.216192 | L36: ='Newco BS'!R36-'Newco BS'!P36+'Newco BS'!R37-'Newco BS'!P37 -> -1621.216192 | N36: ='Newco BS'!T36-'Newco BS'!R36+'Newco BS'!T37-'Newco BS'!R37 -> -1621.216192 | P36: ='Newco BS'!V36-'Newco BS'!T36+'Newco BS'!V37-'Newco BS'!T37 -> -1621.216192 | R36: ='Newco BS'!X36-'Newco BS'!V36+'Newco BS'!X37-'Newco BS'!V37 -> -1621.216192
B37: Dividends Paid | F37: ='Acquirer CF'!F37 -> 0 | H37: ='Acquirer CF'!H37 -> 0 | J37: =-'Newco Assumptions'!J47 -> 0 | L37: =-'Newco Assumptions'!L47 -> 0 | N37: =-'Newco Assumptions'!N47 -> 0 | P37: =-'Newco Assumptions'!P47 -> 0 | R37: =-'Newco Assumptions'!R47 -> 0
A39: Cash Flow from Financing Activities | F39: =SUM(F35:F37) -> 2071.6 | H39: =SUM(H35:H37) -> 721.6 | J39: =SUM(J35:J37) -> -1621.216192 | L39: =SUM(L35:L37) -> -1621.216192 | N39: =SUM(N35:N37) -> -1621.216192 | P39: =SUM(P35:P37) -> -1621.216192 | R39: =SUM(R35:R37) -> -1621.216192
B41: Net Change in Cash | F41: =F27+F33+F39 -> 4965 | H41: =H27+H33+H39 -> -446.9 | J41: =J27+J33+J39 -> 1176.325571 | L41: =L27+L33+L39 -> -291.1871377 | N41: =N27+N33+N39 -> 66.07500554 | P41: =P27+P33+P39 -> 351.8200953 | R41: =R27+R33+R39 -> 627.2918702
B43: Beginning Cash Balance | F43: ='Acquirer CF'!F43 -> 926.5 | H43: ='Acquirer CF'!H43 -> 1020.6 | J43: ='Newco BS'!M9 -> 131.6 | L43: ='Newco BS'!P9 -> 1307.925571 | N43: ='Newco BS'!R9 -> 1016.738433 | P43: ='Newco BS'!T9 -> 1082.813439 | R43: ='Newco BS'!V9 -> 1434.633534
B45: Cash Available for Revolving Credit | F45: =F41+F43 -> 5891.5 | H45: =H41+H43 -> 573.7 | J45: =J41+J43 -> 1307.925571 | L45: =L41+L43 -> 1016.738433 | N45: =N41+N43 -> 1082.813439 | P45: =P41+P43 -> 1434.633534 | R45: =R41+R43 -> 2061.925405
B49: Beginning Revolver | J49: ='Newco BS'!M35 -> 0 | L49: ='Newco BS'!P35 -> 0 | N49: ='Newco BS'!R35 -> 0 | P49: ='Newco BS'!T35 -> 0 | R49: ='Newco BS'!V35 -> 0
B50: Total Repayment | J50: =IF(J45-J49<$F$54,J45-$F$54,J49) -> 0 | L50: =IF(L45-L49<$F$54,L45-$F$54,L49) -> 0 | N50: =IF(N45-N49<$F$54,N45-$F$54,N49) -> 0 | P50: =IF(P45-P49<$F$54,P45-$F$54,P49) -> 0 | R50: =IF(R45-R49<$F$54,R45-$F$54,R49) -> 0
B51: Ending Revolving Credit Facility | J51: =J49-J50 -> 0 | L51: =L49-L50 -> 0 | N51: =N49-N50 -> 0 | P51: =P49-P50 -> 0 | R51: =R49-R50 -> 0
B52: Ending Cash | J52: =+IF(J45-J49<0,$F$54,J45-J50) -> 1307.925571 | K52: =+IF(K45-K49<0,$F$54,K45-K50) -> 0 | L52: 1016.738433 | M52: 0 | N52: 1082.813439 | O52: 0 | P52: 1434.633534 | Q52: 0 | R52: 2061.925405
B54: Minimum Cash Balance | F54: 0

Sheet Debt Repayment
A1: ='Newco Assumptions'!A1 -> Newco | Q1: Debt Repayment Schedule
A2: ($ in millions except per share figures)
F4: Actual | H4: ='Newco BS'!P6 -> Projections
B5: Principal Payments | F5: ='Newco BS'!M7 -> 2013 | H5: =F5+1 -> 2014 | J5: =H5+1 -> 2015 | L5: =J5+1 -> 2016 | N5: =L5+1 -> 2017 | P5: =N5+1 -> 2018
B7: ='Acquirer Assumptions'!A1 -> Thermo (Acquirer)
B9: Revolving Credit Facility | F9: 0 | H9: 0 | J9: 0 | L9: 0 | N9: 0 | P9: 0
B10: Senior Debt | F10: ='Acquirer Assumptions'!H39 -> 354.5 | H10: ='Acquirer Assumptions'!J39 -> 500 | J10: ='Acquirer Assumptions'!L39 -> 500 | L10: ='Acquirer Assumptions'!N39 -> 500 | N10: ='Acquirer Assumptions'!P39 -> 500 | P10: ='Acquirer Assumptions'!R39 -> 500
B11: Subordinated Debt | F11: ='Acquirer Assumptions'!H40 -> 0 | H11: ='Acquirer Assumptions'!J40 -> 0 | J11: ='Acquirer Assumptions'!L40 -> 0 | L11: ='Acquirer Assumptions'!N40 -> 0 | N11: ='Acquirer Assumptions'!P40 -> 0 | P11: ='Acquirer Assumptions'!R40 -> 0
B13: ='Target Assumptions'!A1 -> Life Technologies (Target)
B15: Revolving Credit Facility | F15: 0 | H15: 0 | J15: 0 | L15: 0 | N15: 0 | P15: 0
B16: Senior Debt | F16: ='Target Assumptions'!H39 -> 450 | H16: ='Target Assumptions'!J39 -> 300 | J16: ='Target Assumptions'!L39 -> 300 | L16: ='Target Assumptions'!N39 -> 300 | N16: ='Target Assumptions'!P39 -> 300 | P16: ='Target Assumptions'!R39 -> 300
B17: Subordinated Debt | F17: ='Target Assumptions'!H40 -> 0 | H17: ='Target Assumptions'!J40 -> 0 | J17: ='Target Assumptions'!L40 -> 0 | L17: ='Target Assumptions'!N40 -> 0 | N17: ='Target Assumptions'!P40 -> 0 | P17: ='Target Assumptions'!R40 -> 0
B19: Acquisition
B21: Revolving Credit Facility | F21: 0 | H21: 0 | J21: 0 | L21: 0 | N21: 0 | P21: 0
B22: Senior Debt | F22: 0 | H22: =Summary!$R$12/Summary!$L$31 -> 821.2161917 | J22: =Summary!$R$12/Summary!$L$31 -> 821.2161917 | L22: =Summary!$R$12/Summary!$L$31 -> 821.2161917 | N22: =Summary!$R$12/Summary!$L$31 -> 821.2161917 | P22: =Summary!$R$12/Summary!$L$31 -> 821.2161917
B23: Subordinated Debt | F23: 0 | H23: =Summary!$R$13/Summary!$L$33 -> 0 | J23: =Summary!$R$13/Summary!$L$33 -> 0 | L23: =Summary!$R$13/Summary!$L$33 -> 0 | N23: =Summary!$R$13/Summary!$L$33 -> 0 | P23: =Summary!$R$13/Summary!$L$33 -> 0
F25: Actual | H25: Projections
B26: Debt Balance | F26: =F5 -> 2013 | H26: =F26+1 -> 2014 | J26: =H26+1 -> 2015 | L26: =J26+1 -> 2016 | N26: =L26+1 -> 2017 | P26: =N26+1 -> 2018
B28: =B7 -> Thermo (Acquirer) | D28: Rate
B30: Revolving Credit Facility | D30: ='Acquirer Assumptions'!J55 -> 0.02 | F30: ='Acquirer BS'!H34 -> 0 | H30: 0 | J30: 0 | L30: 0 | N30: 0 | P30: 0
B31: Senior Debt | D31: ='Acquirer Assumptions'!J56 -> 0.05 | F31: ='Acquirer BS'!H35 -> 7031.2 | H31: ='Acquirer BS'!J35 -> 6531.2 | J31: ='Acquirer BS'!L35 -> 6031.2 | L31: ='Acquirer BS'!N35 -> 5531.2 | N31: ='Acquirer BS'!P35 -> 5031.2 | P31: ='Acquirer BS'!R35 -> 4531.2
B32: Subordinated Debt | D32: ='Acquirer Assumptions'!J57 -> 0.1 | F32: ='Acquirer BS'!H36 -> 0 | H32: ='Acquirer BS'!J36 -> 0 | J32: ='Acquirer BS'!L36 -> 0 | L32: ='Acquirer BS'!N36 -> 0 | N32: ='Acquirer BS'!P36 -> 0 | P32: ='Acquirer BS'!R36 -> 0
B34: Interest Expense | F34: ='Acquirer IS'!H26 -> 0 | H34: =$D$31*AVERAGE(F31:H31)+$D$32*AVERAGE(F32:H32) -> 339.06 | J34: =$D$31*AVERAGE(H31:J31)+$D$32*AVERAGE(H32:J32) -> 314.06 | L34: =$D$31*AVERAGE(J31:L31)+$D$32*AVERAGE(J32:L32) -> 289.06 | N34: =$D$31*AVERAGE(L31:N31)+$D$32*AVERAGE(L32:N32) -> 264.06 | P34: =$D$31*AVERAGE(N31:P31)+$D$32*AVERAGE(N32:P32) -> 239.06
B36: =B13 -> Life Technologies (Target)
B38: Revolving Credit Facility | D38: ='Target Assumptions'!J55 -> 0.02 | F38: ='Target BS'!H34 -> 0 | H38: 0 | J38: 0 | L38: 0 | N38: 0 | P38: 0
B39: Senior Debt | D39: ='Target Assumptions'!J56 -> 0.05 | F39: ='Target BS'!H35 -> 2260.9 | H39: ='Target BS'!J35 -> 1960.9 | J39: ='Target BS'!L35 -> 1660.9 | L39: ='Target BS'!N35 -> 1360.9 | N39: ='Target BS'!P35 -> 1060.9 | P39: ='Target BS'!R35 -> 760.9
B40: Subordinated Debt | D40: ='Target Assumptions'!J57 -> 0.1 | F40: ='Target BS'!H36 -> 0 | H40: ='Target BS'!J36 -> 0 | J40: ='Target BS'!L36 -> 0 | L40: ='Target BS'!N36 -> 0 | N40: ='Target BS'!P36 -> 0 | P40: ='Target BS'!R36 -> 0
B42: Interest Expense | F42: ='Target IS'!H26 -> 123.9 | H42: =$D$39*AVERAGE(F39:H39)+$D$40*AVERAGE(F40:H40) -> 105.545 | J42: =$D$39*AVERAGE(H39:J39)+$D$40*AVERAGE(H40:J40) -> 90.545 | L42: =$D$39*AVERAGE(J39:L39)+$D$40*AVERAGE(J40:L40) -> 75.545 | N42: =$D$39*AVERAGE(L39:N39)+$D$40*AVERAGE(L40:N40) -> 60.545 | P42: =$D$39*AVERAGE(N39:P39)+$D$40*AVERAGE(N40:P40) -> 45.545
B44: Combined Firms
B46: Revolving Credit Facility | D46: =IF(F46=0,D30,Summary!P11) -> 0.02 | F46: =Summary!R11 -> 0 | H46: =IF($S$46=0,0,'Newco BS'!P35-H30-H38) -> 0 | J46: =IF($S$46=0,0,'Newco BS'!R35-J30-J38) -> 0 | L46: =IF($S$46=0,0,'Newco BS'!T35-L30-L38) -> 0 | N46: =IF($S$46=0,0,'Newco BS'!V35-N30-N38) -> 0 | P46: =IF($S$46=0,0,'Newco BS'!X35-P30-P38) -> 0 | S46: 1 | T46: 0 = circ off
B47: Senior Debt | D47: =Summary!P12 -> 0.045 | F47: =Summary!R12 -> 9854.5943 | H47: =F47-H22 -> 9033.378108 | J47: =H47-J22 -> 8212.161917 | L47: =J47-L22 -> 7390.945725 | N47: =L47-N22 -> 6569.729533 | P47: =N47-P22 -> 5748.513342 | T47: 1 = circ on
B48: Subordinated Debt | D48: =Summary!P13 -> 0.1 | F48: =Summary!R13 -> 0 | H48: =F48-H23 -> 0 | J48: =H48-J23 -> 0 | L48: =J48-L23 -> 0 | N48: =L48-N23 -> 0 | P48: =N48-P23 -> 0
B50: Interest Expense | F50: 0 | H50: =AVERAGE((F30+F38),H46)*$D46+AVERAGE(F47:H47)*$D47+AVERAGE(F48:H48)*$D48 -> 424.9793792 | J50: =AVERAGE(H46:J46)*$D46+AVERAGE(H47:J47)*$D47+AVERAGE(H48:J48)*$D48 -> 388.0246506 | L50: =AVERAGE(J46:L46)*$D46+AVERAGE(J47:L47)*$D47+AVERAGE(J48:L48)*$D48 -> 351.0699219 | N50: =AVERAGE(L46:N46)*$D46+AVERAGE(L47:N47)*$D47+AVERAGE(L48:N48)*$D48 -> 314.1151933 | P50: =AVERAGE(N46:P46)*$D46+AVERAGE(N47:P47)*$D47+AVERAGE(N48:P48)*$D48 -> 277.1604647
B52: Total Interest Expense | F52: =F34+F42+F50 -> 123.9 | H52: =H34+H42+H50 -> 869.5843792 | J52: =J34+J42+J50 -> 792.6296506 | L52: =L34+L42+L50 -> 715.6749219 | N52: =N34+N42+N50 -> 638.7201933 | P52: =P34+P42+P50 -> 561.7654647

Sheet Options-Convertibles
B1: Target | C1: Options-Convertible Securities Analysis
B4: Target Options Schedule | I4: Target Convertible Preferred Schedule
B5: Potential Options: | D5: Strike | E5: In the $? | F5: Include? | G5: Proceeds | I5: Balance | J5: Par Value | K5: CV Ratio | L5: CV Price | M5: Converted? | N5: Shares
C6: 9.045 | D6: 37.46 | E6: =IF(D6<Summary!$F$7,"Yes","No") -> Yes | F6: =IF(E6="Yes",C6,"No") -> 9.045 | G6: =+IF(ISERROR(D6*F6),0,D6*F6) -> 338.8257 | I6: 0 | J6: 0 | K6: 0 | L6: =+IF(ISERROR(J6/K6),0,J6/K6) -> 0 | M6: =IF(L6<Summary!$F$7,"Yes","No") -> Yes | N6: =+IF(ISERROR(I6/J6*K6),0,I6/J6*K6) -> 0
C7: 0 | D7: 0 | E7: =IF(D7<Summary!$F$7,"Yes","No") -> Yes | F7: =IF(E7="Yes",C7,"No") -> 0 | G7: =+IF(ISERROR(D7*F7),0,D7*F7) -> 0 | I7: 0 | J7: 0 | K7: 0 | L7: =+IF(ISERROR(J7/K7),0,J7/K7) -> 0 | M7: =IF(L7<Summary!$F$7,"Yes","No") -> Yes | N7: =+IF(ISERROR(I7/J7*K7),0,I7/J7*K7) -> 0
C8: 0 | D8: 0 | E8: =IF(D8<Summary!$F$7,"Yes","No") -> Yes | F8: 0 | G8: 0 | I8: 0 | J8: 0 | K8: 0 | L8: 0 | M8: =IF(L8<Summary!$F$7,"Yes","No") -> Yes | N8: 0
C9: 0 | D9: 0 | E9: =IF(D9<Summary!$F$7,"Yes","No") -> Yes | F9: 0 | G9: 0 | I9: 0 | J9: 0 | K9: 0 | L9: 0 | M9: =IF(L9<Summary!$F$7,"Yes","No") -> Yes | N9: 0
C10: 0 | D10: 0 | E10: =IF(D10<Summary!$F$7,"Yes","No") -> Yes | F10: 0 | G10: 0 | I10: 0 | J10: 0 | K10: 0 | L10: 0 | M10: =IF(L10<Summary!$F$7,"Yes","No") -> Yes | N10: 0
C11: 0 | D11: 0 | E11: =IF(D11<Summary!$F$7,"Yes","No") -> Yes | F11: 0 | G11: 0 | I11: 0 | J11: 0 | K11: 0 | L11: 0 | M11: =IF(L11<Summary!$F$7,"Yes","No") -> Yes | N11: 0
C12: =SUM(C6:C11) -> 9.045 | F12: =SUM(F6:F11) -> 9.045 | G12: =SUM(G6:G11) -> 338.8257 | I12: =SUM(I6:I11) -> 0 | N12: =SUM(N6:N11) -> 0
C14: Weighted Average Exercise Price | G14: =IF(ISERROR(G12/F12),0,G12/F12) -> 37.46
C16: Value of Options (Treasury Method) | G16: =(Summary!F7-G14)*F12 -> 348.5943
C17: Treasury Option Shares | G17: =IF(G16=0,0,G16/Summary!F7) -> 4.586767105
B19: Target Convertible Debt Schedule
B20: Principal | C20: Par Value | D20: CV Ratio | E20: CV Price | F20: Converted? | G20: Shares
B21: 0 | C21: 0 | D21: 0 | E21: =+IF(ISERROR(C21/D21),0,C21/D21) -> 0 | F21: =IF(E21<Summary!$F$7,"Yes","No") -> Yes | G21: =+IF(ISERROR(B21/C21*D21),0,B21/C21*D21) -> 0
B22: 0 | C22: 0 | D22: 0 | E22: =+IF(ISERROR(C22/D22),0,C22/D22) -> 0 | F22: =IF(E22<Summary!$F$7,"Yes","No") -> Yes | G22: =+IF(ISERROR(B22/C22*D22),0,B22/C22*D22) -> 0
B23: 0 | C23: 0 | D23: 0 | E23: 0 | F23: =IF(E23<Summary!$F$7,"Yes","No") -> Yes | G23: 0
B24: 0 | C24: 0 | D24: 0 | E24: 0 | F24: =IF(E24<Summary!$F$7,"Yes","No") -> Yes | G24: 0
B25: 0 | C25: 0 | D25: 0 | E25: 0 | F25: =IF(E25<Summary!$F$7,"Yes","No") -> Yes | G25: 0
B26: 0 | C26: 0 | D26: 0 | E26: 0 | F26: =IF(E26<Summary!$F$7,"Yes","No") -> Yes | G26: 0
B27: =SUM(B21:B26) -> 0 | G27: =SUM(G21:G26) -> 0

Sheet Valuation
B1: Valuation
B3: Target: Life Technologies | D3: 2014 | E3: =D3+1 -> 2015 | F3: =E3+1 -> 2016 | G3: 2017 | H3: 2018 | J3: Acquirer: Thermo Fisher | L3: 2014 | M3: =L3+1 -> 2015 | N3: =M3+1 -> 2016 | O3: 2017 | P3: 2018
B4: Free Cash Flow | J4: Free Cash Flow
B5: EBIT | D5: ='Target IS'!J20 -> 373.79904 | E5: ='Target IS'!L20 -> 468.5738352 | F5: ='Target IS'!N20 -> 571.2206965 | G5: ='Target IS'!P20 -> 682.3228521 | H5: ='Target IS'!R20 -> 802.5051929 | J5: EBIT | L5: ='Acquirer IS'!J20 -> 895.806744 | M5: ='Acquirer IS'!L20 -> 1003.368714 | N5: ='Acquirer IS'!N20 -> 1122.048461 | O5: ='Acquirer IS'!P20 -> 1252.911305 | P5: ='Acquirer IS'!R20 -> 1397.120105
B6: Less: Taxes | D6: =-'Target IS'!J31 -> -107.301616 | E6: =-'Target IS'!L31 -> -151.2115341 | F6: =-'Target IS'!N31 -> -198.2702786 | G6: =-'Target IS'!P31 -> -248.7111408 | H6: =-'Target IS'!R31 -> -302.7840772 | J6: Less: Taxes | L6: =-'Acquirer IS'!J31 -> -144.7541534 | M6: =-'Acquirer IS'!L31 -> -179.2202655 | N6: =-'Acquirer IS'!N31 -> -216.5769998 | O6: =-'Acquirer IS'!P31 -> -257.1013393 | P6: =-'Acquirer IS'!R31 -> -301.0956273
B7: Plus: Deprec. & Amort.. | D7: ='Target IS'!J17+'Target IS'!J18 -> 430.06064 | E7: ='Target IS'!L17+'Target IS'!L18 -> 439.1648848 | F7: ='Target IS'!N17+'Target IS'!N18 -> 448.9064267 | G7: ='Target IS'!P17+'Target IS'!P18 -> 459.3298766 | H7: ='Target IS'!R17+'Target IS'!R18 -> 470.482968 | J7: Plus: Deprec. & Amort. | L7: ='Acquirer IS'!J17+'Acquirer IS'!J18 -> 1013.3019 | M7: ='Acquirer IS'!L17+'Acquirer IS'!L18 -> 1094.366052 | N7: ='Acquirer IS'!N17+'Acquirer IS'!N18 -> 1181.915336 | O7: ='Acquirer IS'!P17+'Acquirer IS'!P18 -> 1276.468563 | P7: ='Acquirer IS'!R17+'Acquirer IS'!R18 -> 1378.586048
B8: Less: Gross Capex | D8: =-'Target CF'!J29 -> 16.25758 | E8: =-'Target CF'!L29 -> 17.3956106 | F8: =-'Target CF'!N29 -> 18.61330334 | G8: =-'Target CF'!P29 -> 19.91623458 | H8: =-'Target CF'!R29 -> 21.310371 | J8: Less: Gross Capex | L8: =-'Acquirer CF'!J33 -> 878.19498 | M8: =-'Acquirer CF'!L29 -> 948.4505784 | N8: =-'Acquirer CF'!N33 -> 1024.326625 | O8: =-'Acquirer CF'!P29 -> 1106.272755 | P8: =-'Acquirer CF'!R33 -> 1194.774575
B9: Less: ∆ NWC | D9: ='Target CF'!J17+'Target CF'!J18+'Target CF'!J20+'Target CF'!J23+'Target CF'!J25 -> 43.59545567 | E9: ='Target CF'!L17+'Target CF'!L18+'Target CF'!L20+'Target CF'!L23+'Target CF'!L25 -> -60.9423181 | F9: ='Target CF'!N17+'Target CF'!N18+'Target CF'!N20+'Target CF'!N23+'Target CF'!N25 -> -65.20828037 | G9: ='Target CF'!P17+'Target CF'!P18+'Target CF'!P20+'Target CF'!P23+'Target CF'!P25 -> -69.77286 | H9: ='Target CF'!R17+'Target CF'!R18+'Target CF'!R20+'Target CF'!R23+'Target CF'!R25 -> -74.6569602 | J9: Less: ∆ NWC | L9: ='Acquirer CF'!J17+'Acquirer CF'!J18+'Acquirer CF'!J20+'Acquirer CF'!J23+'Acquirer CF'!J24+'Acquirer CF'!J25 -> 141.6128281 | M9: ='Acquirer CF'!L17+'Acquirer CF'!L18+'Acquirer CF'!L20+'Acquirer CF'!L23+'Acquirer CF'!L24+'Acquirer CF'!L25 -> -3.738973756 | N9: ='Acquirer CF'!N17+'Acquirer CF'!N18+'Acquirer CF'!N20+'Acquirer CF'!N23+'Acquirer CF'!N24+'Acquirer CF'!N2 -> -20.86209166 | O9: ='Acquirer CF'!P17+'Acquirer CF'!P18+'Acquirer CF'!P20+'Acquirer CF'!P23+'Acquirer CF'!P24+'Acquirer CF'!P25 -> -39.35505899 | P9: ='Acquirer CF'!R17+'Acquirer CF'!R18+'Acquirer CF'!R20+'Acquirer CF'!R23+'Acquirer CF'!R24+'Acquirer CF'!R25 -> -59.32746371
B10: Equals: Free Cash Flow | D10: =SUM(D5:D9) -> 756.4110997 | E10: =SUM(E5:E9) -> 712.9804784 | F10: 775.2618676 | G10: 843.0849624 | H10: 916.8574945 | J10: Equals: Free Cash Flow | L10: =SUM(L5:L9) -> 2784.162299 | M10: =SUM(M5:M9) -> 2863.226105 | N10: 3090.85133 | O10: 3339.196225 | P10: 3610.057637
B11: Period | D11: 1 | E11: 1 | F11: 1 | G11: 1 | H11: 1 | J11: Period | L11: 1 | M11: 1 | N11: 1 | O11: 1 | P11: 1
B12: Mid-Year Convention | D12: =D11/2 -> 0.5 | E12: =D11+E11/2 -> 1.5 | F12: =F11/2+SUM(D11:E11) -> 2.5 | G12: =G11/2+SUM(D11:F11) -> 3.5 | H12: =H11/2+SUM(D11:G11) -> 4.5 | J12: Mid-Year Convention | L12: =L11/2 -> 0.5 | M12: =L11+M11/2 -> 1.5 | N12: =N11/2+SUM(L11:M11) -> 2.5 | O12: =O11/2+SUM(L11:N11) -> 3.5 | P12: =P11/2+SUM(L11:O11) -> 4.5
B13: Discount Factor | D13: =1/(1+D24)^D12 -> 0.9630739408 | E13: =1/(1+D24)^E12 -> 0.8932620741 | F13: =1/(1+D24)^F12 -> 0.8285107708 | G13: =1/(1+D24)^G12 -> 0.7684531978 | H13: =1/(1+D24)^H12 -> 0.7127491133 | J13: Discount Factor | L13: =1/(1+L24)^L11 -> 0.9256402345 | M13: =1/(1+L24)^M12 -> 0.8905603094 | N13: =1/(1+L24)^N12 -> 0.8243384536 | O13: =1/(1+L24)^O12 -> 0.7630408395 | P13: =1/(1+L24)^P12 -> 0.7063013016
B14: PV FCFF | D14: =D10*D13 -> 728.4798187 | E14: =E10*E13 -> 636.878421 | F14: 642.3128075 | G14: 647.8713354 | H14: 653.4893662 | J14: PV FCFF | L14: =L10*L13 -> 2577.132643 | M14: =M10*M13 -> 2549.875526 | N14: =N10*N13 -> 2547.907606 | O14: =O10*O13 -> 2547.94309 | P14: =P10*P13 -> 2549.788408
B16: PV (Years 1- 5) | D16: =SUM(D14:H14) -> 3309.031749 | J16: PV (Years 1- 5) | L16: =SUM(L14:P14) -> 12772.64727
B17: PV (Terminal Value) | D17: =+IF(ISERROR(D33*(1+D34)/(D35-D34)*H13),0,D33*(1+D34)/(D35-D34)*H13) -> 12134.00197 | J17: PV (Terminal Value) | L17: =+IF(ISERROR(L33*(1+L34)/(L35-L34)*P13),0,L33*(1+L34)/(L35-L34)*P13) -> 40933.76767
B18: Enterprise Value | D18: =SUM(D16:D17) -> 15443.03372 | J18: Enterprise Value | L18: =SUM(L16:L17) -> 53706.41495
B19: Plus Cash | D19: ='Target BS'!H9 -> 276.3 | J19: Plus Cash | L19: ='Acquirer BS'!H9 -> 855.3
B20: Less Debt & Min. Int. | D20: ='Target BS'!H38+'Target BS'!H50 -> 2261.7 | J20: Less Debt & Min. Int. | L20: ='Acquirer BS'!H50+'Acquirer BS'!H41 -> 808.2
B21: Equity Value | D21: =D18+D19-D20 -> 13457.63372 | J21: Equity Value | L21: =L18+L19-L20 -> 53753.51495
B22: Equity Value Per Share | D22: =+IF(ISERROR(D21/Summary!F8),0,D21/Summary!F8) -> 77.12111014 | J22: Equity Value Per Share | L22: =+IF(ISERROR(L21/Summary!P25),0,L21/Summary!P25) -> 150.1075536
B23: Assumptions: | J23: Assumptions:
B24: WACC | D24: ='Target Assumptions'!J58*(1-0.4)*D26+D28*(1-D26) -> 0.07815384615 | J24: WACC | L24: ='Acquirer Assumptions'!J58*(1-0.4)*L26+L28*(1-L26) -> 0.08033333333
B25: Target D/E* | D25: 0.3 | J25: Target D/E* | L25: 0.2
B26: Target D/TC* | D26: =D25/(1+D25) -> 0.2307692308 | J26: Target D/TC* | L26: =L25/(1+L25) -> 0.1666666667
B27: Marginal Tax Rate | D27: 0.4 | J27: Marginal Tax Rate | L27: 0.4
B28: ke | D28: =D29+D31*D30 -> 0.0926 | J28: ke | L28: =L29+L31*L30 -> 0.0904
B29: Rf | D29: 0.02 | J29: Rf | L29: 0.02
B30: Rf - Rm | D30: 0.055 | J30: Rf - Rm | L30: 0.055
B31: Beta | D31: 1.32 | J31: Beta | L31: 1.28
B32: Terminal Value | J32: Terminal Value
B33: FCF 2020 | D33: =H5-H5*0.4+SUM(H7:H9) -> 898.6394945 | J33: FCF 2020 | L33: =P5-P5*0.4+SUM(P7:P9) -> 3352.305222
B34: Terminal Growth Rate | D34: 0.023 | J34: Terminal Growth Rate | L34: 0.02
B35: Terminal Period WACC | D35: 0.077 | J35: Terminal Period WACC | L35: 0.079
B37: Newco: Thermo Fisher | D37: 2014 | E37: =D37+1 -> 2015 | F37: =E37+1 -> 2016 | G37: 2017 | H37: 2018 | J37: Definitions
B38: Free Cash Flow | J38: WACC = (D/(D+E))*[(1-T)*[Cost of Debt]]+(E/(D+E))*ke
B39: EBIT | D39: ='Newco IS'!M21 -> 1246.576277 | E39: ='Newco IS'!P21 -> 1589.590371 | F39: ='Newco IS'!R21 -> 1942.871428 | G39: ='Newco IS'!T21 -> 2184.811493 | H39: ='Newco IS'!V21 -> 2449.179153 | J39: D = Debt
B40: Less: Taxes | D40: =IF(ISERROR(-'Newco IS'!M32),0,-'Newco IS'!M32) -> -45.82145899 | E40: =IF(ISERROR(-'Newco IS'!N32),0,-'Newco IS'!N32) -> 0 | F40: =IF(ISERROR(-'Newco IS'!O32),0,-'Newco IS'!O32) -> 0 | G40: =IF(ISERROR(-'Newco IS'!P32),0,-'Newco IS'!P32) -> -207.2097873 | H40: =IF(ISERROR(-'Newco IS'!Q32),0,-'Newco IS'!Q32) -> 0 | J40: E = Equity
B41: Plus: Deprec. & Amort. | D41: ='Newco IS'!M18+'Newco IS'!M19 -> 1453.24254 | E41: ='Newco IS'!P18+'Newco IS'!R19 -> 1543.410937 | F41: ='Newco IS'!R18+'Newco IS'!R19 -> 1640.701763 | G41: ='Newco IS'!T18+'Newco IS'!T19 -> 1745.67844 | H41: ='Newco IS'!V18+'Newco IS'!V19 -> 1858.949016 | J41: T = Corporate marginal tax rate
B42: Less: Gross Capex | D42: =-'Newco CF'!J29 -> 894.45256 | E42: =-'Newco CF'!L29 -> 965.846189 | F42: =-'Newco CF'!N29 -> 1042.939928 | G42: =-'Newco CF'!P29 -> 1126.188989 | H42: =-'Newco CF'!R29 -> 1216.084946 | J42: ke = Cost of Equity (Estimated using the Capital Asset Pricing Model)
B43: Less: ∆ NWC | D43: ='Newco CF'!J17+'Newco CF'!J18+'Newco CF'!J19+'Newco CF'!J20+'Newco CF'!J21+'Newco CF'!J22+'Newco CF'!J23+'Newco CF'!J24+'Newco CF'!J25 -> 2302.781344 | E43: ='Newco CF'!L17+'Newco CF'!L18+'Newco CF'!L19+'Newco CF'!L20+'Newco CF'!L21+'Newco CF'!L22+'Newco CF'!L23+'Newco CF'!L24+'Newco CF'!L25 -> 162.7133731 | F43: ='Newco CF'!N17+'Newco CF'!N18+'Newco CF'!N19+'Newco CF'!N20+'Newco CF'!N21+'Newco CF'!N22+'Newco CF'!N23+'Newco CF'!N24+'Newco CF'!N25 -> 181.4039477 | G43: ='Newco CF'!P17+'Newco CF'!P18+'Newco CF'!P19+'Newco CF'!P20+'Newco CF'!P21+'Newco CF'!P22+'Newco CF'!P23+'Newco CF'!P24+'Newco CF'!P25 -> 209.4392749 | H43: ='Newco CF'!R17+'Newco CF'!R18+'Newco CF'!R19+'Newco CF'!R20+'Newco CF'!R21+'Newco CF'!R22+'Newco CF'!R23+'Newco CF'!R24+'Newco CF'!R25 -> 208.9578621 | J43: NWC = Net working capital excluding cash & marketable securities
B44: Equals: Free Cash Flow | D44: =SUM(D39:D43) -> 5851.231262 | E44: =SUM(E39:E43) -> 4261.56087 | F44: 4807.917067 | G44: 5058.908409 | H44: 5733.170978 | J44: Discount factor uses mid-year convention in which cash flows occur evenly
B45: Period | D45: 1 | E45: 1 | F45: 1 | G45: 1 | H45: 1 | J45: throughout the year.
B46: Mid-Year Convention | D46: =D45/2 -> 0.5 | E46: =D45+E45/2 -> 1.5 | F46: =SUM(D45:E45)+F45/2 -> 2.5 | G46: =SUM(D45:F45)+G45/2 -> 3.5 | H46: =SUM(D45:G45)+H45/2 -> 4.5 | J46: Rf = Risk free rate approximated by the 10-year U.S. treasury bond rate.
B47: Discount Factor | D47: =1/(1+D57)^D46 -> 0.9684005772 | E47: =1/(1+D57)^E46 -> 0.9081657494 | F47: =1/(1+D57)^F46 -> 0.8516775473 | G47: =1/(1+D57)^G46 -> 0.7987029295 | H47: =1/(1+D57)^H46 -> 0.7490233501 | J47: Rm = Return on a broad based stock index
B48: PV FCFF | D48: =D44*D47 -> 5666.335732 | E48: =E44*E47 -> 3870.203621 | F48: 4094.795015 | G48: 4040.564967 | H48: 4294.278932 | J48: Rf - Rm = Average historical equity risk premium
J49: Period reflects months of actual data available for first forecast year, i.e.,
B50: PV (Years 1- 5) | D50: =SUM(D48:H48) -> 21966.17827 | J50: if have 9 months actual data, period 1 equals .25, if have one half
B51: PV (Terminal Value) | D51: =+IF(ISERROR(D66*(1+D67)/(D68-D67)*H47),0,D66*(1+D67)/(D68-D67)*H47) -> 77270.03451 | J51: year of data, period 1 is .5; if 3 months available, period 1 equals.75
B52: Enterprise Value | D52: =SUM(D50:D51) -> 99236.21278 | J52: FCF2020 is recalculated to reflect the maximum marginal tax rate rather than the
B53: Plus Cash | D53: ='Newco BS'!M9 -> 131.6 | J53: effective tax rate.
B54: Less Debt & Minority Interest | C54: & Min. Int. | D54: ='Newco BS'!M39+'Newco BS'!M51 -> 19146.6943 | J54: Target D/E* represents the future debt to equity ratio desired by the firm.
B55: Equity Value | D55: =D52+D53-D54 -> 80221.11848 | J55: Target D/TC* represents the implied future debt to total capital ratio desired
B56: Equity Value Per Share | D56: =+IF(ISERROR(D55/Summary!J18),0,D55/Summary!J18) -> 207.489711 | J56: by the firm.
B57: WACC = | D57: ='Newco Assumptions'!J58*(1-0.4)*D59+D61*(1-D59) -> 0.06632580874
B58: Target D/E* | D58: 0.2
B59: Target D/TC* | D59: =D58/(1+D58) -> 0.1666666667
B60: Marginal Tax Rate | D60: 0.4
B61: ke | D61: =D62+D64*D63 -> 0.0739
B62: Rf | D62: 0.02
B63: Rf - Rm | D63: 0.055
B64: Beta | D64: 0.98
B65: Terminal Value
B66: FCF 2020 | D66: =H39-H39*0.4+SUM(H41:H43) -> 4753.499316
B67: Terminal Growth Rate | D67: 0.02
B68: Terminal Period WACC | D68: 0.067
B70: Newco Internal Rate of Return on Acquisition
B72: Purchase Price (including Trasaction Expenses) | F72: 2012 | G72: =-Summary!R18 -> -14104.5943
B73: Free Cash Flows | F73: 2013 | G73: =D44 -> 5851.231262
F74: 2014 | G74: =E44 -> 4261.56087
F75: 2015 | G75: =F44 -> 4807.917067
F76: 2016 | G76: =G44 -> 5058.908409
F77: 2017 | G77: =H44 -> 5733.170978
B78: Terminal Value | G78: =D51 -> 77270.03451
B79: IRR | G79: =IRR(G72:G78) -> 0.5447604853
